date,department/service,beneficiary,amount,summary of purpose,category,transaction number,SAP vendor number
01.04.2023,ASSET MANAGEMENT,ARMINA LTD,626.04,DISREPAIR,BUILDING R&M,2103644845,3000002121
01.04.2023,ASSET MANAGEMENT,ARMINA LTD,707.52,DISREPAIR,BUILDING R&M,2103644857,3000002121
01.04.2023,ASSET MANAGEMENT,ARMINA LTD,719.27,DISREPAIR,BUILDING R&M,2103644859,3000002121
01.04.2023,ASSET MANAGEMENT,ARMINA LTD,"1,065.99",DISREPAIR,BUILDING R&M,2103644849,3000002121
01.04.2023,ASSET MANAGEMENT,ARMINA LTD,"1,190.85",DISREPAIR,BUILDING R&M,2103644863,3000002121
01.04.2023,ASSET MANAGEMENT,ARMINA LTD,"1,679.67",DISREPAIR,BUILDING R&M,2103644834,3000002121
01.04.2023,ASSET MANAGEMENT,ARMINA LTD,"1,784.04",DISREPAIR,BUILDING R&M,2103644864,3000002121
01.04.2023,ASSET MANAGEMENT,ARMINA LTD,"1,889.73",DISREPAIR,BUILDING R&M,2103644867,3000002121
01.04.2023,ASSET MANAGEMENT,ARMINA LTD,"1,897.37",DISREPAIR,BUILDING R&M,2103644851,3000002121
01.04.2023,ASSET MANAGEMENT,ARMINA LTD,"1,951.61",DISREPAIR,BUILDING R&M,2103644842,3000002121
01.04.2023,ASSET MANAGEMENT,ARMINA LTD,"3,734.17",DISREPAIR,BUILDING R&M,2103644843,3000002121
01.04.2023,CENTRAL FUNCTIONS,BRESLIN CONSTRUCTION LTD,480,COMMERCIAL PROPERTIES,BUILDING R&M,5902572742,1000078031
01.04.2023,CHIEF EXECUTIVE,CURRIE & BROWN UK LTD,"9,095.00",CAPITAL PS (REGEN),CONSTRUCTION FEES,5902573845,1000033455
01.04.2023,CHILDREN AND ADULT,BLOOM PROCUREMENT SERVICES LTD,"4,350.00",CAPITAL PS (EDUCATION),CONSTRUCTION FEES  - EXTERNAL,5902572955,1000082531
01.04.2023,CHILDREN AND FAMILIES,INTERCOUNTRY ADOPTION CENTRE,"6,500.00",ADOPT LONDON SOUTH,PROFESSIONAL FEES,5902572703,1000035796
01.04.2023,CHILDREN AND FAMILIES,THE FOSTERING NETWORK,372,FOSTERING TEAM,SUBSCRIPTIONS,5902573505,1000003629
01.04.2023,CHILDREN AND FAMILIES,THE FOSTERING NETWORK,460,FOSTERING TEAM,SUBSCRIPTIONS,5902573505,1000003629
01.04.2023,CHILDREN AND FAMILIES,THE FOSTERING NETWORK,"1,700.36",FOSTERING TEAM,SUBSCRIPTIONS,5902573505,1000003629
01.04.2023,CHILDREN AND FAMILIES,CORAM FAMILY,540,SPECIAL GUARDIANSHIP,EXTERNAL AGENCIES AND BODIES,5902572599,1000023579
01.04.2023,COMMUNITIES,EQUALITEACH C.I.C.,400,PREVENT,PROFESSIONAL FEES,5902572753,1000079800
01.04.2023,COMMUNITIES,EQUALITEACH C.I.C.,800,PREVENT,PROFESSIONAL FEES,5902572753,1000079800
01.04.2023,COMMUNITIES,EQUALITEACH C.I.C.,800,PREVENT,PROFESSIONAL FEES,5902572753,1000079800
01.04.2023,COMMUNITIES,EQUALITEACH C.I.C.,"1,600.00",PREVENT,PROFESSIONAL FEES,5902572753,1000079800
01.04.2023,CUSTOMER EXPERIENCE,ONLINE ERGONOMICS LTD,"2,080.72",COMPLAINTS,FURNITURE PURCHASE & REPAIR,5902573490,1000036655
01.04.2023,DIGITAL AND TECHNOLOGY,VENN GROUP LTD,"7,700.00",IT MANAGEMENT,AGENCY STAFF,5902573764,1000033315
01.04.2023,DIGITAL AND TECHNOLOGY,PERMANENT FUTURES LTD,"3,000.00",IT MANAGEMENT,CONSULTANTS SERVICES,5902572900,1000089361
01.04.2023,EDUCATION,PYLON DESIGN CONSULTANTS LTD,600,SCHOOL BUSINESS MANAGER FORUM,SOFTWARE,5902572739,1000040083
01.04.2023,ENVIRONMENT DIRECTORATE,1ENV SOLUTIONS LTD,"1,553.70",COMMERCIAL PEST CONTROL WORKS,MATERIALS,5902573657,1000075410
01.04.2023,ENVIRONMENT DIRECTORATE,GRADKO INTERNATIONAL LTD,312.85,ENVIRONMENTAL PROTECTION,EQUIPMENT PURCHASE & REPAIR,5902572994,1000068330
01.04.2023,ENVIRONMENT DIRECTORATE,TOPOCREW LTD,"1,200.00",STREET TRADING A/C,PROFESSIONAL FEES,5902572752,1000070929
01.04.2023,HOUSING GENERAL FUND,DOLPHIN MOBILITY LTD,"5,716.00",CAPITAL PS (HOUSING GF),CAPITAL GRANTS,5902573740,1000066371
01.04.2023,HUMAN RESOURCES,PROFESSIONAL DEVELOPMENT GROUP,495,WOMEN�S NETWORK,OTHER EMPLOYEE EXPENSES,5902573730,1000081438
01.04.2023,LEISURE DIRECTORATE,LONDON BUBBLE THEATRE COMPANY,"1,776.00",ARTS GRANTS,GRANTS,5902573823,11022517
01.04.2023,LEISURE DIRECTORATE,1ST ACE SECURITY LTD,295,PLAY NORTH,BUILDING R&M,5902572960,1000006992
01.04.2023,LEISURE DIRECTORATE,P D CONSTRUCTION LTD,570,PLAY NORTH,OTHER R&M,5902572745,1000000390
01.04.2023,LEISURE DIRECTORATE,LONDON STONE CONSERVATION LTD,"1,260.00",SOUTHWARK AREA TEAM,OTHER R&M,5902572740,1000083524
01.04.2023,PUBLIC HEALTH,LINDA DRAKE,"2,625.00",DIGITAL HEALTH,EXTERNAL AGENCIES AND BODIES,5902573914,1000087981
02.04.2023,ADULT SOCIAL CARE,KENT COUNTY COUNCIL - LASER,"2,536.57",SOUTHWARK RESOURCE CENTRE,ELECTRICITY,5902572956,1000012926
02.04.2023,ASSET MANAGEMENT,SANDERSONS BUILDING SERVICES LTD,"9,372.16",DISREPAIR,BUILDING R&M,2103645570,3000002065
02.04.2023,ASSET MANAGEMENT,CALFORD SEADEN LLP,"3,360.00",MAJOR REPAIRS,BUILDING R&M,5902572995,1061592
02.04.2023,ASSET MANAGEMENT,C&C BUILDERS LTD,"9,879.00",MAJOR REPAIRS,BUILDING R&M,2103644314,3000001986
02.04.2023,ASSET MANAGEMENT,BRIDGEWATER ROOFING CONTRACTORS LTD,809.65,REPAIRS OPERATIONS,BUILDING R&M,2103643817,3000001482
02.04.2023,ASSET MANAGEMENT,GAS & ENVIRONMENTAL SERVICES LTD,821.93,REPAIRS OPERATIONS,OTHER R&M,5902573561,1000066947
02.04.2023,ASSET MANAGEMENT,GAS & ENVIRONMENTAL SERVICES LTD,930,REPAIRS OPERATIONS,OTHER R&M,5902573561,1000066947
02.04.2023,CENTRAL FUNCTIONS,KENT COUNTY COUNCIL - LASER,"42,881.45",HEATING ACCOUNT,ELECTRICITY,5902573129,1000012926
02.04.2023,CENTRAL FUNCTIONS,KENT COUNTY COUNCIL - LASER,"1,382,680.99",HEATING ACCOUNT,GAS,5902573132,1000012926
02.04.2023,CHIEF EXECUTIVE,BANKSIDE OPEN SPACES TRADING LTD,"50,000.00",CAPITAL PS (REGEN),CAPITAL GRANTS,5902573498,1000069665
02.04.2023,CHIEF EXECUTIVE,WALWORTH HOMES LTD,"459,935.03",CAPITAL PS (REGEN),CONST'N MAIN CONTRACT - NON CERTIFICATED,5902573919,1000079197
02.04.2023,CHIEF EXECUTIVE,WALWORTH HOMES LTD,"33,536.31",CAPITAL PS (REGEN),CONSTRUCTION FEES,5902573919,1000079197
02.04.2023,CHILDREN AND FAMILIES,SOUTH LONDON & MAUDSLEY HOSPITAL,"2,498.32",ADOPTION SUPP FUND 2,EXTERNAL AGENCIES AND BODIES,5902573044,1000013096
02.04.2023,CORPORATE FACILITIES MANAGEMENT,KENT COUNTY COUNCIL - LASER,679.72,7 TALFOURD ROAD,ELECTRICITY,5902573029,1000012926
02.04.2023,CORPORATE FACILITIES MANAGEMENT,KENT COUNTY COUNCIL - LASER,"1,034.60",BOURNEMOUTH GROVE,ELECTRICITY,5902572880,1000012926
02.04.2023,CORPORATE FACILITIES MANAGEMENT,KENT COUNTY COUNCIL - LASER,"1,083.75",BOURNEMOUTH GROVE,ELECTRICITY,5902573034,1000012926
02.04.2023,CORPORATE FACILITIES MANAGEMENT,KENT COUNTY COUNCIL - LASER,"1,085.57",BOURNEMOUTH GROVE,ELECTRICITY,5902573035,1000012926
02.04.2023,CORPORATE FACILITIES MANAGEMENT,KENT COUNTY COUNCIL - LASER,"1,101.90",BOURNEMOUTH GROVE,ELECTRICITY,5902572914,1000012926
02.04.2023,CORPORATE FACILITIES MANAGEMENT,KENT COUNTY COUNCIL - LASER,"1,395.14",BOURNEMOUTH GROVE,ELECTRICITY,5902573037,1000012926
02.04.2023,CORPORATE FACILITIES MANAGEMENT,KENT COUNTY COUNCIL - LASER,"2,438.94",BOURNEMOUTH GROVE,ELECTRICITY,5902573008,1000012926
02.04.2023,CORPORATE FACILITIES MANAGEMENT,KENT COUNTY COUNCIL - LASER,"4,005.49",QUEENS ROAD 2 (BLOCK J),ELECTRICITY,5902573114,1000012926
02.04.2023,CORPORATE FACILITIES MANAGEMENT,RELIANCE HIGH-TECH LTD,"5,388.68",REPAIR AND MAINTENANCE SERVICES,MEDICAL / HEALTH & SAFETY SERVICES,5902573026,1000079374
02.04.2023,CUSTOMER EXPERIENCE,KENT COUNTY COUNCIL - LASER,"3,936.78",CUSTOMER SUPPORT,ELECTRICITY,5902573130,1000012926
02.04.2023,EDUCATION,HATS GROUP LTD,"-15,480.99",SCH TRANS � TRAVEL,EXTERNAL AGENCIES AND BODIES,5902573763,1000042743
02.04.2023,EDUCATION,HATS GROUP LTD,"884,628.00",SCH TRANS � TRAVEL,EXTERNAL AGENCIES AND BODIES,5902573762,1000042743
02.04.2023,ENVIRONMENT AND LEISURE,F M CONWAY LTD,"12,000.00",CAPITAL PS (LEISURE),CONSTRUCTION FEES  - EXTERNAL,2103645483,4001384
02.04.2023,ENVIRONMENT AND LEISURE,HARRISON DESIGN DEVELOPMENT LTD,"1,665.00",CAPITAL PS (LEISURE),CONSTRUCTION FEES  - EXTERNAL,5902573028,1000066896
02.04.2023,ENVIRONMENT AND LEISURE,RH WROUGHT IRON,"7,080.00",CAPITAL PS (LEISURE),CONSTRUCTION FEES  - EXTERNAL,2103645567,3000000680
02.04.2023,ENVIRONMENT AND LEISURE,TRACSIS TRAFFIC DATA LTD,"1,745.00",CAPITAL PS (REGEN),CAPITAL GRANTS,5902572888,1000079382
02.04.2023,ENVIRONMENT AND LEISURE,SMI INT GROUP LTD,"1,750.00",MANAGEMENT TEAM,MATERIALS,5902572996,1000076606
02.04.2023,ENVIRONMENT AND LEISURE,KENT COUNTY COUNCIL - LASER,"1,763.22",SANDGATE STREET,ELECTRICITY,5902572919,1000012926
02.04.2023,HOUSING HRA,WALWORTH HOMES LTD,"50,644.21",CAPITAL PS (HRA),CONSTRUCTION FEES  - EXTERNAL,5902573512,1000079197
02.04.2023,HOUSING HRA,WALWORTH HOMES LTD,"115,690.16",CAPITAL PS (HRA),CONSTRUCTION FEES  - EXTERNAL,5902573489,1000079197
02.04.2023,HOUSING HRA,SILVER DCC LTD,538.97,CAPITAL PS (HRA),CONSTRUCTION FEES  - EXTERNAL,5902573002,1000087546
02.04.2023,HOUSING HRA,SILVER DCC LTD,772.84,CAPITAL PS (HRA),CONSTRUCTION FEES  - EXTERNAL,5902573419,1000087546
02.04.2023,HOUSING HRA,SILVER DCC LTD,"1,225.90",CAPITAL PS (HRA),CONSTRUCTION FEES  - EXTERNAL,5902572980,1000087546
02.04.2023,HOUSING HRA,SILVER DCC LTD,"1,245.13",CAPITAL PS (HRA),CONSTRUCTION FEES  - EXTERNAL,5902573630,1000087546
02.04.2023,HOUSING HRA,SILVER DCC LTD,"1,315.18",CAPITAL PS (HRA),CONSTRUCTION FEES  - EXTERNAL,5902572999,1000087546
02.04.2023,HOUSING HRA,SILVER DCC LTD,"1,342.65",CAPITAL PS (HRA),CONSTRUCTION FEES  - EXTERNAL,5902573913,1000087546
02.04.2023,HOUSING HRA,SILVER DCC LTD,"2,445.94",CAPITAL PS (HRA),CONSTRUCTION FEES  - EXTERNAL,5902573027,1000087546
02.04.2023,HOUSING HRA,SILVER DCC LTD,"1,488.04",CAPITAL PS (REGEN),CONSTRUCTION FEES  - EXTERNAL,5902573013,1000087546
02.04.2023,HOUSING HRA,MARTIN ARNOLD LTD,625,CAPITAL PS (REGEN),CONSTRUCTION FEES - QUANTITY SURVEYOR,5902573021,1000076993
02.04.2023,LEISURE DIRECTORATE,KENT COUNTY COUNCIL - LASER,391.4,BURGESS AREA TEAM,ELECTRICITY,5902572881,1000012926
02.04.2023,LEISURE DIRECTORATE,KENT COUNTY COUNCIL - LASER,"1,939.09",BURGESS SPORTS CENTRE,ELECTRICITY,5902572887,1000012926
02.04.2023,LEISURE DIRECTORATE,KENT COUNTY COUNCIL - LASER,"1,344.03",DAMILOLA TAYLOR CENTRE,ELECTRICITY,5902573095,1000012926
02.04.2023,LEISURE DIRECTORATE,KENT COUNTY COUNCIL - LASER,454.22,DULWICH AREA TEAM,ELECTRICITY,5902572882,1000012926
02.04.2023,LEISURE DIRECTORATE,KENT COUNTY COUNCIL - LASER,"2,267.76",DULWICH AREA TEAM,ELECTRICITY,5902572885,1000012926
02.04.2023,LEISURE DIRECTORATE,KENT COUNTY COUNCIL - LASER,265.82,HOMERSTALL ROAD SPORTS GROUND,ELECTRICITY,5902572886,1000012926
02.04.2023,LEISURE DIRECTORATE,FOUNTAINS & FEATURES LTD,470,PARKS SERVICES DEVELOPMENT,PROFESSIONAL FEES,5902573778,1000082729
02.04.2023,LEISURE DIRECTORATE,COMPLETE ECOLOGY LIMITED,"1,690.00",SOUTHWARK AREA TEAM,GROUNDS MAINTENANCE,5902572962,1000062303
02.04.2023,LEISURE DIRECTORATE,P D CONSTRUCTION LTD,"1,380.00",SOUTHWARK AREA TEAM,OTHER R&M,2103644840,4001883
02.04.2023,LEISURE DIRECTORATE,P D CONSTRUCTION LTD,"3,510.00",SOUTHWARK AREA TEAM,OTHER R&M,2103644841,4001883
02.04.2023,PLANNING & GROWTH,SOUTHWARK NEWSPAPER LTD,504,DEV MGT ADMIN & INCOME,MARKETING & PUBLICITY SERVICES,5902572773,1556957
02.04.2023,PLANNING & GROWTH,KENT COUNTY COUNCIL - LASER,"2,056.63",TOWER WORKSHOPS,ELECTRICITY,5902572990,1000012926
02.04.2023,PUBLIC HEALTH,THERAPY 4 HEALING,"2,500.00",COMMUNITY VACCINE CHAMPIONS,EXTERNAL AGENCIES AND BODIES,5902572755,1000087908
02.04.2023,SBS OPERATIONS,"BROWNING, JONES & MORRIS LTD",465,SBS LEAKS FROM ABOVE,MATERIALS,5902574037,1027429
03.04.2023,CHIEF EXECUTIVE,BRESLIN CONSTRUCTION LTD,"10,080.00",CAPITAL PS (REGEN),CONSTRUCTION FEES  - EXTERNAL,2103644852,3000001948
03.04.2023,CHILDREN AND FAMILIES,REDACTED PERSONAL DATA,450,ADOPTION SUPP FUND 1,EXTERNAL AGENCIES AND BODIES,REDACTED,REDACTED
03.04.2023,CHILDREN AND FAMILIES,REDACTED PERSONAL DATA,770,ADOPTION SUPP FUND 2,EXTERNAL AGENCIES AND BODIES,REDACTED,REDACTED
03.04.2023,CHILDREN AND FAMILIES,REDACTED PERSONAL DATA,"1,140.00",ADOPTION SUPP FUND 2,EXTERNAL AGENCIES AND BODIES,REDACTED,REDACTED
03.04.2023,CHILDREN AND FAMILIES,REDACTED PERSONAL DATA,"1,140.00",ADOPTION SUPP FUND 2,EXTERNAL AGENCIES AND BODIES,REDACTED,REDACTED
03.04.2023,CORPORATE FACILITIES MANAGEMENT,KENT COUNTY COUNCIL - LASER,"35,774.03",160 TOOLEY ST.,ELECTRICITY,5902573139,1000012926
03.04.2023,CORPORATE FACILITIES MANAGEMENT,KENT COUNTY COUNCIL - LASER,"12,766.77",QUEENS RD 1 (BLOCK F),ELECTRICITY,5902573134,1000012926
03.04.2023,EDUCATION,THURROCK BOROUGH COUNCIL,"5,118.75",SCH TRANS � TRAVEL,RECOUPMENT,5902573756,1000072673
03.04.2023,ENVIRONMENT AND LEISURE,THE CONSERVATION VOLUNTEERS,"1,500.00",CAPITAL PS (LEISURE),CONSTRUCTION,5902573481,1872821
03.04.2023,ENVIRONMENT AND LEISURE,STREET TREE LTD,995.13,CAPITAL PS (LEISURE),CONSTRUCTION,5902573023,1000055901
03.04.2023,ENVIRONMENT AND LEISURE,HILLIER NURSERIES LTD,"4,221.15",CAPITAL PS (LEISURE),CONSTRUCTION FEES,5902573818,1000036638
03.04.2023,ENVIRONMENT AND LEISURE,STREET TREE LTD,550,CAPITAL PS (LEISURE),CONSTRUCTION FEES,5902573156,1000055901
03.04.2023,ENVIRONMENT AND LEISURE,RH WROUGHT IRON,350,CAPITAL PS (LEISURE),CONSTRUCTION FEES  - EXTERNAL,2103645568,3000000680
03.04.2023,ENVIRONMENT AND LEISURE,CROWN OIL LTD,922.26,SANDGATE STREET,VEHICLE FUEL,5902573256,1000081749
03.04.2023,ENVIRONMENT DIRECTORATE,CIVICA UK LTD,"8,250.00",EH & TS MANAGER,SOFTWARE,5902573475,1730625
03.04.2023,ENVIRONMENT DIRECTORATE,1ENV SOLUTIONS LTD,584.27,PEST CONTROL,MATERIALS,5902573648,1000075410
03.04.2023,EXTERNAL AFFAIRS,PUBLIC PERSPECTIVES LTD,"24,375.00",MEDIA & E-COMMUNICATIONS,PROFESSIONAL FEES,5902572884,1000089498
03.04.2023,HOUSING GENERAL FUND,SOUTH EAST BUILDING CONTRACTORS LTD,"13,671.90",CAPITAL PS (HOUSING GF),CAPITAL GRANTS,5902573834,1000049893
03.04.2023,HOUSING GENERAL FUND,ALPINE WORKS LTD,"2,617.60",CAPITAL PS (REGEN),CONSTRUCTION FEES  - EXTERNAL,5902573266,1000088387
03.04.2023,HOUSING HRA,LONDON UNDERGROUND LTD,819,CAPITAL PS (HRA),CONSTRUCTION FEES  - EXTERNAL,5902573729,1000059727
03.04.2023,HOUSING HRA,CALFORD SEADEN LLP,"5,560.00",CAPITAL PS (HRA),CONSTRUCTION FEES - EMPLOYERS AGENT,5902573616,1061592
03.04.2023,LEISURE DIRECTORATE,CHINELO NJAKA,"1,200.00",ARTS PROJECT,CONSULTANTS SERVICES,5902573719,1000088512
03.04.2023,LEISURE DIRECTORATE,AMAL SAID,"1,200.00",ARTS PROJECT,CONSULTANTS SERVICES,5902573718,1000088712
03.04.2023,LEISURE DIRECTORATE,DANIEL ODUNTAN,"1,200.00",ARTS PROJECT,CONSULTANTS SERVICES,5902573710,1000088744
03.04.2023,PLANNING & GROWTH,E.L.T.I (UK) LIMITED,426,TOWER WORKSHOPS,BUILDING R&M,5902572997,1000089055
03.04.2023,RESIDENT SERVICES,LEATHERMARKET JMB HOUSING,"5,324.28",LEATHERMARKET CO-OP,M&M ALLOWANCE CO-OPS,5902573020,11182872
04.04.2023,ADULT SOCIAL CARE,REDACTED PERSONAL DATA,488,APPOINTEESHIPS,OTHER PAYMENTS FOR CLIENTS,REDACTED,REDACTED
04.04.2023,ADULT SOCIAL CARE,MULTI-ACTIVITY CENTER,"1,812.80",LD LTS 18-64,DAYCARE,2103646715,1000087749
04.04.2023,ADULT SOCIAL CARE,LONDON CARE LTD,930.51,LD LTS 18-64,HOMECARE - C&V,2103646419,1000003398
04.04.2023,ADULT SOCIAL CARE,SAGECARE LTD,356.11,LD LTS 18-64,HOMECARE - C&V,2103646556,1000080924
04.04.2023,ADULT SOCIAL CARE,SAGECARE LTD,"1,120.37",LD LTS 18-64,HOMECARE - C&V,2103646538,1000080924
04.04.2023,ADULT SOCIAL CARE,CARE DIRECT UK LTD,486,LD LTS 18-64,SUPPORTED LIVING,2103646492,1000066322
04.04.2023,ADULT SOCIAL CARE,SAGECARE LTD,939.25,LD LTS 65+,HOMECARE - C&V,2103646530,1000080924
04.04.2023,ADULT SOCIAL CARE,LONDON CARE LTD,256.34,MEM LTS 18-64,HOMECARE - C&V,2103646228,1000003398
04.04.2023,ADULT SOCIAL CARE,LONDON CARE LTD,560.46,MEM LTS 18-64,HOMECARE - C&V,2103646276,1000003398
04.04.2023,ADULT SOCIAL CARE,LONDON CARE LTD,954.4,MEM LTS 18-64,HOMECARE - C&V,2103646193,1000003398
04.04.2023,ADULT SOCIAL CARE,LONDON CARE LTD,275.41,MEM LTS 65+,HOMECARE - C&V,2103646396,1000003398
04.04.2023,ADULT SOCIAL CARE,LONDON CARE LTD,490.6,MEM LTS 65+,HOMECARE - C&V,2103646365,1000003398
04.04.2023,ADULT SOCIAL CARE,LONDON CARE LTD,512.73,MEM LTS 65+,HOMECARE - C&V,2103646468,1000003398
04.04.2023,ADULT SOCIAL CARE,LONDON CARE LTD,650.43,MEM LTS 65+,HOMECARE - C&V,2103646357,1000003398
04.04.2023,ADULT SOCIAL CARE,LONDON CARE LTD,873.65,MEM LTS 65+,HOMECARE - C&V,2103646401,1000003398
04.04.2023,ADULT SOCIAL CARE,LONDON CARE LTD,"1,077.90",MEM LTS 65+,HOMECARE - C&V,2103646317,1000003398
04.04.2023,ADULT SOCIAL CARE,LONDON CARE LTD,"1,168.04",MEM LTS 65+,HOMECARE - C&V,2103646158,1000003398
04.04.2023,ADULT SOCIAL CARE,LONDON CARE LTD,"1,343.00",MEM LTS 65+,HOMECARE - C&V,2103646125,1000003398
04.04.2023,ADULT SOCIAL CARE,LONDON CARE LTD,"1,354.20",MEM LTS 65+,HOMECARE - C&V,2103646342,1000003398
04.04.2023,ADULT SOCIAL CARE,LONDON CARE LTD,"1,362.91",MEM LTS 65+,HOMECARE - C&V,2103646271,1000003398
04.04.2023,ADULT SOCIAL CARE,LONDON CARE LTD,"1,488.91",MEM LTS 65+,HOMECARE - C&V,2103646339,1000003398
04.04.2023,ADULT SOCIAL CARE,LONDON CARE LTD,"2,203.09",MEM LTS 65+,HOMECARE - C&V,2103646234,1000003398
04.04.2023,ADULT SOCIAL CARE,LONDON CARE LTD,"2,250.27",MEM LTS 65+,HOMECARE - C&V,2103646444,1000003398
04.04.2023,ADULT SOCIAL CARE,SAGECARE LTD,683.9,MEM LTS 65+,HOMECARE - C&V,2103646578,1000080924
04.04.2023,ADULT SOCIAL CARE,SAGECARE LTD,698.19,MEM LTS 65+,HOMECARE - C&V,2103646523,1000080924
04.04.2023,ADULT SOCIAL CARE,SAGECARE LTD,740.88,MEM LTS 65+,HOMECARE - C&V,2103646533,1000080924
04.04.2023,ADULT SOCIAL CARE,SAGECARE LTD,902.53,MEM LTS 65+,HOMECARE - C&V,2103646660,1000080924
04.04.2023,ADULT SOCIAL CARE,SAGECARE LTD,987.87,MEM LTS 65+,HOMECARE - C&V,2103646603,1000080924
04.04.2023,ADULT SOCIAL CARE,SAGECARE LTD,"1,009.89",MEM LTS 65+,HOMECARE - C&V,2103646526,1000080924
04.04.2023,ADULT SOCIAL CARE,SAGECARE LTD,"2,834.75",MEM LTS 65+,HOMECARE - C&V,2103646547,1000080924
04.04.2023,ADULT SOCIAL CARE,LONDON CARE LTD,313.34,MH LTS 18-64,HOMECARE - C&V,2103646189,1000003398
04.04.2023,ADULT SOCIAL CARE,LONDON CARE LTD,346.73,MH LTS 18-64,HOMECARE - C&V,2103646286,1000003398
04.04.2023,ADULT SOCIAL CARE,LONDON CARE LTD,465.26,MH LTS 18-64,HOMECARE - C&V,2103646129,1000003398
04.04.2023,ADULT SOCIAL CARE,LONDON CARE LTD,513.44,MH LTS 18-64,HOMECARE - C&V,2103646452,1000003398
04.04.2023,ADULT SOCIAL CARE,LONDON CARE LTD,532,MH LTS 18-64,HOMECARE - C&V,2103646148,1000003398
04.04.2023,ADULT SOCIAL CARE,LONDON CARE LTD,"1,329.56",MH LTS 18-64,HOMECARE - C&V,2103646434,1000003398
04.04.2023,ADULT SOCIAL CARE,LONDON CARE LTD,"1,832.92",MH LTS 18-64,HOMECARE - C&V,2103646340,1000003398
04.04.2023,ADULT SOCIAL CARE,SAGECARE LTD,303.84,MH LTS 18-64,HOMECARE - C&V,2103646574,1000080924
04.04.2023,ADULT SOCIAL CARE,SAGECARE LTD,303.84,MH LTS 18-64,HOMECARE - C&V,2103646612,1000080924
04.04.2023,ADULT SOCIAL CARE,SAGECARE LTD,322.88,MH LTS 18-64,HOMECARE - C&V,2103646579,1000080924
04.04.2023,ADULT SOCIAL CARE,SAGECARE LTD,356.18,MH LTS 18-64,HOMECARE - C&V,2103646690,1000080924
04.04.2023,ADULT SOCIAL CARE,SAGECARE LTD,384.58,MH LTS 18-64,HOMECARE - C&V,2103646688,1000080924
04.04.2023,ADULT SOCIAL CARE,SAGECARE LTD,422.53,MH LTS 18-64,HOMECARE - C&V,2103646520,1000080924
04.04.2023,ADULT SOCIAL CARE,SAGECARE LTD,"1,414.85",MH LTS 18-64,HOMECARE - C&V,2103646539,1000080924
04.04.2023,ADULT SOCIAL CARE,REDACTED PERSONAL DATA,284.48,MH LTS 18-64,SUPPORTED LIVING,REDACTED,REDACTED
04.04.2023,ADULT SOCIAL CARE,REDACTED PERSONAL DATA,284.48,MH LTS 18-64,SUPPORTED LIVING,REDACTED,REDACTED
04.04.2023,ADULT SOCIAL CARE,REDACTED PERSONAL DATA,284.48,MH LTS 18-64,SUPPORTED LIVING,REDACTED,REDACTED
04.04.2023,ADULT SOCIAL CARE,REDACTED PERSONAL DATA,391.16,MH LTS 18-64,SUPPORTED LIVING,REDACTED,REDACTED
04.04.2023,ADULT SOCIAL CARE,REDACTED PERSONAL DATA,527.8,MH LTS 18-64,SUPPORTED LIVING,REDACTED,REDACTED
04.04.2023,ADULT SOCIAL CARE,REDACTED PERSONAL DATA,603.2,MH LTS 18-64,SUPPORTED LIVING,REDACTED,REDACTED
04.04.2023,ADULT SOCIAL CARE,REDACTED PERSONAL DATA,603.2,MH LTS 18-64,SUPPORTED LIVING,REDACTED,REDACTED
04.04.2023,ADULT SOCIAL CARE,REDACTED PERSONAL DATA,603.2,MH LTS 18-64,SUPPORTED LIVING,REDACTED,REDACTED
04.04.2023,ADULT SOCIAL CARE,REDACTED PERSONAL DATA,603.2,MH LTS 18-64,SUPPORTED LIVING,REDACTED,REDACTED
04.04.2023,ADULT SOCIAL CARE,MEDACS HOMECARE,494,MH LTS 65+,HOMECARE - C&V,2103646696,11287415
04.04.2023,ADULT SOCIAL CARE,MEDACS HOMECARE,494,MH LTS 65+,HOMECARE - C&V,2103646697,11287415
04.04.2023,ADULT SOCIAL CARE,MEDACS HOMECARE,494,MH LTS 65+,HOMECARE - C&V,2103646701,11287415
04.04.2023,ADULT SOCIAL CARE,MEDACS HOMECARE,494,MH LTS 65+,HOMECARE - C&V,2103646707,11287415
04.04.2023,ADULT SOCIAL CARE,LONDON CARE LTD,284.8,MH LTS 65+,HOMECARE - C&V,2103646150,1000003398
04.04.2023,ADULT SOCIAL CARE,LONDON CARE LTD,380,MH LTS 65+,HOMECARE - C&V,2103646354,1000003398
04.04.2023,ADULT SOCIAL CARE,LONDON CARE LTD,436.87,MH LTS 65+,HOMECARE - C&V,2103646260,1000003398
04.04.2023,ADULT SOCIAL CARE,LONDON CARE LTD,484.21,MH LTS 65+,HOMECARE - C&V,2103646202,1000003398
04.04.2023,ADULT SOCIAL CARE,LONDON CARE LTD,512.8,MH LTS 65+,HOMECARE - C&V,2103646273,1000003398
04.04.2023,ADULT SOCIAL CARE,LONDON CARE LTD,"1,059.09",MH LTS 65+,HOMECARE - C&V,2103646350,1000003398
04.04.2023,ADULT SOCIAL CARE,LONDON CARE LTD,"1,073.18",MH LTS 65+,HOMECARE - C&V,2103646163,1000003398
04.04.2023,ADULT SOCIAL CARE,LONDON CARE LTD,"1,163.47",MH LTS 65+,HOMECARE - C&V,2103646299,1000003398
04.04.2023,ADULT SOCIAL CARE,SAGECARE LTD,437.75,MH LTS 65+,HOMECARE - C&V,2103646557,1000080924
04.04.2023,ADULT SOCIAL CARE,SAGECARE LTD,688.66,MH LTS 65+,HOMECARE - C&V,2103646514,1000080924
04.04.2023,ADULT SOCIAL CARE,SAGECARE LTD,693.14,MH LTS 65+,HOMECARE - C&V,2103646566,1000080924
04.04.2023,ADULT SOCIAL CARE,SAGECARE LTD,873.68,MH LTS 65+,HOMECARE - C&V,2103646648,1000080924
04.04.2023,ADULT SOCIAL CARE,SAGECARE LTD,930.65,MH LTS 65+,HOMECARE - C&V,2103646516,1000080924
04.04.2023,ADULT SOCIAL CARE,REDACTED PERSONAL DATA,675.64,MH LTS 65+,SUPPORTED LIVING,REDACTED,REDACTED
04.04.2023,ADULT SOCIAL CARE,MEDACS HOMECARE,"2,788.25",PHY LTS 18-64,HOMECARE - C&V,2103646704,11287415
04.04.2023,ADULT SOCIAL CARE,MEDACS HOMECARE,"2,821.50",PHY LTS 18-64,HOMECARE - C&V,2103646699,11287415
04.04.2023,ADULT SOCIAL CARE,LONDON CARE LTD,270.62,PHY LTS 18-64,HOMECARE - C&V,2103646462,1000003398
04.04.2023,ADULT SOCIAL CARE,LONDON CARE LTD,280.24,PHY LTS 18-64,HOMECARE - C&V,2103646398,1000003398
04.04.2023,ADULT SOCIAL CARE,LONDON CARE LTD,291.93,PHY LTS 18-64,HOMECARE - C&V,2103646225,1000003398
04.04.2023,ADULT SOCIAL CARE,LONDON CARE LTD,340.28,PHY LTS 18-64,HOMECARE - C&V,2103646239,1000003398
04.04.2023,ADULT SOCIAL CARE,LONDON CARE LTD,341.81,PHY LTS 18-64,HOMECARE - C&V,2103646453,1000003398
04.04.2023,ADULT SOCIAL CARE,LONDON CARE LTD,342.26,PHY LTS 18-64,HOMECARE - C&V,2103646227,1000003398
04.04.2023,ADULT SOCIAL CARE,LONDON CARE LTD,346.55,PHY LTS 18-64,HOMECARE - C&V,2103646180,1000003398
04.04.2023,ADULT SOCIAL CARE,LONDON CARE LTD,379.96,PHY LTS 18-64,HOMECARE - C&V,2103646438,1000003398
04.04.2023,ADULT SOCIAL CARE,LONDON CARE LTD,389.25,PHY LTS 18-64,HOMECARE - C&V,2103646455,1000003398
04.04.2023,ADULT SOCIAL CARE,LONDON CARE LTD,403.47,PHY LTS 18-64,HOMECARE - C&V,2103646380,1000003398
04.04.2023,ADULT SOCIAL CARE,LONDON CARE LTD,403.47,PHY LTS 18-64,HOMECARE - C&V,2103646461,1000003398
04.04.2023,ADULT SOCIAL CARE,LONDON CARE LTD,417.73,PHY LTS 18-64,HOMECARE - C&V,2103646204,1000003398
04.04.2023,ADULT SOCIAL CARE,LONDON CARE LTD,422.56,PHY LTS 18-64,HOMECARE - C&V,2103646223,1000003398
04.04.2023,ADULT SOCIAL CARE,LONDON CARE LTD,431.96,PHY LTS 18-64,HOMECARE - C&V,2103646175,1000003398
04.04.2023,ADULT SOCIAL CARE,LONDON CARE LTD,454.75,PHY LTS 18-64,HOMECARE - C&V,2103646417,1000003398
04.04.2023,ADULT SOCIAL CARE,LONDON CARE LTD,460.55,PHY LTS 18-64,HOMECARE - C&V,2103646408,1000003398
04.04.2023,ADULT SOCIAL CARE,LONDON CARE LTD,474.71,PHY LTS 18-64,HOMECARE - C&V,2103646236,1000003398
04.04.2023,ADULT SOCIAL CARE,LONDON CARE LTD,526.93,PHY LTS 18-64,HOMECARE - C&V,2103646314,1000003398
04.04.2023,ADULT SOCIAL CARE,LONDON CARE LTD,541.28,PHY LTS 18-64,HOMECARE - C&V,2103646161,1000003398
04.04.2023,ADULT SOCIAL CARE,LONDON CARE LTD,545.9,PHY LTS 18-64,HOMECARE - C&V,2103646436,1000003398
04.04.2023,ADULT SOCIAL CARE,LONDON CARE LTD,550.76,PHY LTS 18-64,HOMECARE - C&V,2103646195,1000003398
04.04.2023,ADULT SOCIAL CARE,LONDON CARE LTD,555.08,PHY LTS 18-64,HOMECARE - C&V,2103646143,1000003398
04.04.2023,ADULT SOCIAL CARE,LONDON CARE LTD,585.11,PHY LTS 18-64,HOMECARE - C&V,2103646334,1000003398
04.04.2023,ADULT SOCIAL CARE,LONDON CARE LTD,607.66,PHY LTS 18-64,HOMECARE - C&V,2103646384,1000003398
04.04.2023,ADULT SOCIAL CARE,LONDON CARE LTD,607.82,PHY LTS 18-64,HOMECARE - C&V,2103646405,1000003398
04.04.2023,ADULT SOCIAL CARE,LONDON CARE LTD,617.44,PHY LTS 18-64,HOMECARE - C&V,2103646215,1000003398
04.04.2023,ADULT SOCIAL CARE,LONDON CARE LTD,617.45,PHY LTS 18-64,HOMECARE - C&V,2103646372,1000003398
04.04.2023,ADULT SOCIAL CARE,LONDON CARE LTD,617.45,PHY LTS 18-64,HOMECARE - C&V,2103646446,1000003398
04.04.2023,ADULT SOCIAL CARE,LONDON CARE LTD,640.91,PHY LTS 18-64,HOMECARE - C&V,2103646282,1000003398
04.04.2023,ADULT SOCIAL CARE,LONDON CARE LTD,640.98,PHY LTS 18-64,HOMECARE - C&V,2103646293,1000003398
04.04.2023,ADULT SOCIAL CARE,LONDON CARE LTD,655.22,PHY LTS 18-64,HOMECARE - C&V,2103646289,1000003398
04.04.2023,ADULT SOCIAL CARE,LONDON CARE LTD,659.97,PHY LTS 18-64,HOMECARE - C&V,2103646137,1000003398
04.04.2023,ADULT SOCIAL CARE,LONDON CARE LTD,674.21,PHY LTS 18-64,HOMECARE - C&V,2103646322,1000003398
04.04.2023,ADULT SOCIAL CARE,LONDON CARE LTD,678.94,PHY LTS 18-64,HOMECARE - C&V,2103646265,1000003398
04.04.2023,ADULT SOCIAL CARE,LONDON CARE LTD,688.65,PHY LTS 18-64,HOMECARE - C&V,2103646237,1000003398
04.04.2023,ADULT SOCIAL CARE,LONDON CARE LTD,700.51,PHY LTS 18-64,HOMECARE - C&V,2103646297,1000003398
04.04.2023,ADULT SOCIAL CARE,LONDON CARE LTD,704.51,PHY LTS 18-64,HOMECARE - C&V,2103646186,1000003398
04.04.2023,ADULT SOCIAL CARE,LONDON CARE LTD,716.96,PHY LTS 18-64,HOMECARE - C&V,2103646428,1000003398
04.04.2023,ADULT SOCIAL CARE,LONDON CARE LTD,721.72,PHY LTS 18-64,HOMECARE - C&V,2103646183,1000003398
04.04.2023,ADULT SOCIAL CARE,LONDON CARE LTD,773.94,PHY LTS 18-64,HOMECARE - C&V,2103646460,1000003398
04.04.2023,ADULT SOCIAL CARE,LONDON CARE LTD,788.11,PHY LTS 18-64,HOMECARE - C&V,2103646226,1000003398
04.04.2023,ADULT SOCIAL CARE,LONDON CARE LTD,807.11,PHY LTS 18-64,HOMECARE - C&V,2103646246,1000003398
04.04.2023,ADULT SOCIAL CARE,LONDON CARE LTD,811.86,PHY LTS 18-64,HOMECARE - C&V,2103646285,1000003398
04.04.2023,ADULT SOCIAL CARE,LONDON CARE LTD,836.03,PHY LTS 18-64,HOMECARE - C&V,2103646190,1000003398
04.04.2023,ADULT SOCIAL CARE,LONDON CARE LTD,854.68,PHY LTS 18-64,HOMECARE - C&V,2103646131,1000003398
04.04.2023,ADULT SOCIAL CARE,LONDON CARE LTD,868.67,PHY LTS 18-64,HOMECARE - C&V,2103646141,1000003398
04.04.2023,ADULT SOCIAL CARE,LONDON CARE LTD,"1,011.43",PHY LTS 18-64,HOMECARE - C&V,2103646191,1000003398
04.04.2023,ADULT SOCIAL CARE,LONDON CARE LTD,"1,029.47",PHY LTS 18-64,HOMECARE - C&V,2103646281,1000003398
04.04.2023,ADULT SOCIAL CARE,LONDON CARE LTD,"1,030.34",PHY LTS 18-64,HOMECARE - C&V,2103646467,1000003398
04.04.2023,ADULT SOCIAL CARE,LONDON CARE LTD,"1,077.87",PHY LTS 18-64,HOMECARE - C&V,2103646229,1000003398
04.04.2023,ADULT SOCIAL CARE,LONDON CARE LTD,"1,092.07",PHY LTS 18-64,HOMECARE - C&V,2103646449,1000003398
04.04.2023,ADULT SOCIAL CARE,LONDON CARE LTD,"1,117.63",PHY LTS 18-64,HOMECARE - C&V,2103646294,1000003398
04.04.2023,ADULT SOCIAL CARE,LONDON CARE LTD,"1,125.50",PHY LTS 18-64,HOMECARE - C&V,2103646206,1000003398
04.04.2023,ADULT SOCIAL CARE,LONDON CARE LTD,"1,191.64",PHY LTS 18-64,HOMECARE - C&V,2103646425,1000003398
04.04.2023,ADULT SOCIAL CARE,LONDON CARE LTD,"1,191.65",PHY LTS 18-64,HOMECARE - C&V,2103646277,1000003398
04.04.2023,ADULT SOCIAL CARE,LONDON CARE LTD,"1,196.63",PHY LTS 18-64,HOMECARE - C&V,2103646144,1000003398
04.04.2023,ADULT SOCIAL CARE,LONDON CARE LTD,"1,301.14",PHY LTS 18-64,HOMECARE - C&V,2103646209,1000003398
04.04.2023,ADULT SOCIAL CARE,LONDON CARE LTD,"1,343.70",PHY LTS 18-64,HOMECARE - C&V,2103646343,1000003398
04.04.2023,ADULT SOCIAL CARE,LONDON CARE LTD,"1,438.90",PHY LTS 18-64,HOMECARE - C&V,2103646433,1000003398
04.04.2023,ADULT SOCIAL CARE,LONDON CARE LTD,"1,533.66",PHY LTS 18-64,HOMECARE - C&V,2103646133,1000003398
04.04.2023,ADULT SOCIAL CARE,LONDON CARE LTD,"2,127.44",PHY LTS 18-64,HOMECARE - C&V,2103646124,1000003398
04.04.2023,ADULT SOCIAL CARE,LONDON CARE LTD,"2,260.37",PHY LTS 18-64,HOMECARE - C&V,2103646392,1000003398
04.04.2023,ADULT SOCIAL CARE,LONDON CARE LTD,"2,393.43",PHY LTS 18-64,HOMECARE - C&V,2103646149,1000003398
04.04.2023,ADULT SOCIAL CARE,LONDON CARE LTD,"4,087.47",PHY LTS 18-64,HOMECARE - C&V,2103646184,1000003398
04.04.2023,ADULT SOCIAL CARE,SAGECARE LTD,284.9,PHY LTS 18-64,HOMECARE - C&V,2103646620,1000080924
04.04.2023,ADULT SOCIAL CARE,SAGECARE LTD,341.97,PHY LTS 18-64,HOMECARE - C&V,2103646589,1000080924
04.04.2023,ADULT SOCIAL CARE,SAGECARE LTD,370.26,PHY LTS 18-64,HOMECARE - C&V,2103646508,1000080924
04.04.2023,ADULT SOCIAL CARE,SAGECARE LTD,375.05,PHY LTS 18-64,HOMECARE - C&V,2103646571,1000080924
04.04.2023,ADULT SOCIAL CARE,SAGECARE LTD,375.09,PHY LTS 18-64,HOMECARE - C&V,2103646585,1000080924
04.04.2023,ADULT SOCIAL CARE,SAGECARE LTD,393.98,PHY LTS 18-64,HOMECARE - C&V,2103646607,1000080924
04.04.2023,ADULT SOCIAL CARE,SAGECARE LTD,417.73,PHY LTS 18-64,HOMECARE - C&V,2103646594,1000080924
04.04.2023,ADULT SOCIAL CARE,SAGECARE LTD,422.48,PHY LTS 18-64,HOMECARE - C&V,2103646512,1000080924
04.04.2023,ADULT SOCIAL CARE,SAGECARE LTD,469.94,PHY LTS 18-64,HOMECARE - C&V,2103646525,1000080924
04.04.2023,ADULT SOCIAL CARE,SAGECARE LTD,470.17,PHY LTS 18-64,HOMECARE - C&V,2103646535,1000080924
04.04.2023,ADULT SOCIAL CARE,SAGECARE LTD,498.57,PHY LTS 18-64,HOMECARE - C&V,2103646552,1000080924
04.04.2023,ADULT SOCIAL CARE,SAGECARE LTD,620.5,PHY LTS 18-64,HOMECARE - C&V,2103646548,1000080924
04.04.2023,ADULT SOCIAL CARE,SAGECARE LTD,640.11,PHY LTS 18-64,HOMECARE - C&V,2103646623,1000080924
04.04.2023,ADULT SOCIAL CARE,SAGECARE LTD,647.62,PHY LTS 18-64,HOMECARE - C&V,2103646671,1000080924
04.04.2023,ADULT SOCIAL CARE,SAGECARE LTD,683.92,PHY LTS 18-64,HOMECARE - C&V,2103646618,1000080924
04.04.2023,ADULT SOCIAL CARE,SAGECARE LTD,778.67,PHY LTS 18-64,HOMECARE - C&V,2103646626,1000080924
04.04.2023,ADULT SOCIAL CARE,SAGECARE LTD,883.15,PHY LTS 18-64,HOMECARE - C&V,2103646600,1000080924
04.04.2023,ADULT SOCIAL CARE,SAGECARE LTD,892.6,PHY LTS 18-64,HOMECARE - C&V,2103646632,1000080924
04.04.2023,ADULT SOCIAL CARE,SAGECARE LTD,"1,058.99",PHY LTS 18-64,HOMECARE - C&V,2103646595,1000080924
04.04.2023,ADULT SOCIAL CARE,SAGECARE LTD,"1,082.62",PHY LTS 18-64,HOMECARE - C&V,2103646560,1000080924
04.04.2023,ADULT SOCIAL CARE,SAGECARE LTD,"1,087.19",PHY LTS 18-64,HOMECARE - C&V,2103646661,1000080924
04.04.2023,ADULT SOCIAL CARE,SAGECARE LTD,"1,139.00",PHY LTS 18-64,HOMECARE - C&V,2103646549,1000080924
04.04.2023,ADULT SOCIAL CARE,SAGECARE LTD,"1,244.12",PHY LTS 18-64,HOMECARE - C&V,2103646517,1000080924
04.04.2023,ADULT SOCIAL CARE,SAGECARE LTD,"1,355.20",PHY LTS 18-64,HOMECARE - C&V,2103646604,1000080924
04.04.2023,ADULT SOCIAL CARE,SAGECARE LTD,"1,476.67",PHY LTS 18-64,HOMECARE - C&V,2103646577,1000080924
04.04.2023,ADULT SOCIAL CARE,SAGECARE LTD,"1,903.84",PHY LTS 18-64,HOMECARE - C&V,2103646645,1000080924
04.04.2023,ADULT SOCIAL CARE,SAGECARE LTD,"2,008.21",PHY LTS 18-64,HOMECARE - C&V,2103646673,1000080924
04.04.2023,ADULT SOCIAL CARE,CARE DIRECT UK LTD,493.63,PHY LTS 18-64,HOMECARE - SPOT,2103646481,1000066322
04.04.2023,ADULT SOCIAL CARE,CARE DIRECT UK LTD,"1,166.75",PHY LTS 18-64,HOMECARE - SPOT,2103646482,1000066322
04.04.2023,ADULT SOCIAL CARE,MEDACS HOMECARE,655.5,PHY LTS 65+,HOMECARE - C&V,2103646708,11287415
04.04.2023,ADULT SOCIAL CARE,MEDACS HOMECARE,798,PHY LTS 65+,HOMECARE - C&V,2103646698,11287415
04.04.2023,ADULT SOCIAL CARE,MEDACS HOMECARE,798,PHY LTS 65+,HOMECARE - C&V,2103646700,11287415
04.04.2023,ADULT SOCIAL CARE,MEDACS HOMECARE,"1,979.76",PHY LTS 65+,HOMECARE - C&V,2103646703,11287415
04.04.2023,ADULT SOCIAL CARE,LONDON CARE LTD,251.58,PHY LTS 65+,HOMECARE - C&V,2103646406,1000003398
04.04.2023,ADULT SOCIAL CARE,LONDON CARE LTD,265.86,PHY LTS 65+,HOMECARE - C&V,2103646346,1000003398
04.04.2023,ADULT SOCIAL CARE,LONDON CARE LTD,266,PHY LTS 65+,HOMECARE - C&V,2103646188,1000003398
04.04.2023,ADULT SOCIAL CARE,LONDON CARE LTD,270.74,PHY LTS 65+,HOMECARE - C&V,2103646355,1000003398
04.04.2023,ADULT SOCIAL CARE,LONDON CARE LTD,270.74,PHY LTS 65+,HOMECARE - C&V,2103646448,1000003398
04.04.2023,ADULT SOCIAL CARE,LONDON CARE LTD,275.5,PHY LTS 65+,HOMECARE - C&V,2103646173,1000003398
04.04.2023,ADULT SOCIAL CARE,LONDON CARE LTD,290.53,PHY LTS 65+,HOMECARE - C&V,2103646333,1000003398
04.04.2023,ADULT SOCIAL CARE,LONDON CARE LTD,293.8,PHY LTS 65+,HOMECARE - C&V,2103646156,1000003398
04.04.2023,ADULT SOCIAL CARE,LONDON CARE LTD,294.46,PHY LTS 65+,HOMECARE - C&V,2103646291,1000003398
04.04.2023,ADULT SOCIAL CARE,LONDON CARE LTD,303.84,PHY LTS 65+,HOMECARE - C&V,2103646255,1000003398
04.04.2023,ADULT SOCIAL CARE,LONDON CARE LTD,327.55,PHY LTS 65+,HOMECARE - C&V,2103646112,1000003398
04.04.2023,ADULT SOCIAL CARE,LONDON CARE LTD,327.68,PHY LTS 65+,HOMECARE - C&V,2103646412,1000003398
04.04.2023,ADULT SOCIAL CARE,LONDON CARE LTD,337.02,PHY LTS 65+,HOMECARE - C&V,2103646208,1000003398
04.04.2023,ADULT SOCIAL CARE,LONDON CARE LTD,337.02,PHY LTS 65+,HOMECARE - C&V,2103646336,1000003398
04.04.2023,ADULT SOCIAL CARE,LONDON CARE LTD,339.73,PHY LTS 65+,HOMECARE - C&V,2103646268,1000003398
04.04.2023,ADULT SOCIAL CARE,LONDON CARE LTD,341.82,PHY LTS 65+,HOMECARE - C&V,2103646313,1000003398
04.04.2023,ADULT SOCIAL CARE,LONDON CARE LTD,341.96,PHY LTS 65+,HOMECARE - C&V,2103646135,1000003398
04.04.2023,ADULT SOCIAL CARE,LONDON CARE LTD,354.3,PHY LTS 65+,HOMECARE - C&V,2103646138,1000003398
04.04.2023,ADULT SOCIAL CARE,LONDON CARE LTD,374.99,PHY LTS 65+,HOMECARE - C&V,2103646309,1000003398
04.04.2023,ADULT SOCIAL CARE,LONDON CARE LTD,386.75,PHY LTS 65+,HOMECARE - C&V,2103646145,1000003398
04.04.2023,ADULT SOCIAL CARE,LONDON CARE LTD,388.28,PHY LTS 65+,HOMECARE - C&V,2103646296,1000003398
04.04.2023,ADULT SOCIAL CARE,LONDON CARE LTD,393.98,PHY LTS 65+,HOMECARE - C&V,2103646176,1000003398
04.04.2023,ADULT SOCIAL CARE,LONDON CARE LTD,393.98,PHY LTS 65+,HOMECARE - C&V,2103646270,1000003398
04.04.2023,ADULT SOCIAL CARE,LONDON CARE LTD,394.17,PHY LTS 65+,HOMECARE - C&V,2103646224,1000003398
04.04.2023,ADULT SOCIAL CARE,LONDON CARE LTD,396.22,PHY LTS 65+,HOMECARE - C&V,2103646359,1000003398
04.04.2023,ADULT SOCIAL CARE,LONDON CARE LTD,398.72,PHY LTS 65+,HOMECARE - C&V,2103646174,1000003398
04.04.2023,ADULT SOCIAL CARE,LONDON CARE LTD,398.72,PHY LTS 65+,HOMECARE - C&V,2103646429,1000003398
04.04.2023,ADULT SOCIAL CARE,LONDON CARE LTD,399.2,PHY LTS 65+,HOMECARE - C&V,2103646300,1000003398
04.04.2023,ADULT SOCIAL CARE,LONDON CARE LTD,403.47,PHY LTS 65+,HOMECARE - C&V,2103646252,1000003398
04.04.2023,ADULT SOCIAL CARE,LONDON CARE LTD,408.24,PHY LTS 65+,HOMECARE - C&V,2103646266,1000003398
04.04.2023,ADULT SOCIAL CARE,LONDON CARE LTD,413.2,PHY LTS 65+,HOMECARE - C&V,2103646165,1000003398
04.04.2023,ADULT SOCIAL CARE,LONDON CARE LTD,417.93,PHY LTS 65+,HOMECARE - C&V,2103646414,1000003398
04.04.2023,ADULT SOCIAL CARE,LONDON CARE LTD,422.5,PHY LTS 65+,HOMECARE - C&V,2103646172,1000003398
04.04.2023,ADULT SOCIAL CARE,LONDON CARE LTD,446.45,PHY LTS 65+,HOMECARE - C&V,2103646278,1000003398
04.04.2023,ADULT SOCIAL CARE,LONDON CARE LTD,450.97,PHY LTS 65+,HOMECARE - C&V,2103646368,1000003398
04.04.2023,ADULT SOCIAL CARE,LONDON CARE LTD,484.49,PHY LTS 65+,HOMECARE - C&V,2103646272,1000003398
04.04.2023,ADULT SOCIAL CARE,LONDON CARE LTD,493.77,PHY LTS 65+,HOMECARE - C&V,2103646337,1000003398
04.04.2023,ADULT SOCIAL CARE,LONDON CARE LTD,498.44,PHY LTS 65+,HOMECARE - C&V,2103646238,1000003398
04.04.2023,ADULT SOCIAL CARE,LONDON CARE LTD,498.74,PHY LTS 65+,HOMECARE - C&V,2103646373,1000003398
04.04.2023,ADULT SOCIAL CARE,LONDON CARE LTD,522.3,PHY LTS 65+,HOMECARE - C&V,2103646389,1000003398
04.04.2023,ADULT SOCIAL CARE,LONDON CARE LTD,522.5,PHY LTS 65+,HOMECARE - C&V,2103646319,1000003398
04.04.2023,ADULT SOCIAL CARE,LONDON CARE LTD,536.5,PHY LTS 65+,HOMECARE - C&V,2103646261,1000003398
04.04.2023,ADULT SOCIAL CARE,LONDON CARE LTD,536.75,PHY LTS 65+,HOMECARE - C&V,2103646248,1000003398
04.04.2023,ADULT SOCIAL CARE,LONDON CARE LTD,550.98,PHY LTS 65+,HOMECARE - C&V,2103646360,1000003398
04.04.2023,ADULT SOCIAL CARE,LONDON CARE LTD,555.66,PHY LTS 65+,HOMECARE - C&V,2103646194,1000003398
04.04.2023,ADULT SOCIAL CARE,LONDON CARE LTD,574.39,PHY LTS 65+,HOMECARE - C&V,2103646432,1000003398
04.04.2023,ADULT SOCIAL CARE,LONDON CARE LTD,584.06,PHY LTS 65+,HOMECARE - C&V,2103646232,1000003398
04.04.2023,ADULT SOCIAL CARE,LONDON CARE LTD,593.6,PHY LTS 65+,HOMECARE - C&V,2103646304,1000003398
04.04.2023,ADULT SOCIAL CARE,LONDON CARE LTD,593.68,PHY LTS 65+,HOMECARE - C&V,2103646371,1000003398
04.04.2023,ADULT SOCIAL CARE,LONDON CARE LTD,593.72,PHY LTS 65+,HOMECARE - C&V,2103646219,1000003398
04.04.2023,ADULT SOCIAL CARE,LONDON CARE LTD,612.7,PHY LTS 65+,HOMECARE - C&V,2103646217,1000003398
04.04.2023,ADULT SOCIAL CARE,LONDON CARE LTD,613.53,PHY LTS 65+,HOMECARE - C&V,2103646307,1000003398
04.04.2023,ADULT SOCIAL CARE,LONDON CARE LTD,622,PHY LTS 65+,HOMECARE - C&V,2103646257,1000003398
04.04.2023,ADULT SOCIAL CARE,LONDON CARE LTD,622,PHY LTS 65+,HOMECARE - C&V,2103646400,1000003398
04.04.2023,ADULT SOCIAL CARE,LONDON CARE LTD,631.43,PHY LTS 65+,HOMECARE - C&V,2103646134,1000003398
04.04.2023,ADULT SOCIAL CARE,LONDON CARE LTD,631.68,PHY LTS 65+,HOMECARE - C&V,2103646197,1000003398
04.04.2023,ADULT SOCIAL CARE,LONDON CARE LTD,637.92,PHY LTS 65+,HOMECARE - C&V,2103646171,1000003398
04.04.2023,ADULT SOCIAL CARE,LONDON CARE LTD,640.96,PHY LTS 65+,HOMECARE - C&V,2103646385,1000003398
04.04.2023,ADULT SOCIAL CARE,LONDON CARE LTD,653.45,PHY LTS 65+,HOMECARE - C&V,2103646347,1000003398
04.04.2023,ADULT SOCIAL CARE,LONDON CARE LTD,655.24,PHY LTS 65+,HOMECARE - C&V,2103646324,1000003398
04.04.2023,ADULT SOCIAL CARE,LONDON CARE LTD,660.11,PHY LTS 65+,HOMECARE - C&V,2103646303,1000003398
04.04.2023,ADULT SOCIAL CARE,LONDON CARE LTD,660.18,PHY LTS 65+,HOMECARE - C&V,2103646200,1000003398
04.04.2023,ADULT SOCIAL CARE,LONDON CARE LTD,664.74,PHY LTS 65+,HOMECARE - C&V,2103646181,1000003398
04.04.2023,ADULT SOCIAL CARE,LONDON CARE LTD,669.56,PHY LTS 65+,HOMECARE - C&V,2103646318,1000003398
04.04.2023,ADULT SOCIAL CARE,LONDON CARE LTD,669.66,PHY LTS 65+,HOMECARE - C&V,2103646159,1000003398
04.04.2023,ADULT SOCIAL CARE,LONDON CARE LTD,674.31,PHY LTS 65+,HOMECARE - C&V,2103646431,1000003398
04.04.2023,ADULT SOCIAL CARE,LONDON CARE LTD,683.64,PHY LTS 65+,HOMECARE - C&V,2103646420,1000003398
04.04.2023,ADULT SOCIAL CARE,LONDON CARE LTD,688.39,PHY LTS 65+,HOMECARE - C&V,2103646332,1000003398
04.04.2023,ADULT SOCIAL CARE,LONDON CARE LTD,697.89,PHY LTS 65+,HOMECARE - C&V,2103646423,1000003398
04.04.2023,ADULT SOCIAL CARE,LONDON CARE LTD,723.56,PHY LTS 65+,HOMECARE - C&V,2103646327,1000003398
04.04.2023,ADULT SOCIAL CARE,LONDON CARE LTD,726.64,PHY LTS 65+,HOMECARE - C&V,2103646220,1000003398
04.04.2023,ADULT SOCIAL CARE,LONDON CARE LTD,728.28,PHY LTS 65+,HOMECARE - C&V,2103646203,1000003398
04.04.2023,ADULT SOCIAL CARE,LONDON CARE LTD,731.22,PHY LTS 65+,HOMECARE - C&V,2103646243,1000003398
04.04.2023,ADULT SOCIAL CARE,LONDON CARE LTD,731.23,PHY LTS 65+,HOMECARE - C&V,2103646283,1000003398
04.04.2023,ADULT SOCIAL CARE,LONDON CARE LTD,740.68,PHY LTS 65+,HOMECARE - C&V,2103646306,1000003398
04.04.2023,ADULT SOCIAL CARE,LONDON CARE LTD,745.4,PHY LTS 65+,HOMECARE - C&V,2103646280,1000003398
04.04.2023,ADULT SOCIAL CARE,LONDON CARE LTD,759.69,PHY LTS 65+,HOMECARE - C&V,2103646213,1000003398
04.04.2023,ADULT SOCIAL CARE,LONDON CARE LTD,764.15,PHY LTS 65+,HOMECARE - C&V,2103646132,1000003398
04.04.2023,ADULT SOCIAL CARE,LONDON CARE LTD,768.97,PHY LTS 65+,HOMECARE - C&V,2103646390,1000003398
04.04.2023,ADULT SOCIAL CARE,LONDON CARE LTD,769.23,PHY LTS 65+,HOMECARE - C&V,2103646235,1000003398
04.04.2023,ADULT SOCIAL CARE,LONDON CARE LTD,769.3,PHY LTS 65+,HOMECARE - C&V,2103646275,1000003398
04.04.2023,ADULT SOCIAL CARE,LONDON CARE LTD,773.94,PHY LTS 65+,HOMECARE - C&V,2103646247,1000003398
04.04.2023,ADULT SOCIAL CARE,LONDON CARE LTD,807.16,PHY LTS 65+,HOMECARE - C&V,2103646241,1000003398
04.04.2023,ADULT SOCIAL CARE,LONDON CARE LTD,807.16,PHY LTS 65+,HOMECARE - C&V,2103646382,1000003398
04.04.2023,ADULT SOCIAL CARE,LONDON CARE LTD,821.38,PHY LTS 65+,HOMECARE - C&V,2103646164,1000003398
04.04.2023,ADULT SOCIAL CARE,LONDON CARE LTD,840.36,PHY LTS 65+,HOMECARE - C&V,2103646290,1000003398
04.04.2023,ADULT SOCIAL CARE,LONDON CARE LTD,846.08,PHY LTS 65+,HOMECARE - C&V,2103646242,1000003398
04.04.2023,ADULT SOCIAL CARE,LONDON CARE LTD,854.44,PHY LTS 65+,HOMECARE - C&V,2103646231,1000003398
04.04.2023,ADULT SOCIAL CARE,LONDON CARE LTD,859.46,PHY LTS 65+,HOMECARE - C&V,2103646118,1000003398
04.04.2023,ADULT SOCIAL CARE,LONDON CARE LTD,869.21,PHY LTS 65+,HOMECARE - C&V,2103646335,1000003398
04.04.2023,ADULT SOCIAL CARE,LONDON CARE LTD,885.59,PHY LTS 65+,HOMECARE - C&V,2103646218,1000003398
04.04.2023,ADULT SOCIAL CARE,LONDON CARE LTD,907,PHY LTS 65+,HOMECARE - C&V,2103646146,1000003398
04.04.2023,ADULT SOCIAL CARE,LONDON CARE LTD,918.09,PHY LTS 65+,HOMECARE - C&V,2103646331,1000003398
04.04.2023,ADULT SOCIAL CARE,LONDON CARE LTD,921.23,PHY LTS 65+,HOMECARE - C&V,2103646253,1000003398
04.04.2023,ADULT SOCIAL CARE,LONDON CARE LTD,935.46,PHY LTS 65+,HOMECARE - C&V,2103646443,1000003398
04.04.2023,ADULT SOCIAL CARE,LONDON CARE LTD,940.2,PHY LTS 65+,HOMECARE - C&V,2103646287,1000003398
04.04.2023,ADULT SOCIAL CARE,LONDON CARE LTD,944.94,PHY LTS 65+,HOMECARE - C&V,2103646377,1000003398
04.04.2023,ADULT SOCIAL CARE,LONDON CARE LTD,944.96,PHY LTS 65+,HOMECARE - C&V,2103646364,1000003398
04.04.2023,ADULT SOCIAL CARE,LONDON CARE LTD,949.88,PHY LTS 65+,HOMECARE - C&V,2103646240,1000003398
04.04.2023,ADULT SOCIAL CARE,LONDON CARE LTD,959.18,PHY LTS 65+,HOMECARE - C&V,2103646295,1000003398
04.04.2023,ADULT SOCIAL CARE,LONDON CARE LTD,973.63,PHY LTS 65+,HOMECARE - C&V,2103646256,1000003398
04.04.2023,ADULT SOCIAL CARE,LONDON CARE LTD,978.38,PHY LTS 65+,HOMECARE - C&V,2103646315,1000003398
04.04.2023,ADULT SOCIAL CARE,LONDON CARE LTD,987.54,PHY LTS 65+,HOMECARE - C&V,2103646126,1000003398
04.04.2023,ADULT SOCIAL CARE,LONDON CARE LTD,992.65,PHY LTS 65+,HOMECARE - C&V,2103646451,1000003398
04.04.2023,ADULT SOCIAL CARE,LONDON CARE LTD,"1,006.63",PHY LTS 65+,HOMECARE - C&V,2103646250,1000003398
04.04.2023,ADULT SOCIAL CARE,LONDON CARE LTD,"1,006.67",PHY LTS 65+,HOMECARE - C&V,2103646279,1000003398
04.04.2023,ADULT SOCIAL CARE,LONDON CARE LTD,"1,025.64",PHY LTS 65+,HOMECARE - C&V,2103646422,1000003398
04.04.2023,ADULT SOCIAL CARE,LONDON CARE LTD,"1,030.42",PHY LTS 65+,HOMECARE - C&V,2103646245,1000003398
04.04.2023,ADULT SOCIAL CARE,LONDON CARE LTD,"1,035.19",PHY LTS 65+,HOMECARE - C&V,2103646139,1000003398
04.04.2023,ADULT SOCIAL CARE,LONDON CARE LTD,"1,038.00",PHY LTS 65+,HOMECARE - C&V,2103646210,1000003398
04.04.2023,ADULT SOCIAL CARE,LONDON CARE LTD,"1,039.97",PHY LTS 65+,HOMECARE - C&V,2103646399,1000003398
04.04.2023,ADULT SOCIAL CARE,LONDON CARE LTD,"1,048.35",PHY LTS 65+,HOMECARE - C&V,2103646251,1000003398
04.04.2023,ADULT SOCIAL CARE,LONDON CARE LTD,"1,058.84",PHY LTS 65+,HOMECARE - C&V,2103646329,1000003398
04.04.2023,ADULT SOCIAL CARE,LONDON CARE LTD,"1,077.69",PHY LTS 65+,HOMECARE - C&V,2103646349,1000003398
04.04.2023,ADULT SOCIAL CARE,LONDON CARE LTD,"1,082.44",PHY LTS 65+,HOMECARE - C&V,2103646233,1000003398
04.04.2023,ADULT SOCIAL CARE,LONDON CARE LTD,"1,096.93",PHY LTS 65+,HOMECARE - C&V,2103646305,1000003398
04.04.2023,ADULT SOCIAL CARE,LONDON CARE LTD,"1,096.96",PHY LTS 65+,HOMECARE - C&V,2103646375,1000003398
04.04.2023,ADULT SOCIAL CARE,LONDON CARE LTD,"1,122.22",PHY LTS 65+,HOMECARE - C&V,2103646292,1000003398
04.04.2023,ADULT SOCIAL CARE,LONDON CARE LTD,"1,139.62",PHY LTS 65+,HOMECARE - C&V,2103646383,1000003398
04.04.2023,ADULT SOCIAL CARE,LONDON CARE LTD,"1,167.97",PHY LTS 65+,HOMECARE - C&V,2103646323,1000003398
04.04.2023,ADULT SOCIAL CARE,LONDON CARE LTD,"1,180.96",PHY LTS 65+,HOMECARE - C&V,2103646374,1000003398
04.04.2023,ADULT SOCIAL CARE,LONDON CARE LTD,"1,201.47",PHY LTS 65+,HOMECARE - C&V,2103646344,1000003398
04.04.2023,ADULT SOCIAL CARE,LONDON CARE LTD,"1,203.46",PHY LTS 65+,HOMECARE - C&V,2103646393,1000003398
04.04.2023,ADULT SOCIAL CARE,LONDON CARE LTD,"1,206.21",PHY LTS 65+,HOMECARE - C&V,2103646216,1000003398
04.04.2023,ADULT SOCIAL CARE,LONDON CARE LTD,"1,217.07",PHY LTS 65+,HOMECARE - C&V,2103646430,1000003398
04.04.2023,ADULT SOCIAL CARE,LONDON CARE LTD,"1,225.22",PHY LTS 65+,HOMECARE - C&V,2103646381,1000003398
04.04.2023,ADULT SOCIAL CARE,LONDON CARE LTD,"1,244.95",PHY LTS 65+,HOMECARE - C&V,2103646142,1000003398
04.04.2023,ADULT SOCIAL CARE,LONDON CARE LTD,"1,253.65",PHY LTS 65+,HOMECARE - C&V,2103646338,1000003398
04.04.2023,ADULT SOCIAL CARE,LONDON CARE LTD,"1,258.35",PHY LTS 65+,HOMECARE - C&V,2103646370,1000003398
04.04.2023,ADULT SOCIAL CARE,LONDON CARE LTD,"1,281.79",PHY LTS 65+,HOMECARE - C&V,2103646301,1000003398
04.04.2023,ADULT SOCIAL CARE,LONDON CARE LTD,"1,294.84",PHY LTS 65+,HOMECARE - C&V,2103646192,1000003398
04.04.2023,ADULT SOCIAL CARE,LONDON CARE LTD,"1,301.03",PHY LTS 65+,HOMECARE - C&V,2103646426,1000003398
04.04.2023,ADULT SOCIAL CARE,LONDON CARE LTD,"1,315.47",PHY LTS 65+,HOMECARE - C&V,2103646170,1000003398
04.04.2023,ADULT SOCIAL CARE,LONDON CARE LTD,"1,325.80",PHY LTS 65+,HOMECARE - C&V,2103646416,1000003398
04.04.2023,ADULT SOCIAL CARE,LONDON CARE LTD,"1,329.62",PHY LTS 65+,HOMECARE - C&V,2103646320,1000003398
04.04.2023,ADULT SOCIAL CARE,LONDON CARE LTD,"1,334.39",PHY LTS 65+,HOMECARE - C&V,2103646437,1000003398
04.04.2023,ADULT SOCIAL CARE,LONDON CARE LTD,"1,343.83",PHY LTS 65+,HOMECARE - C&V,2103646249,1000003398
04.04.2023,ADULT SOCIAL CARE,LONDON CARE LTD,"1,353.25",PHY LTS 65+,HOMECARE - C&V,2103646162,1000003398
04.04.2023,ADULT SOCIAL CARE,LONDON CARE LTD,"1,386.13",PHY LTS 65+,HOMECARE - C&V,2103646274,1000003398
04.04.2023,ADULT SOCIAL CARE,LONDON CARE LTD,"1,405.43",PHY LTS 65+,HOMECARE - C&V,2103646445,1000003398
04.04.2023,ADULT SOCIAL CARE,LONDON CARE LTD,"1,424.34",PHY LTS 65+,HOMECARE - C&V,2103646120,1000003398
04.04.2023,ADULT SOCIAL CARE,LONDON CARE LTD,"1,438.58",PHY LTS 65+,HOMECARE - C&V,2103646418,1000003398
04.04.2023,ADULT SOCIAL CARE,LONDON CARE LTD,"1,438.64",PHY LTS 65+,HOMECARE - C&V,2103646316,1000003398
04.04.2023,ADULT SOCIAL CARE,LONDON CARE LTD,"1,483.97",PHY LTS 65+,HOMECARE - C&V,2103646179,1000003398
04.04.2023,ADULT SOCIAL CARE,LONDON CARE LTD,"1,495.63",PHY LTS 65+,HOMECARE - C&V,2103646395,1000003398
04.04.2023,ADULT SOCIAL CARE,LONDON CARE LTD,"1,543.15",PHY LTS 65+,HOMECARE - C&V,2103646155,1000003398
04.04.2023,ADULT SOCIAL CARE,LONDON CARE LTD,"1,543.32",PHY LTS 65+,HOMECARE - C&V,2103646147,1000003398
04.04.2023,ADULT SOCIAL CARE,LONDON CARE LTD,"1,723.15",PHY LTS 65+,HOMECARE - C&V,2103646421,1000003398
04.04.2023,ADULT SOCIAL CARE,LONDON CARE LTD,"1,733.59",PHY LTS 65+,HOMECARE - C&V,2103646154,1000003398
04.04.2023,ADULT SOCIAL CARE,LONDON CARE LTD,"1,794.93",PHY LTS 65+,HOMECARE - C&V,2103646298,1000003398
04.04.2023,ADULT SOCIAL CARE,LONDON CARE LTD,"1,799.17",PHY LTS 65+,HOMECARE - C&V,2103646122,1000003398
04.04.2023,ADULT SOCIAL CARE,LONDON CARE LTD,"1,860.92",PHY LTS 65+,HOMECARE - C&V,2103646424,1000003398
04.04.2023,ADULT SOCIAL CARE,LONDON CARE LTD,"1,961.08",PHY LTS 65+,HOMECARE - C&V,2103646356,1000003398
04.04.2023,ADULT SOCIAL CARE,LONDON CARE LTD,"2,041.12",PHY LTS 65+,HOMECARE - C&V,2103646325,1000003398
04.04.2023,ADULT SOCIAL CARE,LONDON CARE LTD,"2,108.44",PHY LTS 65+,HOMECARE - C&V,2103646465,1000003398
04.04.2023,ADULT SOCIAL CARE,LONDON CARE LTD,"2,150.66",PHY LTS 65+,HOMECARE - C&V,2103646458,1000003398
04.04.2023,ADULT SOCIAL CARE,LONDON CARE LTD,"2,379.15",PHY LTS 65+,HOMECARE - C&V,2103646130,1000003398
04.04.2023,ADULT SOCIAL CARE,LONDON CARE LTD,"2,383.90",PHY LTS 65+,HOMECARE - C&V,2103646128,1000003398
04.04.2023,ADULT SOCIAL CARE,LONDON CARE LTD,"2,393.38",PHY LTS 65+,HOMECARE - C&V,2103646187,1000003398
04.04.2023,ADULT SOCIAL CARE,LONDON CARE LTD,"2,412.40",PHY LTS 65+,HOMECARE - C&V,2103646198,1000003398
04.04.2023,ADULT SOCIAL CARE,LONDON CARE LTD,"2,464.60",PHY LTS 65+,HOMECARE - C&V,2103646199,1000003398
04.04.2023,ADULT SOCIAL CARE,LONDON CARE LTD,"2,511.99",PHY LTS 65+,HOMECARE - C&V,2103646168,1000003398
04.04.2023,ADULT SOCIAL CARE,LONDON CARE LTD,"2,540.60",PHY LTS 65+,HOMECARE - C&V,2103646440,1000003398
04.04.2023,ADULT SOCIAL CARE,LONDON CARE LTD,"2,573.72",PHY LTS 65+,HOMECARE - C&V,2103646470,1000003398
04.04.2023,ADULT SOCIAL CARE,LONDON CARE LTD,"2,592.84",PHY LTS 65+,HOMECARE - C&V,2103646386,1000003398
04.04.2023,ADULT SOCIAL CARE,LONDON CARE LTD,"2,600.68",PHY LTS 65+,HOMECARE - C&V,2103646264,1000003398
04.04.2023,ADULT SOCIAL CARE,LONDON CARE LTD,"2,673.14",PHY LTS 65+,HOMECARE - C&V,2103646311,1000003398
04.04.2023,ADULT SOCIAL CARE,LONDON CARE LTD,"2,740.06",PHY LTS 65+,HOMECARE - C&V,2103646127,1000003398
04.04.2023,ADULT SOCIAL CARE,LONDON CARE LTD,"2,858.22",PHY LTS 65+,HOMECARE - C&V,2103646447,1000003398
04.04.2023,ADULT SOCIAL CARE,LONDON CARE LTD,"2,910.64",PHY LTS 65+,HOMECARE - C&V,2103646459,1000003398
04.04.2023,ADULT SOCIAL CARE,LONDON CARE LTD,"2,996.01",PHY LTS 65+,HOMECARE - C&V,2103646123,1000003398
04.04.2023,ADULT SOCIAL CARE,LONDON CARE LTD,"3,162.00",PHY LTS 65+,HOMECARE - C&V,2103646450,1000003398
04.04.2023,ADULT SOCIAL CARE,LONDON CARE LTD,"3,180.36",PHY LTS 65+,HOMECARE - C&V,2103646205,1000003398
04.04.2023,ADULT SOCIAL CARE,LONDON CARE LTD,"3,312.82",PHY LTS 65+,HOMECARE - C&V,2103646177,1000003398
04.04.2023,ADULT SOCIAL CARE,LONDON CARE LTD,"3,341.16",PHY LTS 65+,HOMECARE - C&V,2103646117,1000003398
04.04.2023,ADULT SOCIAL CARE,LONDON CARE LTD,"3,631.98",PHY LTS 65+,HOMECARE - C&V,2103646267,1000003398
04.04.2023,ADULT SOCIAL CARE,LONDON CARE LTD,"3,660.01",PHY LTS 65+,HOMECARE - C&V,2103646269,1000003398
04.04.2023,ADULT SOCIAL CARE,LONDON CARE LTD,"3,826.27",PHY LTS 65+,HOMECARE - C&V,2103646361,1000003398
04.04.2023,ADULT SOCIAL CARE,CARE DIRECT UK LTD,691.08,PHY LTS 65+,HOMECARE - C&V,2103646485,1000066322
04.04.2023,ADULT SOCIAL CARE,UNIQUE PERSONNEL (UK) LTD,284.76,PHY LTS 65+,HOMECARE - C&V,2103646496,1000075451
04.04.2023,ADULT SOCIAL CARE,SAGECARE LTD,261.25,PHY LTS 65+,HOMECARE - C&V,2103646570,1000080924
04.04.2023,ADULT SOCIAL CARE,SAGECARE LTD,265.34,PHY LTS 65+,HOMECARE - C&V,2103646635,1000080924
04.04.2023,ADULT SOCIAL CARE,SAGECARE LTD,270.73,PHY LTS 65+,HOMECARE - C&V,2103646536,1000080924
04.04.2023,ADULT SOCIAL CARE,SAGECARE LTD,280.08,PHY LTS 65+,HOMECARE - C&V,2103646650,1000080924
04.04.2023,ADULT SOCIAL CARE,SAGECARE LTD,284.88,PHY LTS 65+,HOMECARE - C&V,2103646576,1000080924
04.04.2023,ADULT SOCIAL CARE,SAGECARE LTD,289.71,PHY LTS 65+,HOMECARE - C&V,2103646601,1000080924
04.04.2023,ADULT SOCIAL CARE,SAGECARE LTD,294.3,PHY LTS 65+,HOMECARE - C&V,2103646532,1000080924
04.04.2023,ADULT SOCIAL CARE,SAGECARE LTD,299.09,PHY LTS 65+,HOMECARE - C&V,2103646657,1000080924
04.04.2023,ADULT SOCIAL CARE,SAGECARE LTD,365.5,PHY LTS 65+,HOMECARE - C&V,2103646658,1000080924
04.04.2023,ADULT SOCIAL CARE,SAGECARE LTD,380,PHY LTS 65+,HOMECARE - C&V,2103646633,1000080924
04.04.2023,ADULT SOCIAL CARE,SAGECARE LTD,381.64,PHY LTS 65+,HOMECARE - C&V,2103646582,1000080924
04.04.2023,ADULT SOCIAL CARE,SAGECARE LTD,389.25,PHY LTS 65+,HOMECARE - C&V,2103646651,1000080924
04.04.2023,ADULT SOCIAL CARE,SAGECARE LTD,403.48,PHY LTS 65+,HOMECARE - C&V,2103646692,1000080924
04.04.2023,ADULT SOCIAL CARE,SAGECARE LTD,408.26,PHY LTS 65+,HOMECARE - C&V,2103646561,1000080924
04.04.2023,ADULT SOCIAL CARE,SAGECARE LTD,451,PHY LTS 65+,HOMECARE - C&V,2103646543,1000080924
04.04.2023,ADULT SOCIAL CARE,SAGECARE LTD,451.08,PHY LTS 65+,HOMECARE - C&V,2103646634,1000080924
04.04.2023,ADULT SOCIAL CARE,SAGECARE LTD,455.75,PHY LTS 65+,HOMECARE - C&V,2103646606,1000080924
04.04.2023,ADULT SOCIAL CARE,SAGECARE LTD,479.45,PHY LTS 65+,HOMECARE - C&V,2103646529,1000080924
04.04.2023,ADULT SOCIAL CARE,SAGECARE LTD,485.18,PHY LTS 65+,HOMECARE - C&V,2103646619,1000080924
04.04.2023,ADULT SOCIAL CARE,SAGECARE LTD,493.79,PHY LTS 65+,HOMECARE - C&V,2103646654,1000080924
04.04.2023,ADULT SOCIAL CARE,SAGECARE LTD,517.75,PHY LTS 65+,HOMECARE - C&V,2103646674,1000080924
04.04.2023,ADULT SOCIAL CARE,SAGECARE LTD,531.72,PHY LTS 65+,HOMECARE - C&V,2103646639,1000080924
04.04.2023,ADULT SOCIAL CARE,SAGECARE LTD,532,PHY LTS 65+,HOMECARE - C&V,2103646559,1000080924
04.04.2023,ADULT SOCIAL CARE,SAGECARE LTD,560.26,PHY LTS 65+,HOMECARE - C&V,2103646602,1000080924
04.04.2023,ADULT SOCIAL CARE,SAGECARE LTD,565.08,PHY LTS 65+,HOMECARE - C&V,2103646625,1000080924
04.04.2023,ADULT SOCIAL CARE,SAGECARE LTD,579.25,PHY LTS 65+,HOMECARE - C&V,2103646617,1000080924
04.04.2023,ADULT SOCIAL CARE,SAGECARE LTD,593.52,PHY LTS 65+,HOMECARE - C&V,2103646659,1000080924
04.04.2023,ADULT SOCIAL CARE,SAGECARE LTD,607.93,PHY LTS 65+,HOMECARE - C&V,2103646685,1000080924
04.04.2023,ADULT SOCIAL CARE,SAGECARE LTD,612.49,PHY LTS 65+,HOMECARE - C&V,2103646677,1000080924
04.04.2023,ADULT SOCIAL CARE,SAGECARE LTD,616.19,PHY LTS 65+,HOMECARE - C&V,2103646511,1000080924
04.04.2023,ADULT SOCIAL CARE,SAGECARE LTD,619.18,PHY LTS 65+,HOMECARE - C&V,2103646628,1000080924
04.04.2023,ADULT SOCIAL CARE,SAGECARE LTD,631.46,PHY LTS 65+,HOMECARE - C&V,2103646642,1000080924
04.04.2023,ADULT SOCIAL CARE,SAGECARE LTD,645.72,PHY LTS 65+,HOMECARE - C&V,2103646586,1000080924
04.04.2023,ADULT SOCIAL CARE,SAGECARE LTD,655.25,PHY LTS 65+,HOMECARE - C&V,2103646678,1000080924
04.04.2023,ADULT SOCIAL CARE,SAGECARE LTD,670.42,PHY LTS 65+,HOMECARE - C&V,2103646527,1000080924
04.04.2023,ADULT SOCIAL CARE,SAGECARE LTD,688.47,PHY LTS 65+,HOMECARE - C&V,2103646555,1000080924
04.04.2023,ADULT SOCIAL CARE,SAGECARE LTD,692,PHY LTS 65+,HOMECARE - C&V,2103646669,1000080924
04.04.2023,ADULT SOCIAL CARE,SAGECARE LTD,702.68,PHY LTS 65+,HOMECARE - C&V,2103646542,1000080924
04.04.2023,ADULT SOCIAL CARE,SAGECARE LTD,745.42,PHY LTS 65+,HOMECARE - C&V,2103646545,1000080924
04.04.2023,ADULT SOCIAL CARE,SAGECARE LTD,750.21,PHY LTS 65+,HOMECARE - C&V,2103646656,1000080924
04.04.2023,ADULT SOCIAL CARE,SAGECARE LTD,759.72,PHY LTS 65+,HOMECARE - C&V,2103646590,1000080924
04.04.2023,ADULT SOCIAL CARE,SAGECARE LTD,792.91,PHY LTS 65+,HOMECARE - C&V,2103646537,1000080924
04.04.2023,ADULT SOCIAL CARE,SAGECARE LTD,793.08,PHY LTS 65+,HOMECARE - C&V,2103646531,1000080924
04.04.2023,ADULT SOCIAL CARE,SAGECARE LTD,793.25,PHY LTS 65+,HOMECARE - C&V,2103646689,1000080924
04.04.2023,ADULT SOCIAL CARE,SAGECARE LTD,793.63,PHY LTS 65+,HOMECARE - C&V,2103646644,1000080924
04.04.2023,ADULT SOCIAL CARE,SAGECARE LTD,797.72,PHY LTS 65+,HOMECARE - C&V,2103646670,1000080924
04.04.2023,ADULT SOCIAL CARE,SAGECARE LTD,811.75,PHY LTS 65+,HOMECARE - C&V,2103646584,1000080924
04.04.2023,ADULT SOCIAL CARE,SAGECARE LTD,845.17,PHY LTS 65+,HOMECARE - C&V,2103646663,1000080924
04.04.2023,ADULT SOCIAL CARE,SAGECARE LTD,851.3,PHY LTS 65+,HOMECARE - C&V,2103646665,1000080924
04.04.2023,ADULT SOCIAL CARE,SAGECARE LTD,854.76,PHY LTS 65+,HOMECARE - C&V,2103646605,1000080924
04.04.2023,ADULT SOCIAL CARE,SAGECARE LTD,901,PHY LTS 65+,HOMECARE - C&V,2103646563,1000080924
04.04.2023,ADULT SOCIAL CARE,SAGECARE LTD,907.18,PHY LTS 65+,HOMECARE - C&V,2103646630,1000080924
04.04.2023,ADULT SOCIAL CARE,SAGECARE LTD,949.71,PHY LTS 65+,HOMECARE - C&V,2103646591,1000080924
04.04.2023,ADULT SOCIAL CARE,SAGECARE LTD,968.69,PHY LTS 65+,HOMECARE - C&V,2103646631,1000080924
04.04.2023,ADULT SOCIAL CARE,SAGECARE LTD,978.15,PHY LTS 65+,HOMECARE - C&V,2103646662,1000080924
04.04.2023,ADULT SOCIAL CARE,SAGECARE LTD,"1,016.23",PHY LTS 65+,HOMECARE - C&V,2103646564,1000080924
04.04.2023,ADULT SOCIAL CARE,SAGECARE LTD,"1,030.23",PHY LTS 65+,HOMECARE - C&V,2103646675,1000080924
04.04.2023,ADULT SOCIAL CARE,SAGECARE LTD,"1,034.94",PHY LTS 65+,HOMECARE - C&V,2103646682,1000080924
04.04.2023,ADULT SOCIAL CARE,SAGECARE LTD,"1,049.42",PHY LTS 65+,HOMECARE - C&V,2103646522,1000080924
04.04.2023,ADULT SOCIAL CARE,SAGECARE LTD,"1,054.16",PHY LTS 65+,HOMECARE - C&V,2103646541,1000080924
04.04.2023,ADULT SOCIAL CARE,SAGECARE LTD,"1,073.20",PHY LTS 65+,HOMECARE - C&V,2103646627,1000080924
04.04.2023,ADULT SOCIAL CARE,SAGECARE LTD,"1,087.19",PHY LTS 65+,HOMECARE - C&V,2103646565,1000080924
04.04.2023,ADULT SOCIAL CARE,SAGECARE LTD,"1,087.23",PHY LTS 65+,HOMECARE - C&V,2103646637,1000080924
04.04.2023,ADULT SOCIAL CARE,SAGECARE LTD,"1,101.64",PHY LTS 65+,HOMECARE - C&V,2103646613,1000080924
04.04.2023,ADULT SOCIAL CARE,SAGECARE LTD,"1,125.36",PHY LTS 65+,HOMECARE - C&V,2103646518,1000080924
04.04.2023,ADULT SOCIAL CARE,SAGECARE LTD,"1,130.16",PHY LTS 65+,HOMECARE - C&V,2103646583,1000080924
04.04.2023,ADULT SOCIAL CARE,SAGECARE LTD,"1,134.88",PHY LTS 65+,HOMECARE - C&V,2103646524,1000080924
04.04.2023,ADULT SOCIAL CARE,SAGECARE LTD,"1,139.68",PHY LTS 65+,HOMECARE - C&V,2103646528,1000080924
04.04.2023,ADULT SOCIAL CARE,SAGECARE LTD,"1,173.00",PHY LTS 65+,HOMECARE - C&V,2103646562,1000080924
04.04.2023,ADULT SOCIAL CARE,SAGECARE LTD,"1,182.34",PHY LTS 65+,HOMECARE - C&V,2103646540,1000080924
04.04.2023,ADULT SOCIAL CARE,SAGECARE LTD,"1,196.62",PHY LTS 65+,HOMECARE - C&V,2103646596,1000080924
04.04.2023,ADULT SOCIAL CARE,SAGECARE LTD,"1,215.72",PHY LTS 65+,HOMECARE - C&V,2103646640,1000080924
04.04.2023,ADULT SOCIAL CARE,SAGECARE LTD,"1,234.71",PHY LTS 65+,HOMECARE - C&V,2103646598,1000080924
04.04.2023,ADULT SOCIAL CARE,SAGECARE LTD,"1,239.14",PHY LTS 65+,HOMECARE - C&V,2103646569,1000080924
04.04.2023,ADULT SOCIAL CARE,SAGECARE LTD,"1,239.44",PHY LTS 65+,HOMECARE - C&V,2103646649,1000080924
04.04.2023,ADULT SOCIAL CARE,SAGECARE LTD,"1,244.20",PHY LTS 65+,HOMECARE - C&V,2103646691,1000080924
04.04.2023,ADULT SOCIAL CARE,SAGECARE LTD,"1,267.85",PHY LTS 65+,HOMECARE - C&V,2103646636,1000080924
04.04.2023,ADULT SOCIAL CARE,SAGECARE LTD,"1,343.68",PHY LTS 65+,HOMECARE - C&V,2103646629,1000080924
04.04.2023,ADULT SOCIAL CARE,SAGECARE LTD,"1,348.65",PHY LTS 65+,HOMECARE - C&V,2103646655,1000080924
04.04.2023,ADULT SOCIAL CARE,SAGECARE LTD,"1,400.91",PHY LTS 65+,HOMECARE - C&V,2103646672,1000080924
04.04.2023,ADULT SOCIAL CARE,SAGECARE LTD,"1,429.40",PHY LTS 65+,HOMECARE - C&V,2103646647,1000080924
04.04.2023,ADULT SOCIAL CARE,SAGECARE LTD,"1,476.43",PHY LTS 65+,HOMECARE - C&V,2103646593,1000080924
04.04.2023,ADULT SOCIAL CARE,SAGECARE LTD,"1,538.40",PHY LTS 65+,HOMECARE - C&V,2103646643,1000080924
04.04.2023,ADULT SOCIAL CARE,SAGECARE LTD,"1,548.05",PHY LTS 65+,HOMECARE - C&V,2103646687,1000080924
04.04.2023,ADULT SOCIAL CARE,SAGECARE LTD,"1,576.37",PHY LTS 65+,HOMECARE - C&V,2103646686,1000080924
04.04.2023,ADULT SOCIAL CARE,SAGECARE LTD,"1,656.85",PHY LTS 65+,HOMECARE - C&V,2103646611,1000080924
04.04.2023,ADULT SOCIAL CARE,SAGECARE LTD,"1,723.68",PHY LTS 65+,HOMECARE - C&V,2103646681,1000080924
04.04.2023,ADULT SOCIAL CARE,SAGECARE LTD,"1,799.15",PHY LTS 65+,HOMECARE - C&V,2103646609,1000080924
04.04.2023,ADULT SOCIAL CARE,SAGECARE LTD,"1,810.50",PHY LTS 65+,HOMECARE - C&V,2103646554,1000080924
04.04.2023,ADULT SOCIAL CARE,SAGECARE LTD,"2,022.33",PHY LTS 65+,HOMECARE - C&V,2103646550,1000080924
04.04.2023,ADULT SOCIAL CARE,SAGECARE LTD,"2,146.44",PHY LTS 65+,HOMECARE - C&V,2103646553,1000080924
04.04.2023,ADULT SOCIAL CARE,SAGECARE LTD,"2,170.23",PHY LTS 65+,HOMECARE - C&V,2103646572,1000080924
04.04.2023,ADULT SOCIAL CARE,SAGECARE LTD,"2,208.17",PHY LTS 65+,HOMECARE - C&V,2103646587,1000080924
04.04.2023,ADULT SOCIAL CARE,SAGECARE LTD,"2,212.61",PHY LTS 65+,HOMECARE - C&V,2103646684,1000080924
04.04.2023,ADULT SOCIAL CARE,SAGECARE LTD,"2,474.20",PHY LTS 65+,HOMECARE - C&V,2103646641,1000080924
04.04.2023,ADULT SOCIAL CARE,SAGECARE LTD,"2,578.69",PHY LTS 65+,HOMECARE - C&V,2103646507,1000080924
04.04.2023,ADULT SOCIAL CARE,SAGECARE LTD,"2,606.93",PHY LTS 65+,HOMECARE - C&V,2103646646,1000080924
04.04.2023,ADULT SOCIAL CARE,SAGECARE LTD,"2,616.49",PHY LTS 65+,HOMECARE - C&V,2103646575,1000080924
04.04.2023,ADULT SOCIAL CARE,SAGECARE LTD,"2,663.61",PHY LTS 65+,HOMECARE - C&V,2103646624,1000080924
04.04.2023,ADULT SOCIAL CARE,SAGECARE LTD,"2,725.52",PHY LTS 65+,HOMECARE - C&V,2103646568,1000080924
04.04.2023,ADULT SOCIAL CARE,SAGECARE LTD,"2,848.40",PHY LTS 65+,HOMECARE - C&V,2103646519,1000080924
04.04.2023,ADULT SOCIAL CARE,SAGECARE LTD,"2,881.00",PHY LTS 65+,HOMECARE - C&V,2103646588,1000080924
04.04.2023,ADULT SOCIAL CARE,SAGECARE LTD,"2,929.14",PHY LTS 65+,HOMECARE - C&V,2103646558,1000080924
04.04.2023,ADULT SOCIAL CARE,SAGECARE LTD,"2,943.61",PHY LTS 65+,HOMECARE - C&V,2103646622,1000080924
04.04.2023,ADULT SOCIAL CARE,SAGECARE LTD,"3,009.58",PHY LTS 65+,HOMECARE - C&V,2103646610,1000080924
04.04.2023,ADULT SOCIAL CARE,SAGECARE LTD,"3,229.33",PHY LTS 65+,HOMECARE - C&V,2103646693,1000080924
04.04.2023,ADULT SOCIAL CARE,SAGECARE LTD,"3,436.79",PHY LTS 65+,HOMECARE - C&V,2103646616,1000080924
04.04.2023,ADULT SOCIAL CARE,SAGECARE LTD,"3,845.11",PHY LTS 65+,HOMECARE - C&V,2103646680,1000080924
04.04.2023,ADULT SOCIAL CARE,LONDON CARE LTD,555.68,PHY LTS 65+,HOMECARE - SPOT,2103646387,1000003398
04.04.2023,ADULT SOCIAL CARE,CARE DIRECT UK LTD,251.3,PHY LTS 65+,HOMECARE - SPOT,2103646474,1000066322
04.04.2023,ADULT SOCIAL CARE,CARE DIRECT UK LTD,280,PHY LTS 65+,HOMECARE - SPOT,2103646486,1000066322
04.04.2023,ADULT SOCIAL CARE,CARE DIRECT UK LTD,327.59,PHY LTS 65+,HOMECARE - SPOT,2103646480,1000066322
04.04.2023,ADULT SOCIAL CARE,CARE DIRECT UK LTD,363.49,PHY LTS 65+,HOMECARE - SPOT,2103646478,1000066322
04.04.2023,ADULT SOCIAL CARE,CARE DIRECT UK LTD,412.85,PHY LTS 65+,HOMECARE - SPOT,2103646483,1000066322
04.04.2023,ADULT SOCIAL CARE,CARE DIRECT UK LTD,520.55,PHY LTS 65+,HOMECARE - SPOT,2103646491,1000066322
04.04.2023,ADULT SOCIAL CARE,CARE DIRECT UK LTD,556.45,PHY LTS 65+,HOMECARE - SPOT,2103646484,1000066322
04.04.2023,ADULT SOCIAL CARE,CARE DIRECT UK LTD,565.43,PHY LTS 65+,HOMECARE - SPOT,2103646473,1000066322
04.04.2023,ADULT SOCIAL CARE,CARE DIRECT UK LTD,583.38,PHY LTS 65+,HOMECARE - SPOT,2103646471,1000066322
04.04.2023,ADULT SOCIAL CARE,CARE DIRECT UK LTD,637.23,PHY LTS 65+,HOMECARE - SPOT,2103646476,1000066322
04.04.2023,ADULT SOCIAL CARE,CARE DIRECT UK LTD,"1,059.05",PHY LTS 65+,HOMECARE - SPOT,2103646494,1000066322
04.04.2023,ADULT SOCIAL CARE,LONDON CARE LTD,322.96,SEN LTS 65+,HOMECARE - C&V,2103646169,1000003398
04.04.2023,ADULT SOCIAL CARE,LONDON CARE LTD,512.75,SOCIAL ISOLATION,HOMECARE - C&V,2103646466,1000003398
04.04.2023,ADULT SOCIAL CARE,LONDON CARE LTD,683.68,SOCIAL ISOLATION,HOMECARE - C&V,2103646160,1000003398
04.04.2023,ADULT SOCIAL CARE,LONDON CARE LTD,"1,024.25",SOCIAL ISOLATION,HOMECARE - C&V,2103646113,1000003398
04.04.2023,ADULT SOCIAL CARE,SAGECARE LTD,331.5,SOCIAL ISOLATION,HOMECARE - C&V,2103646521,1000080924
04.04.2023,ADULT SOCIAL CARE,SAGECARE LTD,384.58,SOCIAL ISOLATION,HOMECARE - C&V,2103646510,1000080924
04.04.2023,ADULT SOCIAL CARE,SAGECARE LTD,"2,041.19",SOCIAL ISOLATION,HOMECARE - C&V,2103646621,1000080924
04.04.2023,ADULT SOCIAL CARE,SAGECARE LTD,"2,891.63",SOCIAL ISOLATION,HOMECARE - C&V,2103646551,1000080924
04.04.2023,ADULT SOCIAL CARE,SAGECARE LTD,"3,285.31",SOCIAL ISOLATION,HOMECARE - C&V,2103646592,1000080924
04.04.2023,ADULT SOCIAL CARE,SUPREME CARE SERVICES LTD,504,SPECIALIST CARE,SECTION 17 PAYMENTS TO AGENCIES/CARERS,2103646091,1000059416
04.04.2023,ADULT SOCIAL CARE,LONDON CARE LTD,365.5,SUB LTS 18-64,HOMECARE - C&V,2103646388,1000003398
04.04.2023,ADULT SOCIAL CARE,LONDON CARE LTD,436.88,SUB LTS 18-64,HOMECARE - C&V,2103646185,1000003398
04.04.2023,ADULT SOCIAL CARE,SAGECARE LTD,"1,219.43",SUB LTS 18-64,HOMECARE - C&V,2103646668,1000080924
04.04.2023,ASSET MANAGEMENT,SANDERSONS BUILDING SERVICES LTD,"1,127.33",DISREPAIR,BUILDING R&M,2103646761,3000002065
04.04.2023,ASSET MANAGEMENT,SANDERSONS BUILDING SERVICES LTD,"2,071.40",DISREPAIR,BUILDING R&M,2103646751,3000002065
04.04.2023,CENTRAL FUNCTIONS,BRESLIN CONSTRUCTION LTD,"1,280.00",COMMERCIAL PROPERTIES,BUILDING R&M,2103643818,3000001948
04.04.2023,CENTRAL FUNCTIONS,LAMBERT SMITH HAMPTON GROUP LTD,"16,367.50",TECHNICAL SUPPORT,PROFESSIONAL FEES,5902574130,1000060045
04.04.2023,CHIEF EXECUTIVE,THE LANDSCAPE PARTNERSHIP LTD,"1,423.00",CAPITAL PS (REGEN),CONSTRUCTION FEES  - EXTERNAL,5902574129,1000063812
04.04.2023,CHIEF EXECUTIVE'S OFFICE,SOLACE GROUP,287.5,STRATEGY AND CHANGE,TRAINING,5902574284,1967877
04.04.2023,CHILDREN AND FAMILIES,CLAP AND TOOT LTD,260,ADOPTION SUPP FUND 1,EXTERNAL AGENCIES AND BODIES,5902574323,1000087479
04.04.2023,CHILDREN AND FAMILIES,REDACTED PERSONAL DATA,380,ADOPTION SUPP FUND 1,EXTERNAL AGENCIES AND BODIES,REDACTED,REDACTED
04.04.2023,CHILDREN AND FAMILIES,REDACTED PERSONAL DATA,416.25,ADOPTION SUPP FUND 1,EXTERNAL AGENCIES AND BODIES,REDACTED,REDACTED
04.04.2023,CHILDREN AND FAMILIES,REDACTED PERSONAL DATA,585,ADOPTION SUPP FUND 1,EXTERNAL AGENCIES AND BODIES,REDACTED,REDACTED
04.04.2023,CHILDREN AND FAMILIES,TAVISTOCK & PORTMAN NHS FOUNDATION TRUST ,"2,436.00",ADOPTION SUPP FUND 2,EXTERNAL AGENCIES AND BODIES,5902574341,1991321
04.04.2023,CHILDREN AND FAMILIES,TAVISTOCK & PORTMAN NHS FOUNDATION TRUST ,"2,565.75",ADOPTION SUPP FUND 2,EXTERNAL AGENCIES AND BODIES,5902574339,1991321
04.04.2023,CHILDREN AND FAMILIES,ALICE MALLORIE THERAPY SERVICE,"1,200.00",ADOPTION SUPP FUND 2,EXTERNAL AGENCIES AND BODIES,5902574324,1000085491
04.04.2023,CHILDREN AND FAMILIES,THE SURREY CENTRE LIMITED,460,ADOPTION SUPP FUND 2,EXTERNAL AGENCIES AND BODIES,5902574394,1000088492
04.04.2023,CHILDREN AND FAMILIES,REDACTED PERSONAL DATA,440,ADOPTION SUPP FUND 2,EXTERNAL AGENCIES AND BODIES,REDACTED,REDACTED
04.04.2023,CHILDREN AND FAMILIES,REDACTED PERSONAL DATA,440,ADOPTION SUPP FUND 2,EXTERNAL AGENCIES AND BODIES,REDACTED,REDACTED
04.04.2023,CHILDREN AND FAMILIES,REDACTED PERSONAL DATA,490,ADOPTION SUPP FUND 2,EXTERNAL AGENCIES AND BODIES,REDACTED,REDACTED
04.04.2023,CHILDREN AND FAMILIES,REDACTED PERSONAL DATA,502.5,ADOPTION SUPP FUND 2,EXTERNAL AGENCIES AND BODIES,REDACTED,REDACTED
04.04.2023,CHILDREN AND FAMILIES,REDACTED PERSONAL DATA,"1,760.00",ADOPTION SUPP FUND 2,EXTERNAL AGENCIES AND BODIES,REDACTED,REDACTED
04.04.2023,CHILDREN AND FAMILIES,ZENITH CARS LTD,"1,435.00",AI TEAMS A-D,CLIENT TRANSPORT,5902574380,1000070570
04.04.2023,CHILDREN AND FAMILIES,CORAM FAMILY,"37,258.10",ALS INTER AGENCY,EXTERNAL AGENCIES AND BODIES,5902574303,1000023579
04.04.2023,CHILDREN AND FAMILIES,MADEIRA FLOWER LTD T/A MARIAS KITCHEN,"1,620.40",C&F GENERAL TRAINING,TRAINING,5902574343,1000058840
04.04.2023,CHILDREN AND FAMILIES,ITL NORTH EAST LTD,378.8,CENTRAL SUPPORT,INTERPRETING SERVICES,5902574404,1000082415
04.04.2023,CHILDREN AND FAMILIES,ITL NORTH EAST LTD,382.1,CENTRAL SUPPORT,INTERPRETING SERVICES,5902574404,1000082415
04.04.2023,CHILDREN AND FAMILIES,ITL NORTH EAST LTD,454.9,CENTRAL SUPPORT,INTERPRETING SERVICES,5902574404,1000082415
04.04.2023,CHILDREN AND FAMILIES,ITL NORTH EAST LTD,511.9,CENTRAL SUPPORT,INTERPRETING SERVICES,5902574404,1000082415
04.04.2023,CHILDREN AND FAMILIES,ITL NORTH EAST LTD,668.15,CENTRAL SUPPORT,INTERPRETING SERVICES,5902574404,1000082415
04.04.2023,CHILDREN AND FAMILIES,ITL NORTH EAST LTD,"1,190.60",CENTRAL SUPPORT,INTERPRETING SERVICES,5902574404,1000082415
04.04.2023,CHILDREN AND FAMILIES,ITL NORTH EAST LTD,"1,825.40",CENTRAL SUPPORT,INTERPRETING SERVICES,5902574404,1000082415
04.04.2023,CHILDREN AND FAMILIES,1ST PLACE CHILDREN & PARENTS CENTRE,"105,116.00",CHILD & FAM CENTRES,EXTERNAL AGENCIES AND BODIES,5902574167,1000049952
04.04.2023,CHILDREN AND FAMILIES,IVYDALE PRIMARY SCHOOL,"163,122.00",CHILD & FAM CENTRES,EXTERNAL AGENCIES AND BODIES,5902574181,5001000038
04.04.2023,CHILDREN AND FAMILIES,PILGRIM'S WAY PRIMARY SCHOOL,"133,309.00",CHILD & FAM CENTRES,EXTERNAL AGENCIES AND BODIES,5902574182,5001000054
04.04.2023,CHILDREN AND FAMILIES,DULWICH WOOD CHILDRENS CENTRE,"148,741.00",CHILD & FAM CENTRES,EXTERNAL AGENCIES AND BODIES,5902574183,5001000099
04.04.2023,CHILDREN AND FAMILIES,CAMERON & COOPER LIMITED,"17,980.00",CHILDREN�S RESID,RESIDENTIAL CARE,2103646095,1000087598
04.04.2023,CHILDREN AND FAMILIES,RICHMAN EMDR TRAINING LTD,"1,100.00",CLINICAL SERVICE,TRAINING,5902573465,1000089494
04.04.2023,CHILDREN AND FAMILIES,ELEVEN D'S LTD,"4,650.00",SEMI-IND LAC 16-17,EXTERNAL AGENCIES AND BODIES,2103646093,1000089531
04.04.2023,CHILDREN AND FAMILIES,ELEVEN D'S LTD,300,SEMI-IND LAC 16-17,OTHER PAYMENTS FOR CLIENTS,2103646094,1000089531
04.04.2023,CHILDREN AND FAMILIES,REDACTED PERSONAL DATA,895.71,SEMI-IND LAC 16-17,OTHER PAYMENTS FOR CLIENTS,REDACTED,REDACTED
04.04.2023,CHILDREN AND FAMILIES,OLIVER MILLINGTON,750,SFS MGMT & SUPPORT,LEGAL FEES & COURT COSTS,2103646744,1000051055
04.04.2023,CHILDREN AND FAMILIES,CHARLOTTE GEORGES,600,SFS MGMT & SUPPORT,LEGAL FEES & COURT COSTS,2103646726,1000081173
04.04.2023,CHILDREN AND FAMILIES,MALCOLM MACDONALD,600,SFS MGMT & SUPPORT,LEGAL FEES & COURT COSTS,2103646740,1000088717
04.04.2023,CHILDREN AND FAMILIES,ZENITH CARS LTD,360,TEAM A,CLIENT TRANSPORT,5902574380,1000070570
04.04.2023,CHILDREN AND FAMILIES,ZENITH CARS LTD,"1,870.00",TEAM B,CLIENT TRANSPORT,5902574380,1000070570
04.04.2023,CHILDREN AND FAMILIES,PARENTASSESS LTD,420,TEAM B,TRAINING,5902574392,1000089542
04.04.2023,CHILDREN AND FAMILIES,ZENITH CARS LTD,"1,985.00",TEAM C,CLIENT TRANSPORT,5902574380,1000070570
04.04.2023,CHILDREN AND FAMILIES,ZENITH CARS LTD,780,TEAM D,CLIENT TRANSPORT,5902574380,1000070570
04.04.2023,CHILDREN AND FAMILIES,PATHWAYS TO INDEPENDENCE,-891.79,UASC CARELEAVERS,COSTS RECOVERED,2103646714,1000088897
04.04.2023,CHILDREN AND FAMILIES,OWNLIFE LTD,"1,905.00",UASC CARELEAVERS,EXTERNAL AGENCIES AND BODIES,2103646501,1000056219
04.04.2023,CHILDREN AND FAMILIES,PATHWAYS TO INDEPENDENCE,"1,948.67",UASC CARELEAVERS,EXTERNAL AGENCIES AND BODIES,2103646098,1000088897
04.04.2023,COMMUNITIES,JOYMAC CARE LTD,"2,240.00",NO RECOURSE TO PUBLIC FUNDS,HOMECARE - C&V,2103646472,1000088577
04.04.2023,COMMUNITIES,REDACTED PERSONAL DATA,350,UKRAINIAN PROGRAMME,GRANTS,REDACTED,REDACTED
04.04.2023,COMMUNITIES,REDACTED PERSONAL DATA,350,UKRAINIAN PROGRAMME,GRANTS,REDACTED,REDACTED
04.04.2023,COMMUNITIES,REDACTED PERSONAL DATA,350,UKRAINIAN PROGRAMME,GRANTS,REDACTED,REDACTED
04.04.2023,COMMUNITIES,REDACTED PERSONAL DATA,350,UKRAINIAN PROGRAMME,GRANTS,REDACTED,REDACTED
04.04.2023,COMMUNITIES,REDACTED PERSONAL DATA,350,UKRAINIAN PROGRAMME,GRANTS,REDACTED,REDACTED
04.04.2023,COMMUNITIES,REDACTED PERSONAL DATA,350,UKRAINIAN PROGRAMME,GRANTS,REDACTED,REDACTED
04.04.2023,COMMUNITIES,REDACTED PERSONAL DATA,350,UKRAINIAN PROGRAMME,GRANTS,REDACTED,REDACTED
04.04.2023,COMMUNITIES,REDACTED PERSONAL DATA,350,UKRAINIAN PROGRAMME,GRANTS,REDACTED,REDACTED
04.04.2023,COMMUNITIES,REDACTED PERSONAL DATA,350,UKRAINIAN PROGRAMME,GRANTS,REDACTED,REDACTED
04.04.2023,COMMUNITIES,REDACTED PERSONAL DATA,350,UKRAINIAN PROGRAMME,GRANTS,REDACTED,REDACTED
04.04.2023,COMMUNITIES,REDACTED PERSONAL DATA,350,UKRAINIAN PROGRAMME,GRANTS,REDACTED,REDACTED
04.04.2023,COMMUNITIES,REDACTED PERSONAL DATA,350,UKRAINIAN PROGRAMME,GRANTS,REDACTED,REDACTED
04.04.2023,COMMUNITIES,REDACTED PERSONAL DATA,350,UKRAINIAN PROGRAMME,GRANTS,REDACTED,REDACTED
04.04.2023,COMMUNITIES,REDACTED PERSONAL DATA,350,UKRAINIAN PROGRAMME,GRANTS,REDACTED,REDACTED
04.04.2023,COMMUNITIES,REDACTED PERSONAL DATA,350,UKRAINIAN PROGRAMME,GRANTS,REDACTED,REDACTED
04.04.2023,COMMUNITIES,REDACTED PERSONAL DATA,350,UKRAINIAN PROGRAMME,GRANTS,REDACTED,REDACTED
04.04.2023,COMMUNITIES,REDACTED PERSONAL DATA,350,UKRAINIAN PROGRAMME,GRANTS,REDACTED,REDACTED
04.04.2023,COMMUNITIES,REDACTED PERSONAL DATA,350,UKRAINIAN PROGRAMME,GRANTS,REDACTED,REDACTED
04.04.2023,COMMUNITIES,REDACTED PERSONAL DATA,350,UKRAINIAN PROGRAMME,GRANTS,REDACTED,REDACTED
04.04.2023,COMMUNITIES,REDACTED PERSONAL DATA,400,UKRAINIAN PROGRAMME,GRANTS,REDACTED,REDACTED
04.04.2023,COMMUNITIES,REDACTED PERSONAL DATA,400,UKRAINIAN PROGRAMME,GRANTS,REDACTED,REDACTED
04.04.2023,COMMUNITIES,REDACTED PERSONAL DATA,400,UKRAINIAN PROGRAMME,GRANTS,REDACTED,REDACTED
04.04.2023,COMMUNITIES,REDACTED PERSONAL DATA,400,UKRAINIAN PROGRAMME,GRANTS,REDACTED,REDACTED
04.04.2023,COMMUNITIES,REDACTED PERSONAL DATA,400,UKRAINIAN PROGRAMME,GRANTS,REDACTED,REDACTED
04.04.2023,COMMUNITIES,REDACTED PERSONAL DATA,400,UKRAINIAN PROGRAMME,GRANTS,REDACTED,REDACTED
04.04.2023,COMMUNITIES,REDACTED PERSONAL DATA,400,UKRAINIAN PROGRAMME,GRANTS,REDACTED,REDACTED
04.04.2023,COMMUNITIES,REDACTED PERSONAL DATA,400,UKRAINIAN PROGRAMME,GRANTS,REDACTED,REDACTED
04.04.2023,COMMUNITIES,REDACTED PERSONAL DATA,400,UKRAINIAN PROGRAMME,GRANTS,REDACTED,REDACTED
04.04.2023,COMMUNITIES,REDACTED PERSONAL DATA,400,UKRAINIAN PROGRAMME,GRANTS,REDACTED,REDACTED
04.04.2023,COMMUNITIES,REDACTED PERSONAL DATA,600,UKRAINIAN PROGRAMME,GRANTS,REDACTED,REDACTED
04.04.2023,COMMUNITIES,REDACTED PERSONAL DATA,600,UKRAINIAN PROGRAMME,GRANTS,REDACTED,REDACTED
04.04.2023,COMMUNITIES,REDACTED PERSONAL DATA,600,UKRAINIAN PROGRAMME,GRANTS,REDACTED,REDACTED
04.04.2023,COMMUNITIES,REDACTED PERSONAL DATA,600,UKRAINIAN PROGRAMME,GRANTS,REDACTED,REDACTED
04.04.2023,COMMUNITIES,REDACTED PERSONAL DATA,600,UKRAINIAN PROGRAMME,GRANTS,REDACTED,REDACTED
04.04.2023,COMMUNITIES,REDACTED PERSONAL DATA,600,UKRAINIAN PROGRAMME,GRANTS,REDACTED,REDACTED
04.04.2023,COMMUNITIES,REDACTED PERSONAL DATA,600,UKRAINIAN PROGRAMME,GRANTS,REDACTED,REDACTED
04.04.2023,COMMUNITIES,REDACTED PERSONAL DATA,600,UKRAINIAN PROGRAMME,GRANTS,REDACTED,REDACTED
04.04.2023,COMMUNITIES,REDACTED PERSONAL DATA,600,UKRAINIAN PROGRAMME,GRANTS,REDACTED,REDACTED
04.04.2023,COMMUNITIES,REDACTED PERSONAL DATA,600,UKRAINIAN PROGRAMME,GRANTS,REDACTED,REDACTED
04.04.2023,COMMUNITIES,REDACTED PERSONAL DATA,600,UKRAINIAN PROGRAMME,GRANTS,REDACTED,REDACTED
04.04.2023,COMMUNITIES,REDACTED PERSONAL DATA,600,UKRAINIAN PROGRAMME,GRANTS,REDACTED,REDACTED
04.04.2023,COMMUNITIES,REDACTED PERSONAL DATA,800,UKRAINIAN PROGRAMME,GRANTS,REDACTED,REDACTED
04.04.2023,COMMUNITIES,REDACTED PERSONAL DATA,800,UKRAINIAN PROGRAMME,GRANTS,REDACTED,REDACTED
04.04.2023,COMMUNITIES,REDACTED PERSONAL DATA,800,UKRAINIAN PROGRAMME,GRANTS,REDACTED,REDACTED
04.04.2023,COMMUNITIES,REDACTED PERSONAL DATA,800,UKRAINIAN PROGRAMME,GRANTS,REDACTED,REDACTED
04.04.2023,COMMUNITIES,REDACTED PERSONAL DATA,800,UKRAINIAN PROGRAMME,GRANTS,REDACTED,REDACTED
04.04.2023,COMMUNITIES,REDACTED PERSONAL DATA,800,UKRAINIAN PROGRAMME,GRANTS,REDACTED,REDACTED
04.04.2023,COMMUNITIES,REDACTED PERSONAL DATA,800,UKRAINIAN PROGRAMME,GRANTS,REDACTED,REDACTED
04.04.2023,COMMUNITIES,REDACTED PERSONAL DATA,800,UKRAINIAN PROGRAMME,GRANTS,REDACTED,REDACTED
04.04.2023,COMMUNITIES,REDACTED PERSONAL DATA,800,UKRAINIAN PROGRAMME,GRANTS,REDACTED,REDACTED
04.04.2023,COMMUNITIES,REDACTED PERSONAL DATA,800,UKRAINIAN PROGRAMME,GRANTS,REDACTED,REDACTED
04.04.2023,COMMUNITIES,REDACTED PERSONAL DATA,800,UKRAINIAN PROGRAMME,GRANTS,REDACTED,REDACTED
04.04.2023,COMMUNITIES,REDACTED PERSONAL DATA,800,UKRAINIAN PROGRAMME,GRANTS,REDACTED,REDACTED
04.04.2023,COMMUNITIES,REDACTED PERSONAL DATA,800,UKRAINIAN PROGRAMME,GRANTS,REDACTED,REDACTED
04.04.2023,COMMUNITIES,REDACTED PERSONAL DATA,800,UKRAINIAN PROGRAMME,GRANTS,REDACTED,REDACTED
04.04.2023,COMMUNITIES,REDACTED PERSONAL DATA,800,UKRAINIAN PROGRAMME,GRANTS,REDACTED,REDACTED
04.04.2023,COMMUNITIES,REDACTED PERSONAL DATA,800,UKRAINIAN PROGRAMME,GRANTS,REDACTED,REDACTED
04.04.2023,COMMUNITIES,REDACTED PERSONAL DATA,800,UKRAINIAN PROGRAMME,GRANTS,REDACTED,REDACTED
04.04.2023,COMMUNITIES,REDACTED PERSONAL DATA,800,UKRAINIAN PROGRAMME,GRANTS,REDACTED,REDACTED
04.04.2023,COMMUNITIES,REDACTED PERSONAL DATA,800,UKRAINIAN PROGRAMME,GRANTS,REDACTED,REDACTED
04.04.2023,COMMUNITIES,REDACTED PERSONAL DATA,800,UKRAINIAN PROGRAMME,GRANTS,REDACTED,REDACTED
04.04.2023,COMMUNITIES,REDACTED PERSONAL DATA,800,UKRAINIAN PROGRAMME,GRANTS,REDACTED,REDACTED
04.04.2023,COMMUNITIES,REDACTED PERSONAL DATA,800,UKRAINIAN PROGRAMME,GRANTS,REDACTED,REDACTED
04.04.2023,COMMUNITIES,REDACTED PERSONAL DATA,800,UKRAINIAN PROGRAMME,GRANTS,REDACTED,REDACTED
04.04.2023,COMMUNITIES,REDACTED PERSONAL DATA,800,UKRAINIAN PROGRAMME,GRANTS,REDACTED,REDACTED
04.04.2023,COMMUNITIES,REDACTED PERSONAL DATA,800,UKRAINIAN PROGRAMME,GRANTS,REDACTED,REDACTED
04.04.2023,COMMUNITIES,REDACTED PERSONAL DATA,800,UKRAINIAN PROGRAMME,GRANTS,REDACTED,REDACTED
04.04.2023,COMMUNITIES,REDACTED PERSONAL DATA,800,UKRAINIAN PROGRAMME,GRANTS,REDACTED,REDACTED
04.04.2023,COMMUNITIES,REDACTED PERSONAL DATA,800,UKRAINIAN PROGRAMME,GRANTS,REDACTED,REDACTED
04.04.2023,COMMUNITIES,REDACTED PERSONAL DATA,800,UKRAINIAN PROGRAMME,GRANTS,REDACTED,REDACTED
04.04.2023,COMMUNITIES,REDACTED PERSONAL DATA,800,UKRAINIAN PROGRAMME,GRANTS,REDACTED,REDACTED
04.04.2023,COMMUNITIES,REDACTED PERSONAL DATA,800,UKRAINIAN PROGRAMME,GRANTS,REDACTED,REDACTED
04.04.2023,COMMUNITIES,REDACTED PERSONAL DATA,800,UKRAINIAN PROGRAMME,GRANTS,REDACTED,REDACTED
04.04.2023,COMMUNITIES,REDACTED PERSONAL DATA,800,UKRAINIAN PROGRAMME,GRANTS,REDACTED,REDACTED
04.04.2023,COMMUNITIES,REDACTED PERSONAL DATA,800,UKRAINIAN PROGRAMME,GRANTS,REDACTED,REDACTED
04.04.2023,COMMUNITIES,REDACTED PERSONAL DATA,800,UKRAINIAN PROGRAMME,GRANTS,REDACTED,REDACTED
04.04.2023,COMMUNITIES,REDACTED PERSONAL DATA,800,UKRAINIAN PROGRAMME,GRANTS,REDACTED,REDACTED
04.04.2023,COMMUNITIES,REDACTED PERSONAL DATA,800,UKRAINIAN PROGRAMME,GRANTS,REDACTED,REDACTED
04.04.2023,COMMUNITIES,REDACTED PERSONAL DATA,800,UKRAINIAN PROGRAMME,GRANTS,REDACTED,REDACTED
04.04.2023,COMMUNITIES,REDACTED PERSONAL DATA,800,UKRAINIAN PROGRAMME,GRANTS,REDACTED,REDACTED
04.04.2023,COMMUNITIES,REDACTED PERSONAL DATA,800,UKRAINIAN PROGRAMME,GRANTS,REDACTED,REDACTED
04.04.2023,COMMUNITIES,REDACTED PERSONAL DATA,800,UKRAINIAN PROGRAMME,GRANTS,REDACTED,REDACTED
04.04.2023,COMMUNITIES,REDACTED PERSONAL DATA,800,UKRAINIAN PROGRAMME,GRANTS,REDACTED,REDACTED
04.04.2023,COMMUNITIES,REDACTED PERSONAL DATA,800,UKRAINIAN PROGRAMME,GRANTS,REDACTED,REDACTED
04.04.2023,COMMUNITIES,REDACTED PERSONAL DATA,800,UKRAINIAN PROGRAMME,GRANTS,REDACTED,REDACTED
04.04.2023,COMMUNITIES,REDACTED PERSONAL DATA,800,UKRAINIAN PROGRAMME,GRANTS,REDACTED,REDACTED
04.04.2023,COMMUNITIES,REDACTED PERSONAL DATA,800,UKRAINIAN PROGRAMME,GRANTS,REDACTED,REDACTED
04.04.2023,COMMUNITIES,REDACTED PERSONAL DATA,800,UKRAINIAN PROGRAMME,GRANTS,REDACTED,REDACTED
04.04.2023,COMMUNITIES,REDACTED PERSONAL DATA,800,UKRAINIAN PROGRAMME,GRANTS,REDACTED,REDACTED
04.04.2023,COMMUNITIES,REDACTED PERSONAL DATA,800,UKRAINIAN PROGRAMME,GRANTS,REDACTED,REDACTED
04.04.2023,COMMUNITIES,REDACTED PERSONAL DATA,800,UKRAINIAN PROGRAMME,GRANTS,REDACTED,REDACTED
04.04.2023,COMMUNITIES,REDACTED PERSONAL DATA,800,UKRAINIAN PROGRAMME,GRANTS,REDACTED,REDACTED
04.04.2023,COMMUNITIES,REDACTED PERSONAL DATA,800,UKRAINIAN PROGRAMME,GRANTS,REDACTED,REDACTED
04.04.2023,COMMUNITIES,REDACTED PERSONAL DATA,800,UKRAINIAN PROGRAMME,GRANTS,REDACTED,REDACTED
04.04.2023,COMMUNITIES,REDACTED PERSONAL DATA,800,UKRAINIAN PROGRAMME,GRANTS,REDACTED,REDACTED
04.04.2023,COMMUNITIES,REDACTED PERSONAL DATA,800,UKRAINIAN PROGRAMME,GRANTS,REDACTED,REDACTED
04.04.2023,COMMUNITIES,REDACTED PERSONAL DATA,800,UKRAINIAN PROGRAMME,GRANTS,REDACTED,REDACTED
04.04.2023,COMMUNITIES,REDACTED PERSONAL DATA,800,UKRAINIAN PROGRAMME,GRANTS,REDACTED,REDACTED
04.04.2023,COMMUNITIES,REDACTED PERSONAL DATA,800,UKRAINIAN PROGRAMME,GRANTS,REDACTED,REDACTED
04.04.2023,COMMUNITIES,REDACTED PERSONAL DATA,800,UKRAINIAN PROGRAMME,GRANTS,REDACTED,REDACTED
04.04.2023,COMMUNITIES,REDACTED PERSONAL DATA,800,UKRAINIAN PROGRAMME,GRANTS,REDACTED,REDACTED
04.04.2023,COMMUNITIES,REDACTED PERSONAL DATA,800,UKRAINIAN PROGRAMME,GRANTS,REDACTED,REDACTED
04.04.2023,COMMUNITIES,REDACTED PERSONAL DATA,800,UKRAINIAN PROGRAMME,GRANTS,REDACTED,REDACTED
04.04.2023,COMMUNITIES,REDACTED PERSONAL DATA,800,UKRAINIAN PROGRAMME,GRANTS,REDACTED,REDACTED
04.04.2023,COMMUNITIES,REDACTED PERSONAL DATA,800,UKRAINIAN PROGRAMME,GRANTS,REDACTED,REDACTED
04.04.2023,COMMUNITIES,REDACTED PERSONAL DATA,800,UKRAINIAN PROGRAMME,GRANTS,REDACTED,REDACTED
04.04.2023,COMMUNITIES,REDACTED PERSONAL DATA,800,UKRAINIAN PROGRAMME,GRANTS,REDACTED,REDACTED
04.04.2023,COMMUNITIES,REDACTED PERSONAL DATA,800,UKRAINIAN PROGRAMME,GRANTS,REDACTED,REDACTED
04.04.2023,COMMUNITIES,REDACTED PERSONAL DATA,800,UKRAINIAN PROGRAMME,GRANTS,REDACTED,REDACTED
04.04.2023,COMMUNITIES,REDACTED PERSONAL DATA,800,UKRAINIAN PROGRAMME,GRANTS,REDACTED,REDACTED
04.04.2023,COMMUNITIES,REDACTED PERSONAL DATA,800,UKRAINIAN PROGRAMME,GRANTS,REDACTED,REDACTED
04.04.2023,COMMUNITIES,REDACTED PERSONAL DATA,800,UKRAINIAN PROGRAMME,GRANTS,REDACTED,REDACTED
04.04.2023,COMMUNITIES,REDACTED PERSONAL DATA,800,UKRAINIAN PROGRAMME,GRANTS,REDACTED,REDACTED
04.04.2023,COMMUNITIES,REDACTED PERSONAL DATA,800,UKRAINIAN PROGRAMME,GRANTS,REDACTED,REDACTED
04.04.2023,COMMUNITIES,REDACTED PERSONAL DATA,800,UKRAINIAN PROGRAMME,GRANTS,REDACTED,REDACTED
04.04.2023,COMMUNITIES,REDACTED PERSONAL DATA,"1,050.00",UKRAINIAN PROGRAMME,GRANTS,REDACTED,REDACTED
04.04.2023,COMMUNITIES,ST FAITHS COMMUNITY CENTRE,"5,300.00",VCS GRANTS,GRANTS,5902574150,1039446
04.04.2023,COMMUNITIES,TIME & TALENTS ASSOCIATION,"4,770.00",VCS GRANTS,GRANTS,5902574151,1757632
04.04.2023,COMMUNITIES,LONDON WILDLIFE TRUST,"7,950.00",VCS GRANTS,GRANTS,5902574152,1832374
04.04.2023,COMMUNITIES,SOUTHWARK CITIZENS ADVICE,"5,936.00",VCS GRANTS,GRANTS,5902574153,1874379
04.04.2023,COMMUNITIES,SOMALI INTEGRATION & DEVELOPMENT ASSOCIATION,"14,840.00",VCS GRANTS,GRANTS,5902574154,11048946
04.04.2023,COMMUNITIES,GOLDEN OLDIES COMMUNITY CARE PROJECT,"2,650.00",VCS GRANTS,GRANTS,5902574155,11122958
04.04.2023,COMMUNITIES,BEDE HSE,"4,770.00",VCS GRANTS,GRANTS,5902574156,11248731
04.04.2023,COMMUNITIES,PECAN LTD,"6,890.00",VCS GRANTS,GRANTS,5902574158,11263114
04.04.2023,COMMUNITIES,PECAN LTD,"7,817.50",VCS GRANTS,GRANTS,5902574157,11263114
04.04.2023,COMMUNITIES,SURREY DOCKS FARM PROVIDENT SOCIETY,"10,600.00",VCS GRANTS,GRANTS,5902574159,1000000958
04.04.2023,COMMUNITIES,AAINA WOMEN GROUP,"8,499.35",VCS GRANTS,GRANTS,5902574160,1000002442
04.04.2023,COMMUNITIES,SOUTHWARK PENSIONERS CENTRE,"27,406.57",VCS GRANTS,GRANTS,5902574162,1000027831
04.04.2023,COMMUNITIES,SWK DAY CTR FOR ASYLUM SEEKERS,"12,010.07",VCS GRANTS,GRANTS,5902574163,1000040491
04.04.2023,COMMUNITIES,SOUTHWARK EVERY WOMAN'S CENTRE,"5,830.00",VCS GRANTS,GRANTS,5902574164,1000042216
04.04.2023,COMMUNITIES,FUTURE MEN,"4,372.50",VCS GRANTS,GRANTS,5902574165,1000046010
04.04.2023,COMMUNITIES,THE MANNA CENTRE,"14,575.00",VCS GRANTS,GRANTS,5902574166,1000048508
04.04.2023,COMMUNITIES,MENTAL FIGHT CLUB,"2,650.00",VCS GRANTS,GRANTS,5902574168,1000051170
04.04.2023,COMMUNITIES,LATIN AMERICAN DISABLED PEOPLE PROJECT,"4,902.50",VCS GRANTS,GRANTS,5902574169,1000058588
04.04.2023,COMMUNITIES,LATIN AMERICAN WOMEN'S RIGHTS SERVICES,"4,902.50",VCS GRANTS,GRANTS,5902574170,1000068356
04.04.2023,COMMUNITIES,PAXTON GREEN TIME BANK,"4,505.00",VCS GRANTS,GRANTS,5902574171,1000070648
04.04.2023,COMMUNITIES,BLACKFRIARS SETTLEMENT,"4,770.00",VCS GRANTS,GRANTS,5902574172,1000071456
04.04.2023,COMMUNITIES,PEMBROKE COLLEGE SETTLEMENT,"4,770.00",VCS GRANTS,GRANTS,5902574173,1000073444
04.04.2023,COMMUNITIES,BERMONDSEY COMMUNITY KITCHEN,"3,975.00",VCS GRANTS,GRANTS,5902574174,1000075477
04.04.2023,COMMUNITIES,THE BIKE PROJECT,"4,082.06",VCS GRANTS,GRANTS,5902574176,1000077217
04.04.2023,COMMUNITIES,SOUTHWARK TRAVELLERS' ACTION,"6,095.00",VCS GRANTS,GRANTS,5902574177,1000077795
04.04.2023,COMMUNITIES,GLOBAL GENERATION,"4,505.00",VCS GRANTS,GRANTS,5902574178,1000080135
04.04.2023,COMMUNITIES,SPRING COMMUNITY HUB,"5,565.00",VCS GRANTS,GRANTS,5902574179,1000083089
04.04.2023,COMMUNITIES,OPENING DOORS LONDON,"5,035.00",VCS GRANTS,GRANTS,5902574180,1000086261
04.04.2023,DIGITAL AND TECHNOLOGY,VIRGIN MEDIA,"1,382.40",SHARED SERVICES,COMMS & COMPUTING CONTRACT CHARGES,5902573921,1000026457
04.04.2023,DSG,THE ELMGREEN SCHOOL,499.82,AC & FREE - MSTREAM,STATEMENTED FEES,2103645951,1000013250
04.04.2023,DSG,THE ELMGREEN SCHOOL,"1,159.61",AC & FREE - MSTREAM,STATEMENTED FEES,2103645954,1000013250
04.04.2023,DSG,THE ELMGREEN SCHOOL,"2,319.22",AC & FREE - MSTREAM,STATEMENTED FEES,2103645953,1000013250
04.04.2023,DSG,THE ELMGREEN SCHOOL,"5,542.31",AC & FREE - MSTREAM,STATEMENTED FEES,2103645952,1000013250
04.04.2023,DSG,CARSHALTON ATHLETIC F.C. LIMITED,"1,680.00",AC & FREE - MSTREAM,STATEMENTED FEES,2103645929,1000089504
04.04.2023,DSG,THE ST MARYLEBONE CHURCH OF ENGLAND BRIDGE SCHOOL,"62,141.03",AC & FREE - SPECIAL,STATEMENTED FEES,2103645950,1000075884
04.04.2023,DSG,LONDON SOUTH EAST ACADEMIES TRUST,"7,171.25",AC & FREE - SPECIAL,STATEMENTED FEES,2103645920,1000082046
04.04.2023,DSG,ALBION PRIMARY SCHOOL,"272,595.00",ALBION PRIMARY SCHOOL,SCHOOLS CAPITATION,5902574202,5001000000
04.04.2023,DSG,ALFRED SALTER PRIMARY SCHOOL,"249,639.00",ALFRED SALTER PRIMARY SCHOOL,SCHOOLS CAPITATION,5902574203,5001000005
04.04.2023,DSG,ANN BERNADT NURSERY SCHOOL,"10,884.00",ANN BERNADT (SUMNER),EARLY YEARS - 3 AND 4 YEAR OLDS,5902574264,5001000085
04.04.2023,DSG,NEWHAVEN SCHOOL,"19,146.15",AP & HOSPITAL SCHLS,STATEMENTED FEES,2103645948,1000088365
04.04.2023,DSG,BELLENDEN PRIMARY SCHOOL,"139,105.00",BELLENDEN PRIMARY SCHOOL,SCHOOLS CAPITATION,5902574204,5001000007
04.04.2023,DSG,BESSEMER GRANGE PRIMARY SCHOOL,"314,208.00",BESSEMER GRANGE PRIMARY SCHOOL,SCHOOLS CAPITATION,5902574205,5001000009
04.04.2023,DSG,BOUCHER C OF E PRIMARY SCHOOL,"144,309.00",BOUTCHER CE PRIMARY SCHOOL,SCHOOLS CAPITATION,5902574207,5001000011
04.04.2023,DSG,BRUNSWICK PARK PRIMARY SCHOOL,"247,473.00",BRUNSWICK PARK PRIMARY SCHOOL,SCHOOLS CAPITATION,5902574208,5001000013
04.04.2023,DSG,CAMELOT PRIMARY SCHOOL,"239,389.00",CAMELOT PRIMARY SCHOOL,SCHOOLS CAPITATION,5902574209,5001000014
04.04.2023,DSG,CHARLOTTE  SHARMAN PRIMARY SCHOOL,"128,356.00",CHARLOTTE SHARMAN PRIMARY SCHOOL,SCHOOLS CAPITATION,5902574210,5001000016
04.04.2023,DSG,CHERRY GARDEN SCHOOL,"68,388.00",CHERRY GARDEN PRIMARY SCHOOL,HIGH NEEDS - BASE FUNDING,5902574215,5001000020
04.04.2023,DSG,COBOURG PRIMARY SCHOOL,"159,183.00",COBOURG PRIMARY SCHOOL,SCHOOLS CAPITATION,5902574216,5001000021
04.04.2023,DSG,COMBER GROVE PRIMARY SCHOOL,"121,841.00",COMBER GROVE PRIMARY SCHOOL,SCHOOLS CAPITATION,5902574217,5001000022
04.04.2023,DSG,CRAMPTON PRIMARY SCHOOL,"150,972.00",CRAMPTON PRIMARY SCHOOL,SCHOOLS CAPITATION,5902574218,5001000023
04.04.2023,DSG,CRAWFORD PRIMARY SCHOOL,"279,292.00",CRAWFORD PRIMARY SCHOOL,SCHOOLS CAPITATION,5902574219,5001000024
04.04.2023,DSG,DULWICH VILLAGE CE INFANTS SCHOOL,"171,928.00",DULWICH VILLAGE CE INFANTS' SCHOOL,SCHOOLS CAPITATION,5902574220,5001000027
04.04.2023,DSG,DULWICH WOOD PRIMARY SCHOOL,"272,119.00",DULWICH WOOD PRIMARY SCHOOL,SCHOOLS CAPITATION,5902574233,5001000042
04.04.2023,DSG,ENGLISH MARTYRS RC PRIMARY SCHOOL,"224,817.00",ENGLISH MARTYRS RC PRIMARY SCHOOL,SCHOOLS CAPITATION,5902574223,5001000030
04.04.2023,DSG,EVELINA HOSPITAL SCHOOL,"58,889.00",EVELINA HOSPITAL SCHOOL,HIGH NEEDS - BASE FUNDING,5902574224,5001000031
04.04.2023,DSG,LITTLE JUNGLE (U.K.) LIMITED,333,EY SENDIF,STATEMENTED FEES,2103645965,1000067064
04.04.2023,DSG,LITTLE JUNGLE (U.K.) LIMITED,333,EY SENDIF,STATEMENTED FEES,2103645966,1000067064
04.04.2023,DSG,LITTLE JUNGLE (U.K.) LIMITED,333,EY SENDIF,STATEMENTED FEES,2103645967,1000067064
04.04.2023,DSG,LITTLE JUNGLE (U.K.) LIMITED,"1,012.00",EY SENDIF,STATEMENTED FEES,2103645968,1000067064
04.04.2023,DSG,SURREY SQUARE PRIMARY SCHOOL,"2,024.00",EY SENDIF,STATEMENTED FEES,2103645956,1000082648
04.04.2023,DSG,IVYDALE PRIMARY SCHOOL,400,EY SENDIF,STATEMENTED FEES,2103645959,5001000038
04.04.2023,DSG,IVYDALE PRIMARY SCHOOL,400,EY SENDIF,STATEMENTED FEES,2103645960,5001000038
04.04.2023,DSG,IVYDALE PRIMARY SCHOOL,400,EY SENDIF,STATEMENTED FEES,2103645961,5001000038
04.04.2023,DSG,IVYDALE PRIMARY SCHOOL,400,EY SENDIF,STATEMENTED FEES,2103645962,5001000038
04.04.2023,DSG,IVYDALE PRIMARY SCHOOL,400,EY SENDIF,STATEMENTED FEES,2103645963,5001000038
04.04.2023,DSG,IVYDALE PRIMARY SCHOOL,666,EY SENDIF,STATEMENTED FEES,2103645958,5001000038
04.04.2023,DSG,IVYDALE PRIMARY SCHOOL,"1,012.00",EY SENDIF,STATEMENTED FEES,2103645964,5001000038
04.04.2023,DSG,IVYDALE PRIMARY SCHOOL,"2,024.00",EY SENDIF,STATEMENTED FEES,2103645957,5001000038
04.04.2023,DSG,ST GEORGES RC SCHOOL,"1,012.00",EY SENDIF,STATEMENTED FEES,2103645969,5001000068
04.04.2023,DSG,ST GEORGES RC SCHOOL,"1,012.00",EY SENDIF,STATEMENTED FEES,2103645970,5001000068
04.04.2023,DSG,FRIARS PRIMARY (FOUNDATION) SCHOOL,"132,353.00",FRIARS FOUNDATION PRIMARY SCHOOL,SCHOOLS CAPITATION,5902574226,5001000033
04.04.2023,DSG,NESCOT FINANCIAL SERVICES,"1,530.52",FURTHER EDUCATION,STATEMENTED FEES,2103645947,1957284
04.04.2023,DSG,GOODRICH PRIMARY SCHOOL,"304,129.00",GOODRICH PRIMARY SCHOOL,SCHOOLS CAPITATION,5902574221,5001000028
04.04.2023,DSG,GRANGE PRIMARY SCHOOL,"224,933.00",GRANGE PRIMARY SCHOOL,SCHOOLS CAPITATION,5902574222,5001000029
04.04.2023,DSG,HAYMERLE SCHOOL,"80,371.00",HAYMERLE PRIMARY SCHOOL,HIGH NEEDS - BASE FUNDING,5902574234,5001000045
04.04.2023,DSG,HEBER PRIMARY SCHOOL,"257,342.00",HEBER PRIMARY SCHOOL,SCHOOLS CAPITATION,5902574227,5001000035
04.04.2023,DSG,HIGHSHORE SCHOOL,"170,000.00",HIGHSHORE,HIGH NEEDS - BASE FUNDING,5902574235,5001000046
04.04.2023,DSG,HOLLYDALE PRIMARY SCHOOL,"122,469.00",HOLLYDALE PRIMARY SCHOOL,SCHOOLS CAPITATION,5902574228,5001000036
04.04.2023,DSG,ILDERTON PRIMARY SCHOOL,"172,463.00",ILDERTON PRIMARY SCHOOL,SCHOOLS CAPITATION,5902574229,5001000037
04.04.2023,DSG,EATON HOUSE SCHOOL LTD,"4,750.00",INDEP MAINSTREAM,STATEMENTED FEES,2103645944,1000083253
04.04.2023,DSG,IVYDALE PRIMARY SCHOOL,"353,853.00",IVYDALE PRIMARY SCHOOL,SCHOOLS CAPITATION,5902574230,5001000038
04.04.2023,DSG,JOHN RUSKIN PRIMARY SCHOOL,"295,985.00",JOHN RUSKIN PRIMARY SCHOOL,SCHOOLS CAPITATION,5902574231,5001000040
04.04.2023,DSG,KEYWORTH PRIMARY SCHOOL,"227,628.00",KEYWORTH PRIMARY SCHOOL,SCHOOLS CAPITATION,5902574232,5001000041
04.04.2023,DSG,BETHLEM & MAUDSLEY HOSPITAL SCHOOL,"71,111.00",MAUDSLEY & BETHLEM,HIGH NEEDS - BASE FUNDING,5902574206,5001000010
04.04.2023,DSG,MICHAEL FARADAY PRIMARY SCHOOL,"275,044.00",MICHAEL FARADAY PRIMARY SCHOOL,SCHOOLS CAPITATION,5902574236,5001000048
04.04.2023,DSG,ESLAND NORTH LTD,"3,542.86",NMSS/ INDEP SPECIAL,STATEMENTED FEES,2103645919,1000084018
04.04.2023,DSG,ST JUDES CHURCH OF ENGLAND PRIMARY,"2,038.00",NURSERY ED GRANT 3 AND 4 YR OLDS,EARLY YEARS - 3 AND 4 YEAR OLDS,5902574213,5001000019
04.04.2023,DSG,RIVERSIDE PRIMARY SCHOOL,"5,480.00",NURSERY ED GRANT 3 AND 4 YR OLDS,EARLY YEARS - 3 AND 4 YEAR OLDS,5902574240,5001000056
04.04.2023,DSG,ST GEORGES RC SCHOOL,"5,452.00",NURSERY ED GRANT 3 AND 4 YR OLDS,EARLY YEARS - 3 AND 4 YEAR OLDS,5902574248,5001000068
04.04.2023,DSG,ST PETERS CE SCHOOL,"4,902.00",NURSERY ED GRANT 3 AND 4 YR OLDS,EARLY YEARS - 3 AND 4 YEAR OLDS,5902574260,5001000083
04.04.2023,DSG,CATHEDRAL SCHOOL OF ST SAVIOUR & MARY,"4,977.00",NURSERY ED GRANT 3 AND 4 YR OLDS,EARLY YEARS - 3 AND 4 YEAR OLDS,5902574265,5001000088
04.04.2023,DSG,TOWER BRIDGE PRIMARY SCHOOL,"5,360.00",NURSERY ED GRANT 3 AND 4 YR OLDS,EARLY YEARS - 3 AND 4 YEAR OLDS,5902574267,5001000095
04.04.2023,DSG,VICTORY SCHOOL,"1,867.00",NURSERY ED GRANT 3 AND 4 YR OLDS,EARLY YEARS - 3 AND 4 YEAR OLDS,5902574270,5001000098
04.04.2023,DSG,ADENIKE AWOBIMPE,"1,236.60",NURSERY ED GRANT 3 AND 4 YR OLDS,GRANTS,2103646759,1000088417
04.04.2023,DSG,OLIVER GOLDSMITH PRIMARY SCHOOL,"237,051.00",OLIVER GOLDSMITH PRIMARY SCHOOL,SCHOOLS CAPITATION,5902574237,5001000051
04.04.2023,DSG,WYVIL PRIMARY SCHOOL,"2,887.89",OTHER LA MAINSTREAM,STATEMENTED FEES,2103645916,1000038919
04.04.2023,DSG,WYVIL PRIMARY SCHOOL,"7,005.80",OTHER LA MAINSTREAM,STATEMENTED FEES,2103645917,1000038919
04.04.2023,DSG,WYVIL PRIMARY SCHOOL,"7,005.80",OTHER LA MAINSTREAM,STATEMENTED FEES,2103645918,1000038919
04.04.2023,DSG,THE LONDON NAUTICAL SCHOOL,"1,462.46",OTHER LA MAINSTREAM,STATEMENTED FEES,2103645946,1000053815
04.04.2023,DSG,THE LONDON NAUTICAL SCHOOL,"2,274.31",OTHER LA MAINSTREAM,STATEMENTED FEES,2103645945,1000053815
04.04.2023,DSG,ST SAVIOURS CE PRIMARY SCHOOL,"9,413.19",OTHER LA MAINSTREAM,STATEMENTED FEES,2103645943,1000075859
04.04.2023,DSG,SYDENHAM SCHOOL,702.31,OTHER LA MAINSTREAM,STATEMENTED FEES,2103645938,1000079303
04.04.2023,DSG,SYDENHAM SCHOOL,"1,040.82",OTHER LA MAINSTREAM,STATEMENTED FEES,2103645930,1000079303
04.04.2023,DSG,SYDENHAM SCHOOL,"2,379.49",OTHER LA MAINSTREAM,STATEMENTED FEES,2103645934,1000079303
04.04.2023,DSG,SYDENHAM SCHOOL,"2,625.64",OTHER LA MAINSTREAM,STATEMENTED FEES,2103645935,1000079303
04.04.2023,DSG,SYDENHAM SCHOOL,"4,000.00",OTHER LA MAINSTREAM,STATEMENTED FEES,2103645933,1000079303
04.04.2023,DSG,SYDENHAM SCHOOL,"4,000.00",OTHER LA MAINSTREAM,STATEMENTED FEES,2103645937,1000079303
04.04.2023,DSG,SYDENHAM SCHOOL,"4,150.00",OTHER LA MAINSTREAM,STATEMENTED FEES,2103645939,1000079303
04.04.2023,DSG,SYDENHAM SCHOOL,"5,374.36",OTHER LA MAINSTREAM,STATEMENTED FEES,2103645932,1000079303
04.04.2023,DSG,SYDENHAM SCHOOL,"8,000.00",OTHER LA MAINSTREAM,STATEMENTED FEES,2103645941,1000079303
04.04.2023,DSG,SYDENHAM SCHOOL,"8,250.00",OTHER LA MAINSTREAM,STATEMENTED FEES,2103645942,1000079303
04.04.2023,DSG,SYDENHAM SCHOOL,"12,000.00",OTHER LA MAINSTREAM,STATEMENTED FEES,2103645931,1000079303
04.04.2023,DSG,SYDENHAM SCHOOL,"12,000.00",OTHER LA MAINSTREAM,STATEMENTED FEES,2103645936,1000079303
04.04.2023,DSG,SYDENHAM SCHOOL,"12,350.00",OTHER LA MAINSTREAM,STATEMENTED FEES,2103645940,1000079303
04.04.2023,DSG,ST ANDREWS CHURCH OF ENGLAND PRIMARY SCHOOL,"4,053.33",OTHER LA MAINSTREAM,STATEMENTED FEES,2103645949,1000079532
04.04.2023,DSG,MEDWAY COUNCIL,"4,166.67",OTHER LA SPECIAL,STATEMENTED FEES,2103645910,1000021704
04.04.2023,DSG,MEDWAY COUNCIL,"7,281.33",OTHER LA SPECIAL,STATEMENTED FEES,2103645909,1000021704
04.04.2023,DSG,MEDWAY COUNCIL,"9,041.67",OTHER LA SPECIAL,STATEMENTED FEES,2103645911,1000021704
04.04.2023,DSG,MEDWAY COUNCIL,"10,000.00",OTHER LA SPECIAL,STATEMENTED FEES,2103645913,1000021704
04.04.2023,DSG,MEDWAY COUNCIL,"10,000.00",OTHER LA SPECIAL,STATEMENTED FEES,2103645914,1000021704
04.04.2023,DSG,MEDWAY COUNCIL,"10,000.00",OTHER LA SPECIAL,STATEMENTED FEES,2103645915,1000021704
04.04.2023,DSG,MEDWAY COUNCIL,"17,400.00",OTHER LA SPECIAL,STATEMENTED FEES,2103645912,1000021704
04.04.2023,DSG,PETER HILLS CE SCHOOL,"92,679.00",PETER HILLS CE PRIMARY SCHOOL,SCHOOLS CAPITATION,5902574238,5001000053
04.04.2023,DSG,PHOENIX PRIMARY SCHOOL,"348,776.00",PHOENIX PRIMARY SCHOOL,SCHOOLS CAPITATION,5902574225,5001000032
04.04.2023,DSG,PILGRIM'S WAY PRIMARY SCHOOL,"143,433.00",PILGRIMS WAY PRIMARY SCHOOL,SCHOOLS CAPITATION,5902574239,5001000054
04.04.2023,DSG,RIVERSIDE PRIMARY SCHOOL,"157,016.00",RIVERSIDE PRIMARY SCHOOL,SCHOOLS CAPITATION,5902574241,5001000056
04.04.2023,DSG,ROBERT BROWNING PRIMARY SCHOOL,"137,632.00",ROBERT BROWNING PRIMARY SCHOOL,SCHOOLS CAPITATION,5902574242,5001000057
04.04.2023,DSG,RYE OAK PRIMARY SCHOOL,"180,119.00",RYE OAK PRIMARY SCHOOL,SCHOOLS CAPITATION,5902574243,5001000059
04.04.2023,DSG,SOUTHWARK INCLUSIVE LEARNING SERVICE,"105,556.00",SILS,HIGH NEEDS - BASE FUNDING,5902574272,5001000105
04.04.2023,DSG,SNOWSFIELDS PRIMARY SCHOOL,"130,208.00",SNOWSFIELDS PRIMARY SCHOOL,SCHOOLS CAPITATION,5902574244,5001000061
04.04.2023,DSG,SOUTHWARK PARK PRIMARY SCHOOL,"265,724.00",SOUTHWARK PARK PRIMARY SCHOOL,SCHOOLS CAPITATION,5902574245,5001000062
04.04.2023,DSG,CARETRADE CHARITABLE TRUST,"8,190.00",SPECIALIST POST-16,STATEMENTED FEES,2103645927,1000067322
04.04.2023,DSG,CARETRADE CHARITABLE TRUST,"8,190.00",SPECIALIST POST-16,STATEMENTED FEES,2103645928,1000067322
04.04.2023,DSG,CARETRADE CHARITABLE TRUST,"8,820.00",SPECIALIST POST-16,STATEMENTED FEES,2103645921,1000067322
04.04.2023,DSG,CARETRADE CHARITABLE TRUST,"8,820.00",SPECIALIST POST-16,STATEMENTED FEES,2103645922,1000067322
04.04.2023,DSG,CARETRADE CHARITABLE TRUST,"8,820.00",SPECIALIST POST-16,STATEMENTED FEES,2103645923,1000067322
04.04.2023,DSG,CARETRADE CHARITABLE TRUST,"8,820.00",SPECIALIST POST-16,STATEMENTED FEES,2103645924,1000067322
04.04.2023,DSG,CARETRADE CHARITABLE TRUST,"8,820.00",SPECIALIST POST-16,STATEMENTED FEES,2103645925,1000067322
04.04.2023,DSG,CARETRADE CHARITABLE TRUST,"8,820.00",SPECIALIST POST-16,STATEMENTED FEES,2103645926,1000067322
04.04.2023,DSG,ST ANTHONYS RC SCHOOL,"258,580.00",ST ANTHONY'S CATHOLIC PRIMARY SCHOOL,SCHOOLS CAPITATION,5902574246,5001000064
04.04.2023,DSG,ST FRANCIS'S RC PRIMARY SCHOOL,"202,119.00",ST FRANCIS RC PRIMARY SCHOOL,SCHOOLS CAPITATION,5902574247,5001000067
04.04.2023,DSG,ST GEORGES RC SCHOOL,"122,821.00",ST GEORGE'S CATHEDRAL RC PRIMARY SCHOOL,SCHOOLS CAPITATION,5902574249,5001000068
04.04.2023,DSG,ST GEORGES CE SCHOOL,"122,836.00",ST GEORGE'S CE PRIMARY SCHOOL,SCHOOLS CAPITATION,5902574250,5001000069
04.04.2023,DSG,ST JAMES CE PRIMARY SCHOOL,"274,737.00",ST JAMES' CE PRIMARY SCHOOL,SCHOOLS CAPITATION,5902574251,5001000070
04.04.2023,DSG,ST JAMES THE GREAT RC SCHOOL,"154,593.00",ST JAMES THE GREAT RC PRIMARY SCHOOL,SCHOOLS CAPITATION,5902574252,5001000071
04.04.2023,DSG,ST JOHNS & ST CLEMENTS CE SCHOOL,"233,988.00",ST JOHN'S & ST CLEMENT'S CE PRIMARY SCHO,SCHOOLS CAPITATION,5902574253,5001000073
04.04.2023,DSG,ST JOHNS RC PRIMARY SCHOOL,"146,584.00",ST JOHN'S RC PRIMARY SCHOOL,SCHOOLS CAPITATION,5902574256,5001000075
04.04.2023,DSG,ST JOSEPHS CATHOLIC PRIMARY SCHOOL,"146,017.00",ST JOSEPHS RC (3476) PRIMARY SCHOOL,SCHOOLS CAPITATION,5902574258,5001000078
04.04.2023,DSG,ST JOSEPHS CATHOLIC SCHOOL,"137,928.00",ST JOSEPHS RC (3484) SCHOOL,SCHOOLS CAPITATION,5902574257,5001000076
04.04.2023,DSG,ST JOSEPHS CATHOLIC INFANTS SCHOOL,"89,341.00",ST JOSEPHS RC INFANT(5204),SCHOOLS CAPITATION,5902574212,5001000018
04.04.2023,DSG,ST JOSEPHS RC JUNIOR  SCHOOL,"164,189.00",ST JOSEPHS RC JUNIOR(5203) SCHOOL,SCHOOLS CAPITATION,5902574211,5001000017
04.04.2023,DSG,ST JUDES CHURCH OF ENGLAND PRIMARY,"74,788.00",ST JUDE'S CE PRIMARY SCHOOL,SCHOOLS CAPITATION,5902574214,5001000019
04.04.2023,DSG,ST PETERS CE SCHOOL,"135,592.00",ST PETER'S CE PRIMARY SCHOOL,SCHOOLS CAPITATION,5902574261,5001000083
04.04.2023,DSG,ST SAVIOURS & ST OLAVES SCHOOL,"647,436.00",ST SAVIOUR & OLAVE'S CE,SCHOOLS CAPITATION,5902574262,5001000084
04.04.2023,DSG,CATHEDRAL SCHOOL OF ST SAVIOUR & MARY,"143,851.00",THE CATHEDRAL OF ST. SAVIOUR & ST OLAVES,SCHOOLS CAPITATION,5902574266,5001000088
04.04.2023,DSG,THE ST THOMAS THE APOSTLE COLLEGE,"801,372.00",THE ST THOMAS THE APOSTLE COLLEGE,SCHOOLS CAPITATION,5902574254,5001000074
04.04.2023,DSG,TOWER BRIDGE PRIMARY SCHOOL,"127,008.00",TOWER BRIDGE PRIMARY SCHOOL,SCHOOLS CAPITATION,5902574268,5001000095
04.04.2023,DSG,TUKE SCHOOL,"104,537.00",TUKE SCHOOL,HIGH NEEDS - BASE FUNDING,5902574269,5001000097
04.04.2023,DSG,VICTORY SCHOOL,"91,563.00",VICTORY PRIMARY SCHOOL,SCHOOLS CAPITATION,5902574271,5001000098
04.04.2023,DSG,THE ST THOMAS THE APOSTLE COLLEGE,"140,764.00",YPLA SCHL SIXTH FORM,SCHOOLS CAPITATION,5902574255,5001000074
04.04.2023,DSG,ST SAVIOURS & ST OLAVES SCHOOL,"75,657.00",YPLA SCHL SIXTH FORM,SCHOOLS CAPITATION,5902574263,5001000084
04.04.2023,EDUCATION,DAVID LAWSON,379.17,CENTRAL COSTS - SEN,LEGAL FEES & COURT COSTS,2103646730,1000074102
04.04.2023,ENVIRONMENT DIRECTORATE,AUTOMOTIVE LEASING,"3,202.30",COMMERCIAL VEH CTRL A/C,HIRED VEHICLES,5902574140,11014756
04.04.2023,ENVIRONMENT DIRECTORATE,AUTOMOTIVE LEASING,"10,195.37",COMMERCIAL VEH CTRL A/C,HIRED VEHICLES,5902574141,11014756
04.04.2023,ENVIRONMENT DIRECTORATE,SPALDINGS (UK) LTD,"1,615.00",GROUNDS MAINTENANCE - GENERAL,MATERIALS,5902574305,1907384
04.04.2023,ENVIRONMENT DIRECTORATE,TRAVIS PERKINS TRADING COMPANY LTD,395.93,PARKS TECH UNIT (PREMISES),BUILDING R&M,5902574349,1514319
04.04.2023,ENVIRONMENT DIRECTORATE,TOFCO CPP LTD,"10,935.00",PUBLIC LIGHTING,MATERIALS,5902574403,1000084062
04.04.2023,ENVIRONMENT DIRECTORATE,CERTSURE LLP,540,PUBLIC LIGHTING,PRINTING,5902574406,1706379
04.04.2023,ENVIRONMENT DIRECTORATE,CLAIRE HOWELL,"1,000.00",RESIDENTIAL SERVICES,LEGAL FEES & COURT COSTS,2103646728,1000089186
04.04.2023,ENVIRONMENT DIRECTORATE,JARED NORMAN,500,SASBU,LEGAL FEES & COURT COSTS,2103646733,1000064080
04.04.2023,ENVIRONMENT DIRECTORATE,JARED NORMAN,650,SASBU,LEGAL FEES & COURT COSTS,2103646734,1000064080
04.04.2023,ENVIRONMENT DIRECTORATE,MARTIN RUSSELL,500,SASBU,LEGAL FEES & COURT COSTS,2103646743,1000068750
04.04.2023,ENVIRONMENT DIRECTORATE,ALISTAIR MARK TEMPEST,500,SASBU,LEGAL FEES & COURT COSTS,2103646742,1000068752
04.04.2023,ENVIRONMENT DIRECTORATE,ALISTAIR MARK TEMPEST,"2,050.00",SASBU,LEGAL FEES & COURT COSTS,2103646741,1000068752
04.04.2023,ENVIRONMENT DIRECTORATE,BRYAN MADAGAN ASSOCIATES LTD,475,SASBU,LEGAL FEES & COURT COSTS,2103646717,1000072045
04.04.2023,ENVIRONMENT DIRECTORATE,JONATHAN PENNINGTON LEGH,500,SASBU,LEGAL FEES & COURT COSTS,2103646735,1000075898
04.04.2023,ENVIRONMENT DIRECTORATE,JONATHAN PENNINGTON LEGH,500,SASBU,LEGAL FEES & COURT COSTS,2103646736,1000075898
04.04.2023,ENVIRONMENT DIRECTORATE,JONATHAN PENNINGTON LEGH,500,SASBU,LEGAL FEES & COURT COSTS,2103646737,1000075898
04.04.2023,ENVIRONMENT DIRECTORATE,RYAN ANDERSON,350,SASBU,LEGAL FEES & COURT COSTS,2103646746,1000089359
04.04.2023,ENVIRONMENT DIRECTORATE,RYAN ANDERSON,350,SASBU,LEGAL FEES & COURT COSTS,2103646747,1000089359
04.04.2023,ENVIRONMENT DIRECTORATE,SOUTHWARK NEWSPAPER LTD,348,SECTION 278 & 38,LEGAL FEES & COURT COSTS,2103646750,1556957
04.04.2023,HOUSING,A & E ELKINS LTD,"107,069.51",A&E ELKINS,I-WORLD CONTRACTORS HOLDING ACCOUNT,2103646762,4012501
04.04.2023,HOUSING,ARMSTRONG YORK,"1,470.16",PAYMENTS CONTROL ACCOUNT-ARMSTRONG YORKE,I-WORLD CONTRACTORS HOLDING ACCOUNT,5902574316,1000058092
04.04.2023,HOUSING GENERAL FUND,LEADTEC LIMITED,"9,350.00",CAPITAL PS (STRAT SERV),ICT ACQUISITION,5902574314,1000088992
04.04.2023,HOUSING GENERAL FUND,LEADTEC LIMITED,"10,687.50",CAPITAL PS (STRAT SERV),ICT ACQUISITION,5902574312,1000088992
04.04.2023,HOUSING HRA,NEW MILL CONSULTANTS (POPLAR) LIMITED,540,CAPITAL PS (HRA),CONSTRUCTION FEES  - EXTERNAL,5902574366,1000085810
04.04.2023,HOUSING HRA,WHITBY WOOD LTD,"1,300.00",CAPITAL PS (HRA),CONSTRUCTION FEES  - EXTERNAL,5902573529,1000086224
04.04.2023,HOUSING HRA,WHITBY WOOD LTD,"4,450.00",CAPITAL PS (HRA),CONSTRUCTION FEES  - EXTERNAL,5902573529,1000086224
04.04.2023,HOUSING HRA,SHARPE PRITCHARD LLP,"1,018.00",CAPITAL PS (HRA),LAND & BUILDINGS ACQUISITION FEES,5902574103,1790085
04.04.2023,HUMAN RESOURCES,JS MEDIA LTD,"8,620.00",HR PAYROLL COSTS,OTHER EMPLOYEE EXPENSES,5902574390,1000089503
04.04.2023,LAW AND GOVERNANCE,CIVICA ELECTION SERVICES LIMITED,"4,479.86",ELECTORAL REGISTRATION,POSTAGES,2103646727,1000088981
04.04.2023,LEISURE DIRECTORATE,SOFTCAT PLC,"3,517.48",LEISURE INSOURCING MOBILISATION COST,HARDWARE,5902574334,1000088809
04.04.2023,LEISURE DIRECTORATE,NPOWER LTD,498.85,SDM BUDGET,ELECTRICITY,5902574327,1000078994
04.04.2023,LEISURE DIRECTORATE,NPOWER LTD,"4,478.83",SDM BUDGET,ELECTRICITY,5902574322,1000078994
04.04.2023,LEISURE DIRECTORATE,NPOWER LTD,"11,521.17",SDM BUDGET,ELECTRICITY,5902574327,1000078994
04.04.2023,LEISURE DIRECTORATE,G STOW PLC,"5,060.00",SOUTHWARK AREA TEAM,OTHER R&M,5902574133,1000055396
04.04.2023,LEISURE DIRECTORATE,SMART PLATFORM RENTAL LTD,625,TREES � IN-HOUSE TEAM,HIRED VEHICLES,5902574142,1000082961
04.04.2023,LEISURE DIRECTORATE,SMART PLATFORM RENTAL LTD,625,TREES � IN-HOUSE TEAM,HIRED VEHICLES,5902574143,1000082961
04.04.2023,LEISURE DIRECTORATE,SMART PLATFORM RENTAL LTD,625,TREES � IN-HOUSE TEAM,HIRED VEHICLES,5902574144,1000082961
04.04.2023,LEISURE DIRECTORATE,CONSTELLIA PUBLIC LIMITED,835.9,TREES PRINCIPAL ROADS,TREE MAINTENANCE,5902574122,1000088137
04.04.2023,LEISURE DIRECTORATE,CONSTELLIA PUBLIC LIMITED,"26,084.10",TREES PRINCIPAL ROADS,TREE MAINTENANCE,5902574125,1000088137
04.04.2023,PLANNING & GROWTH,RYAN KOHLI,500,5/5A WESTMINSTER BRIDGE ROAD.,LEGAL FEES & COURT COSTS,2103646748,1000069110
04.04.2023,PLANNING & GROWTH,RYAN KOHLI,"1,000.00",5/5A WESTMINSTER BRIDGE ROAD.,LEGAL FEES & COURT COSTS,2103646749,1000069110
04.04.2023,PUBLIC HEALTH,QUALITY EDUCATION SOLUTIONS LTD,"11,530.26",HEALTH PROTECTION,EXTERNAL AGENCIES AND BODIES,5902574401,1000084042
04.04.2023,RESIDENT SERVICES,FATHER NATURE LTD,522.5,GREAT ESTATES,OTHER R&M,5902574330,1000088167
04.04.2023,RESIDENT SERVICES,HARROW GREEN LTD,"6,636.51",OPERATIONS/OFFICES ACCOMMODATION,REMOVAL EXPENSES,5902574291,1000076673
04.04.2023,RESIDENT SERVICES,CALM MEDIATION,"1,350.00",RESIDENT INVOLVEMENT TEAM,PROFESSIONAL FEES,5902574345,1000086031
04.04.2023,RESIDENT SERVICES HGF,EXTREME ENVIRONMENTAL SERVICES LTD,750,RAPID REHOUSING,PREMISES CLEANING,5902574364,1000023922
04.04.2023,SBS OPERATIONS,TRAVIS PERKINS TRADING COMPANY LTD,307.92,DAMP & MOULD TEAM,MATERIALS,5902574383,1514319
04.04.2023,SBS OPERATIONS,TRAVIS PERKINS TRADING COMPANY LTD,337.74,DAMP & MOULD TEAM,MATERIALS,5902574349,1514319
04.04.2023,SBS OPERATIONS,TRAVIS PERKINS TRADING COMPANY LTD,257.33,NUNHEAD DD,MATERIALS,5902574384,1514319
04.04.2023,SBS OPERATIONS,TRAVIS PERKINS TRADING COMPANY LTD,302.32,PECKHAM & DULWICH DD,MATERIALS,5902574349,1514319
04.04.2023,SBS OPERATIONS,TRAVIS PERKINS TRADING COMPANY LTD,263.92,SBS LEAKS FROM ABOVE,MATERIALS,5902574383,1514319
04.04.2023,SBS OPERATIONS,TRAVIS PERKINS TRADING COMPANY LTD,275.17,SBS LEAKS FROM ABOVE,MATERIALS,5902574349,1514319
04.04.2023,SBS OPERATIONS,TRAVIS PERKINS TRADING COMPANY LTD,560.74,SBS LEAKS FROM ABOVE,MATERIALS,5902574349,1514319
04.04.2023,SBS OPERATIONS,TRAVIS PERKINS TRADING COMPANY LTD,299,SUPPORTED HOUSING - REPAIRS,MATERIALS,5902574383,1514319
04.04.2023,SBS OPERATIONS,TRAVIS PERKINS TRADING COMPANY LTD,299.06,SUPPORTED HOUSING - REPAIRS,MATERIALS,5902574349,1514319
04.04.2023,SBS OPERATIONS,TRAVIS PERKINS TRADING COMPANY LTD,383.25,TASK TEAM & HAT,MATERIALS,5902574356,1514319
04.04.2023,SBS OPERATIONS,TRAVIS PERKINS TRADING COMPANY LTD,298.94,WALWORTH DD,MATERIALS,5902574349,1514319
04.04.2023,SBS SUPPORT,TOTALMOBILE LTD,"8,000.00",ICT & COMMUNICATIONS,SOFTWARE,5902574347,1000085502
04.04.2023,SBS SUPPORT,TRAVIS PERKINS TRADING COMPANY LTD,358.89,R & M OVERHEADS,MATERIALS,5902574383,1514319
04.04.2023,SOUTHWARK BUILDING SERVICES,MOULD GROWTH CONSULTANTS LTD,"1,790.00",STORES/LOGISTICS,CREDITORS -GR/IR CLEARING ACCOUNT,5902574083,1003075
04.04.2023,SOUTHWARK BUILDING SERVICES,MOULD GROWTH CONSULTANTS LTD,"3,194.80",STORES/LOGISTICS,CREDITORS -GR/IR CLEARING ACCOUNT,5902574083,1003075
04.04.2023,SOUTHWARK BUILDING SERVICES,CROSSFOLD ELECTRICAL WHOLESALERS,"3,252.50",STORES/LOGISTICS,CREDITORS -GR/IR CLEARING ACCOUNT,5902574385,1918395
04.04.2023,SOUTHWARK BUILDING SERVICES,LONDON TOOLS LIMITED,596,STORES/LOGISTICS,CREDITORS -GR/IR CLEARING ACCOUNT,5902574079,1000003017
04.04.2023,SOUTHWARK BUILDING SERVICES,LONDON TOOLS LIMITED,894,STORES/LOGISTICS,CREDITORS -GR/IR CLEARING ACCOUNT,5902574113,1000003017
04.04.2023,SOUTHWARK BUILDING SERVICES,LONDON TOOLS LIMITED,"9,000.00",STORES/LOGISTICS,CREDITORS -GR/IR CLEARING ACCOUNT,5902574127,1000003017
04.04.2023,SOUTHWARK BUILDING SERVICES,LONDON TOOLS LIMITED,"10,960.00",STORES/LOGISTICS,CREDITORS -GR/IR CLEARING ACCOUNT,5902574096,1000003017
04.04.2023,SOUTHWARK BUILDING SERVICES,LONDON TOOLS LIMITED,"12,350.00",STORES/LOGISTICS,CREDITORS -GR/IR CLEARING ACCOUNT,5902574101,1000003017
04.04.2023,SOUTHWARK BUILDING SERVICES,KEMICO LIMITED,"6,840.00",STORES/LOGISTICS,CREDITORS -GR/IR CLEARING ACCOUNT,5902574088,1000030226
05.04.2023,ADULT SOCIAL CARE,REDACTED PERSONAL DATA,-327,DISABILITIES LAC,PAYMENTS TO CARERS,REDACTED,REDACTED
05.04.2023,ADULT SOCIAL CARE,REDACTED PERSONAL DATA,820,DISABILITIES LAC,PAYMENTS TO CARERS,REDACTED,REDACTED
05.04.2023,ADULT SOCIAL CARE,REDACTED PERSONAL DATA,978,DISABILITIES LAC,PAYMENTS TO CARERS,REDACTED,REDACTED
05.04.2023,ADULT SOCIAL CARE,REDACTED PERSONAL DATA,"1,664.00",DISABILITIES LAC,PAYMENTS TO CARERS,REDACTED,REDACTED
05.04.2023,ADULT SOCIAL CARE,LONDON CARE LTD,"36,272.89",EXTRA CARE CONTRACT,HOMECARE - C&V,5902574500,1000003398
05.04.2023,ADULT SOCIAL CARE,LONDON CARE LTD,"39,283.22",EXTRA CARE CONTRACT,HOMECARE - C&V,5902574501,1000003398
05.04.2023,ADULT SOCIAL CARE,LONDON CARE LTD,"50,461.63",EXTRA CARE CONTRACT,THIRD PARTY TOP UP CARE,5902574494,1000003398
05.04.2023,ADULT SOCIAL CARE,LONDON CARE LTD,"51,975.77",EXTRA CARE CONTRACT,THIRD PARTY TOP UP CARE,5902574495,1000003398
05.04.2023,ADULT SOCIAL CARE,THE CENTRE FOR BETTER HEALTH LTD,-672.86,MH LTS 18-64,HOMECARE - SPOT,2102726247,1000078273
05.04.2023,ADULT SOCIAL CARE,CAPITAL HOMECARE (UK) LTD,"1,376.36",SPECIALIST CARE,SECTION 17 PAYMENTS TO AGENCIES/CARERS,2103647583,1000042589
05.04.2023,ADULT SOCIAL CARE,CONTACT PROFESSIONALS,270.6,SPECIALIST CARE,SECTION 17 PAYMENTS TO AGENCIES/CARERS,2103647575,1000057263
05.04.2023,ADULT SOCIAL CARE,CONTACT PROFESSIONALS,270.6,SPECIALIST CARE,SECTION 17 PAYMENTS TO AGENCIES/CARERS,2103647581,1000057263
05.04.2023,ADULT SOCIAL CARE,CONTACT PROFESSIONALS,270.6,SPECIALIST CARE,SECTION 17 PAYMENTS TO AGENCIES/CARERS,2103647596,1000057263
05.04.2023,ADULT SOCIAL CARE,CONTACT PROFESSIONALS,288.64,SPECIALIST CARE,SECTION 17 PAYMENTS TO AGENCIES/CARERS,2103647569,1000057263
05.04.2023,ADULT SOCIAL CARE,CONTACT PROFESSIONALS,324.72,SPECIALIST CARE,SECTION 17 PAYMENTS TO AGENCIES/CARERS,2103647546,1000057263
05.04.2023,ADULT SOCIAL CARE,CONTACT PROFESSIONALS,360.8,SPECIALIST CARE,SECTION 17 PAYMENTS TO AGENCIES/CARERS,2103647591,1000057263
05.04.2023,ADULT SOCIAL CARE,CONTACT PROFESSIONALS,432.96,SPECIALIST CARE,SECTION 17 PAYMENTS TO AGENCIES/CARERS,2103647559,1000057263
05.04.2023,ADULT SOCIAL CARE,CONTACT PROFESSIONALS,465.2,SPECIALIST CARE,SECTION 17 PAYMENTS TO AGENCIES/CARERS,2103647560,1000057263
05.04.2023,ADULT SOCIAL CARE,CONTACT PROFESSIONALS,465.2,SPECIALIST CARE,SECTION 17 PAYMENTS TO AGENCIES/CARERS,2103647595,1000057263
05.04.2023,ADULT SOCIAL CARE,LONDON CARE LTD,"18,083.52",TRANSFORMING COM E,HOMECARE - C&V,5902574414,1000003398
05.04.2023,ADULT SOCIAL CARE,LONDON CARE LTD,"18,083.52",TRANSFORMING COM E,HOMECARE - C&V,5902574415,1000003398
05.04.2023,ADULT SOCIAL CARE,LONDON CARE LTD,"18,083.52",TRANSFORMING COM E,HOMECARE - C&V,5902574418,1000003398
05.04.2023,ADULT SOCIAL CARE,LONDON CARE LTD,"18,083.52",TRANSFORMING COM E,HOMECARE - C&V,5902574420,1000003398
05.04.2023,ADULT SOCIAL CARE,LONDON CARE LTD,"18,083.52",TRANSFORMING COM E,HOMECARE - C&V,5902574424,1000003398
05.04.2023,ADULT SOCIAL CARE,LONDON CARE LTD,"18,083.52",TRANSFORMING COM E,HOMECARE - C&V,5902574433,1000003398
05.04.2023,ASSET MANAGEMENT,ARMINA LTD,774.23,DISREPAIR,BUILDING R&M,2103647613,3000002121
05.04.2023,ASSET MANAGEMENT,ARMINA LTD,833.39,DISREPAIR,BUILDING R&M,2103647682,3000002121
05.04.2023,ASSET MANAGEMENT,ARMINA LTD,897.74,DISREPAIR,BUILDING R&M,2103647612,3000002121
05.04.2023,ASSET MANAGEMENT,ARMINA LTD,935.87,DISREPAIR,BUILDING R&M,2103647614,3000002121
05.04.2023,ASSET MANAGEMENT,ARMINA LTD,"1,056.11",DISREPAIR,BUILDING R&M,2103647683,3000002121
05.04.2023,ASSET MANAGEMENT,ARMINA LTD,"1,092.16",DISREPAIR,BUILDING R&M,2103647690,3000002121
05.04.2023,ASSET MANAGEMENT,ARMINA LTD,"1,147.25",DISREPAIR,BUILDING R&M,2103647691,3000002121
05.04.2023,ASSET MANAGEMENT,ARMINA LTD,"1,200.40",DISREPAIR,BUILDING R&M,2103647689,3000002121
05.04.2023,ASSET MANAGEMENT,ARMINA LTD,"1,434.24",DISREPAIR,BUILDING R&M,2103647615,3000002121
05.04.2023,ASSET MANAGEMENT,METRO DIGITAL TELEVISION LTD,350.35,ENG CONTRACTS (NORTH),TV AERIALS R&M,5902574499,1000070713
05.04.2023,CENTRAL FUNCTIONS,LAMBERT SMITH HAMPTON GROUP LTD,"6,233.00",TECHNICAL SUPPORT,PROFESSIONAL FEES,5902574442,1000060045
05.04.2023,CENTRAL FUNCTIONS,LAMBERT SMITH HAMPTON GROUP LTD,"7,908.00",TECHNICAL SUPPORT,PROFESSIONAL FEES,5902574452,1000060045
05.04.2023,CENTRAL FUNCTIONS,LAMBERT SMITH HAMPTON GROUP LTD,"8,583.00",TECHNICAL SUPPORT,PROFESSIONAL FEES,5902574438,1000060045
05.04.2023,CHIEF EXECUTIVE,PECKHAM PALMS LTD,"10,000.00",CAPITAL PS (REGEN),CONSTRUCTION FEES,5902573720,1000081205
05.04.2023,CHIEF EXECUTIVE,MICA ARCHITECTS LTD,"4,812.94",CAPITAL PS (REGEN),CONSTRUCTION FEES - ARCHITECT,5902574511,1000087566
05.04.2023,CHIEF EXECUTIVE,SHERGROUP LTD,"3,360.00",CAPITAL PS (REGEN),CONSTRUCTION SITE COSTS,5902574572,1000087977
05.04.2023,CHILDREN AND FAMILIES,REDACTED PERSONAL DATA,251.94,ADOPTION ALLOWANCES,PAYMENTS TO CARERS,REDACTED,REDACTED
05.04.2023,CHILDREN AND FAMILIES,REDACTED PERSONAL DATA,252.9,ADOPTION ALLOWANCES,PAYMENTS TO CARERS,REDACTED,REDACTED
05.04.2023,CHILDREN AND FAMILIES,REDACTED PERSONAL DATA,253.56,ADOPTION ALLOWANCES,PAYMENTS TO CARERS,REDACTED,REDACTED
05.04.2023,CHILDREN AND FAMILIES,REDACTED PERSONAL DATA,276.1,ADOPTION ALLOWANCES,PAYMENTS TO CARERS,REDACTED,REDACTED
05.04.2023,CHILDREN AND FAMILIES,REDACTED PERSONAL DATA,278.54,ADOPTION ALLOWANCES,PAYMENTS TO CARERS,REDACTED,REDACTED
05.04.2023,CHILDREN AND FAMILIES,REDACTED PERSONAL DATA,279.22,ADOPTION ALLOWANCES,PAYMENTS TO CARERS,REDACTED,REDACTED
05.04.2023,CHILDREN AND FAMILIES,REDACTED PERSONAL DATA,281.16,ADOPTION ALLOWANCES,PAYMENTS TO CARERS,REDACTED,REDACTED
05.04.2023,CHILDREN AND FAMILIES,REDACTED PERSONAL DATA,288.82,ADOPTION ALLOWANCES,PAYMENTS TO CARERS,REDACTED,REDACTED
05.04.2023,CHILDREN AND FAMILIES,REDACTED PERSONAL DATA,288.92,ADOPTION ALLOWANCES,PAYMENTS TO CARERS,REDACTED,REDACTED
05.04.2023,CHILDREN AND FAMILIES,REDACTED PERSONAL DATA,293.12,ADOPTION ALLOWANCES,PAYMENTS TO CARERS,REDACTED,REDACTED
05.04.2023,CHILDREN AND FAMILIES,REDACTED PERSONAL DATA,320.56,ADOPTION ALLOWANCES,PAYMENTS TO CARERS,REDACTED,REDACTED
05.04.2023,CHILDREN AND FAMILIES,REDACTED PERSONAL DATA,359.9,ADOPTION ALLOWANCES,PAYMENTS TO CARERS,REDACTED,REDACTED
05.04.2023,CHILDREN AND FAMILIES,REDACTED PERSONAL DATA,364.93,ADOPTION ALLOWANCES,PAYMENTS TO CARERS,REDACTED,REDACTED
05.04.2023,CHILDREN AND FAMILIES,REDACTED PERSONAL DATA,375.54,ADOPTION ALLOWANCES,PAYMENTS TO CARERS,REDACTED,REDACTED
05.04.2023,CHILDREN AND FAMILIES,REDACTED PERSONAL DATA,375.54,ADOPTION ALLOWANCES,PAYMENTS TO CARERS,REDACTED,REDACTED
05.04.2023,CHILDREN AND FAMILIES,REDACTED PERSONAL DATA,375.54,ADOPTION ALLOWANCES,PAYMENTS TO CARERS,REDACTED,REDACTED
05.04.2023,CHILDREN AND FAMILIES,REDACTED PERSONAL DATA,375.54,ADOPTION ALLOWANCES,PAYMENTS TO CARERS,REDACTED,REDACTED
05.04.2023,CHILDREN AND FAMILIES,REDACTED PERSONAL DATA,375.54,ADOPTION ALLOWANCES,PAYMENTS TO CARERS,REDACTED,REDACTED
05.04.2023,CHILDREN AND FAMILIES,REDACTED PERSONAL DATA,375.54,ADOPTION ALLOWANCES,PAYMENTS TO CARERS,REDACTED,REDACTED
05.04.2023,CHILDREN AND FAMILIES,REDACTED PERSONAL DATA,375.54,ADOPTION ALLOWANCES,PAYMENTS TO CARERS,REDACTED,REDACTED
05.04.2023,CHILDREN AND FAMILIES,REDACTED PERSONAL DATA,382.3,ADOPTION ALLOWANCES,PAYMENTS TO CARERS,REDACTED,REDACTED
05.04.2023,CHILDREN AND FAMILIES,REDACTED PERSONAL DATA,382.3,ADOPTION ALLOWANCES,PAYMENTS TO CARERS,REDACTED,REDACTED
05.04.2023,CHILDREN AND FAMILIES,REDACTED PERSONAL DATA,382.3,ADOPTION ALLOWANCES,PAYMENTS TO CARERS,REDACTED,REDACTED
05.04.2023,CHILDREN AND FAMILIES,REDACTED PERSONAL DATA,382.3,ADOPTION ALLOWANCES,PAYMENTS TO CARERS,REDACTED,REDACTED
05.04.2023,CHILDREN AND FAMILIES,REDACTED PERSONAL DATA,386,ADOPTION ALLOWANCES,PAYMENTS TO CARERS,REDACTED,REDACTED
05.04.2023,CHILDREN AND FAMILIES,REDACTED PERSONAL DATA,400.18,ADOPTION ALLOWANCES,PAYMENTS TO CARERS,REDACTED,REDACTED
05.04.2023,CHILDREN AND FAMILIES,REDACTED PERSONAL DATA,412,ADOPTION ALLOWANCES,PAYMENTS TO CARERS,REDACTED,REDACTED
05.04.2023,CHILDREN AND FAMILIES,REDACTED PERSONAL DATA,442.74,ADOPTION ALLOWANCES,PAYMENTS TO CARERS,REDACTED,REDACTED
05.04.2023,CHILDREN AND FAMILIES,REDACTED PERSONAL DATA,451.8,ADOPTION ALLOWANCES,PAYMENTS TO CARERS,REDACTED,REDACTED
05.04.2023,CHILDREN AND FAMILIES,REDACTED PERSONAL DATA,484.92,ADOPTION ALLOWANCES,PAYMENTS TO CARERS,REDACTED,REDACTED
05.04.2023,CHILDREN AND FAMILIES,REDACTED PERSONAL DATA,485.22,ADOPTION ALLOWANCES,PAYMENTS TO CARERS,REDACTED,REDACTED
05.04.2023,CHILDREN AND FAMILIES,REDACTED PERSONAL DATA,502,ADOPTION ALLOWANCES,PAYMENTS TO CARERS,REDACTED,REDACTED
05.04.2023,CHILDREN AND FAMILIES,REDACTED PERSONAL DATA,512.02,ADOPTION ALLOWANCES,PAYMENTS TO CARERS,REDACTED,REDACTED
05.04.2023,CHILDREN AND FAMILIES,REDACTED PERSONAL DATA,588.42,ADOPTION ALLOWANCES,PAYMENTS TO CARERS,REDACTED,REDACTED
05.04.2023,CHILDREN AND FAMILIES,REDACTED PERSONAL DATA,600,ADOPTION ALLOWANCES,PAYMENTS TO CARERS,REDACTED,REDACTED
05.04.2023,CHILDREN AND FAMILIES,REDACTED PERSONAL DATA,618.6,ADOPTION ALLOWANCES,PAYMENTS TO CARERS,REDACTED,REDACTED
05.04.2023,CHILDREN AND FAMILIES,REDACTED PERSONAL DATA,635.34,ADOPTION ALLOWANCES,PAYMENTS TO CARERS,REDACTED,REDACTED
05.04.2023,CHILDREN AND FAMILIES,REDACTED PERSONAL DATA,640.9,ADOPTION ALLOWANCES,PAYMENTS TO CARERS,REDACTED,REDACTED
05.04.2023,CHILDREN AND FAMILIES,REDACTED PERSONAL DATA,652.9,ADOPTION ALLOWANCES,PAYMENTS TO CARERS,REDACTED,REDACTED
05.04.2023,CHILDREN AND FAMILIES,REDACTED PERSONAL DATA,652.9,ADOPTION ALLOWANCES,PAYMENTS TO CARERS,REDACTED,REDACTED
05.04.2023,CHILDREN AND FAMILIES,REDACTED PERSONAL DATA,682,ADOPTION ALLOWANCES,PAYMENTS TO CARERS,REDACTED,REDACTED
05.04.2023,CHILDREN AND FAMILIES,REDACTED PERSONAL DATA,682,ADOPTION ALLOWANCES,PAYMENTS TO CARERS,REDACTED,REDACTED
05.04.2023,CHILDREN AND FAMILIES,REDACTED PERSONAL DATA,682,ADOPTION ALLOWANCES,PAYMENTS TO CARERS,REDACTED,REDACTED
05.04.2023,CHILDREN AND FAMILIES,REDACTED PERSONAL DATA,682,ADOPTION ALLOWANCES,PAYMENTS TO CARERS,REDACTED,REDACTED
05.04.2023,CHILDREN AND FAMILIES,REDACTED PERSONAL DATA,682,ADOPTION ALLOWANCES,PAYMENTS TO CARERS,REDACTED,REDACTED
05.04.2023,CHILDREN AND FAMILIES,REDACTED PERSONAL DATA,695.12,ADOPTION ALLOWANCES,PAYMENTS TO CARERS,REDACTED,REDACTED
05.04.2023,CHILDREN AND FAMILIES,REDACTED PERSONAL DATA,696,ADOPTION ALLOWANCES,PAYMENTS TO CARERS,REDACTED,REDACTED
05.04.2023,CHILDREN AND FAMILIES,REDACTED PERSONAL DATA,704,ADOPTION ALLOWANCES,PAYMENTS TO CARERS,REDACTED,REDACTED
05.04.2023,CHILDREN AND FAMILIES,REDACTED PERSONAL DATA,705.24,ADOPTION ALLOWANCES,PAYMENTS TO CARERS,REDACTED,REDACTED
05.04.2023,CHILDREN AND FAMILIES,REDACTED PERSONAL DATA,712.3,ADOPTION ALLOWANCES,PAYMENTS TO CARERS,REDACTED,REDACTED
05.04.2023,CHILDREN AND FAMILIES,REDACTED PERSONAL DATA,712.3,ADOPTION ALLOWANCES,PAYMENTS TO CARERS,REDACTED,REDACTED
05.04.2023,CHILDREN AND FAMILIES,REDACTED PERSONAL DATA,738.32,ADOPTION ALLOWANCES,PAYMENTS TO CARERS,REDACTED,REDACTED
05.04.2023,CHILDREN AND FAMILIES,REDACTED PERSONAL DATA,738.32,ADOPTION ALLOWANCES,PAYMENTS TO CARERS,REDACTED,REDACTED
05.04.2023,CHILDREN AND FAMILIES,REDACTED PERSONAL DATA,767.68,ADOPTION ALLOWANCES,PAYMENTS TO CARERS,REDACTED,REDACTED
05.04.2023,CHILDREN AND FAMILIES,REDACTED PERSONAL DATA,777.36,ADOPTION ALLOWANCES,PAYMENTS TO CARERS,REDACTED,REDACTED
05.04.2023,CHILDREN AND FAMILIES,REDACTED PERSONAL DATA,789.7,ADOPTION ALLOWANCES,PAYMENTS TO CARERS,REDACTED,REDACTED
05.04.2023,CHILDREN AND FAMILIES,REDACTED PERSONAL DATA,862,ADOPTION ALLOWANCES,PAYMENTS TO CARERS,REDACTED,REDACTED
05.04.2023,CHILDREN AND FAMILIES,REDACTED PERSONAL DATA,908,ADOPTION ALLOWANCES,PAYMENTS TO CARERS,REDACTED,REDACTED
05.04.2023,CHILDREN AND FAMILIES,REDACTED PERSONAL DATA,"1,053.20",ADOPTION ALLOWANCES,PAYMENTS TO CARERS,REDACTED,REDACTED
05.04.2023,CHILDREN AND FAMILIES,REDACTED PERSONAL DATA,"1,431.00",ADOPTION ALLOWANCES,PAYMENTS TO CARERS,REDACTED,REDACTED
05.04.2023,CHILDREN AND FAMILIES,INDEPENDENT BIA LTD,400,ADOPTION SUPP FUND 1,EXTERNAL AGENCIES AND BODIES,5902574489,1000086264
05.04.2023,CHILDREN AND FAMILIES,INDEPENDENT BIA LTD,500,ADOPTION SUPP FUND 1,EXTERNAL AGENCIES AND BODIES,5902574488,1000086264
05.04.2023,CHILDREN AND FAMILIES,REDACTED PERSONAL DATA,350,ADOPTION SUPP FUND 1,EXTERNAL AGENCIES AND BODIES,REDACTED,REDACTED
05.04.2023,CHILDREN AND FAMILIES,REDACTED PERSONAL DATA,"1,080.00",ADOPTION SUPP FUND 1,EXTERNAL AGENCIES AND BODIES,REDACTED,REDACTED
05.04.2023,CHILDREN AND FAMILIES,CENTRE FOR EMOTIONAL DEVELOPMENT LTD,360,ADOPTION SUPP FUND 2,EXTERNAL AGENCIES AND BODIES,5902574540,1000070499
05.04.2023,CHILDREN AND FAMILIES,THE PURPLE ELEPHANT PROJECT,525,ADOPTION SUPP FUND 2,EXTERNAL AGENCIES AND BODIES,5902574502,1000088332
05.04.2023,CHILDREN AND FAMILIES,THE PURPLE ELEPHANT PROJECT,630,ADOPTION SUPP FUND 2,EXTERNAL AGENCIES AND BODIES,5902574557,1000088332
05.04.2023,CHILDREN AND FAMILIES,THE PURPLE ELEPHANT PROJECT,640,ADOPTION SUPP FUND 2,EXTERNAL AGENCIES AND BODIES,5902574553,1000088332
05.04.2023,CHILDREN AND FAMILIES,THE PURPLE ELEPHANT PROJECT,920,ADOPTION SUPP FUND 2,EXTERNAL AGENCIES AND BODIES,5902574498,1000088332
05.04.2023,CHILDREN AND FAMILIES,THE PURPLE ELEPHANT PROJECT,920,ADOPTION SUPP FUND 2,EXTERNAL AGENCIES AND BODIES,5902574543,1000088332
05.04.2023,CHILDREN AND FAMILIES,REDACTED PERSONAL DATA,360,ADOPTION SUPP FUND 2,EXTERNAL AGENCIES AND BODIES,REDACTED,REDACTED
05.04.2023,CHILDREN AND FAMILIES,REDACTED PERSONAL DATA,480,ADOPTION SUPP FUND 2,EXTERNAL AGENCIES AND BODIES,REDACTED,REDACTED
05.04.2023,CHILDREN AND FAMILIES,REDACTED PERSONAL DATA,480,ADOPTION SUPP FUND 2,EXTERNAL AGENCIES AND BODIES,REDACTED,REDACTED
05.04.2023,CHILDREN AND FAMILIES,REDACTED PERSONAL DATA,600,ADOPTION SUPP FUND 2,EXTERNAL AGENCIES AND BODIES,REDACTED,REDACTED
05.04.2023,CHILDREN AND FAMILIES,REDACTED PERSONAL DATA,900,ADOPTION SUPP FUND 2,EXTERNAL AGENCIES AND BODIES,REDACTED,REDACTED
05.04.2023,CHILDREN AND FAMILIES,REDACTED PERSONAL DATA,"1,007.00",ADOPTION SUPP FUND 2,EXTERNAL AGENCIES AND BODIES,REDACTED,REDACTED
05.04.2023,CHILDREN AND FAMILIES,REDACTED PERSONAL DATA,"1,200.00",ADOPTION SUPP FUND 2,EXTERNAL AGENCIES AND BODIES,REDACTED,REDACTED
05.04.2023,CHILDREN AND FAMILIES,AEGIS 24/7 LTD,"4,792.85",CHILDREN�S RESID,RESIDENTIAL CARE,5902574561,1000089533
05.04.2023,CHILDREN AND FAMILIES,OPTIMUM FOCUS COMPANY LTD,628.33,FAMILY GROUP CONF�S,PROFESSIONAL FEES,5902574535,1000081322
05.04.2023,CHILDREN AND FAMILIES,OPTIMUM FOCUS COMPANY LTD,"1,068.17",FAMILY GROUP CONF�S,PROFESSIONAL FEES,5902574537,1000081322
05.04.2023,CHILDREN AND FAMILIES,REDACTED PERSONAL DATA,300,FOSTERING ALLOWANCES,ADDITIONAL PAYMENTS TO AGENCIES/CARERS,REDACTED,REDACTED
05.04.2023,CHILDREN AND FAMILIES,REDACTED PERSONAL DATA,300,FOSTERING ALLOWANCES,ADDITIONAL PAYMENTS TO AGENCIES/CARERS,REDACTED,REDACTED
05.04.2023,CHILDREN AND FAMILIES,REDACTED PERSONAL DATA,300,FOSTERING ALLOWANCES,ADDITIONAL PAYMENTS TO AGENCIES/CARERS,REDACTED,REDACTED
05.04.2023,CHILDREN AND FAMILIES,REDACTED PERSONAL DATA,300,FOSTERING ALLOWANCES,ADDITIONAL PAYMENTS TO AGENCIES/CARERS,REDACTED,REDACTED
05.04.2023,CHILDREN AND FAMILIES,REDACTED PERSONAL DATA,300,FOSTERING ALLOWANCES,ADDITIONAL PAYMENTS TO AGENCIES/CARERS,REDACTED,REDACTED
05.04.2023,CHILDREN AND FAMILIES,REDACTED PERSONAL DATA,"4,098.36",FOSTERING ALLOWANCES,ADDITIONAL PAYMENTS TO AGENCIES/CARERS,REDACTED,REDACTED
05.04.2023,CHILDREN AND FAMILIES,REDACTED PERSONAL DATA,300,FOSTERING ALLOWANCES,OTHER PAYMENTS FOR CLIENTS,REDACTED,REDACTED
05.04.2023,CHILDREN AND FAMILIES,REDACTED PERSONAL DATA,300,FOSTERING ALLOWANCES,OTHER PAYMENTS FOR CLIENTS,REDACTED,REDACTED
05.04.2023,CHILDREN AND FAMILIES,REDACTED PERSONAL DATA,300,FOSTERING ALLOWANCES,OTHER PAYMENTS FOR CLIENTS,REDACTED,REDACTED
05.04.2023,CHILDREN AND FAMILIES,REDACTED PERSONAL DATA,"-2,870.00",FOSTERING ALLOWANCES,PAYMENTS TO CARERS,REDACTED,REDACTED
05.04.2023,CHILDREN AND FAMILIES,REDACTED PERSONAL DATA,-877.71,FOSTERING ALLOWANCES,PAYMENTS TO CARERS,REDACTED,REDACTED
05.04.2023,CHILDREN AND FAMILIES,REDACTED PERSONAL DATA,-512,FOSTERING ALLOWANCES,PAYMENTS TO CARERS,REDACTED,REDACTED
05.04.2023,CHILDREN AND FAMILIES,REDACTED PERSONAL DATA,-438.86,FOSTERING ALLOWANCES,PAYMENTS TO CARERS,REDACTED,REDACTED
05.04.2023,CHILDREN AND FAMILIES,REDACTED PERSONAL DATA,-376.42,FOSTERING ALLOWANCES,PAYMENTS TO CARERS,REDACTED,REDACTED
05.04.2023,CHILDREN AND FAMILIES,REDACTED PERSONAL DATA,-376.42,FOSTERING ALLOWANCES,PAYMENTS TO CARERS,REDACTED,REDACTED
05.04.2023,CHILDREN AND FAMILIES,REDACTED PERSONAL DATA,-376.42,FOSTERING ALLOWANCES,PAYMENTS TO CARERS,REDACTED,REDACTED
05.04.2023,CHILDREN AND FAMILIES,REDACTED PERSONAL DATA,-368.58,FOSTERING ALLOWANCES,PAYMENTS TO CARERS,REDACTED,REDACTED
05.04.2023,CHILDREN AND FAMILIES,REDACTED PERSONAL DATA,-367,FOSTERING ALLOWANCES,PAYMENTS TO CARERS,REDACTED,REDACTED
05.04.2023,CHILDREN AND FAMILIES,REDACTED PERSONAL DATA,-360,FOSTERING ALLOWANCES,PAYMENTS TO CARERS,REDACTED,REDACTED
05.04.2023,CHILDREN AND FAMILIES,REDACTED PERSONAL DATA,-360,FOSTERING ALLOWANCES,PAYMENTS TO CARERS,REDACTED,REDACTED
05.04.2023,CHILDREN AND FAMILIES,REDACTED PERSONAL DATA,-360,FOSTERING ALLOWANCES,PAYMENTS TO CARERS,REDACTED,REDACTED
05.04.2023,CHILDREN AND FAMILIES,REDACTED PERSONAL DATA,-360,FOSTERING ALLOWANCES,PAYMENTS TO CARERS,REDACTED,REDACTED
05.04.2023,CHILDREN AND FAMILIES,REDACTED PERSONAL DATA,-360,FOSTERING ALLOWANCES,PAYMENTS TO CARERS,REDACTED,REDACTED
05.04.2023,CHILDREN AND FAMILIES,REDACTED PERSONAL DATA,-360,FOSTERING ALLOWANCES,PAYMENTS TO CARERS,REDACTED,REDACTED
05.04.2023,CHILDREN AND FAMILIES,REDACTED PERSONAL DATA,-360,FOSTERING ALLOWANCES,PAYMENTS TO CARERS,REDACTED,REDACTED
05.04.2023,CHILDREN AND FAMILIES,REDACTED PERSONAL DATA,-360,FOSTERING ALLOWANCES,PAYMENTS TO CARERS,REDACTED,REDACTED
05.04.2023,CHILDREN AND FAMILIES,REDACTED PERSONAL DATA,-360,FOSTERING ALLOWANCES,PAYMENTS TO CARERS,REDACTED,REDACTED
05.04.2023,CHILDREN AND FAMILIES,REDACTED PERSONAL DATA,-349.72,FOSTERING ALLOWANCES,PAYMENTS TO CARERS,REDACTED,REDACTED
05.04.2023,CHILDREN AND FAMILIES,REDACTED PERSONAL DATA,-346.43,FOSTERING ALLOWANCES,PAYMENTS TO CARERS,REDACTED,REDACTED
05.04.2023,CHILDREN AND FAMILIES,REDACTED PERSONAL DATA,-329.29,FOSTERING ALLOWANCES,PAYMENTS TO CARERS,REDACTED,REDACTED
05.04.2023,CHILDREN AND FAMILIES,REDACTED PERSONAL DATA,-329.29,FOSTERING ALLOWANCES,PAYMENTS TO CARERS,REDACTED,REDACTED
05.04.2023,CHILDREN AND FAMILIES,REDACTED PERSONAL DATA,-329.29,FOSTERING ALLOWANCES,PAYMENTS TO CARERS,REDACTED,REDACTED
05.04.2023,CHILDREN AND FAMILIES,REDACTED PERSONAL DATA,-329.29,FOSTERING ALLOWANCES,PAYMENTS TO CARERS,REDACTED,REDACTED
05.04.2023,CHILDREN AND FAMILIES,REDACTED PERSONAL DATA,-329.29,FOSTERING ALLOWANCES,PAYMENTS TO CARERS,REDACTED,REDACTED
05.04.2023,CHILDREN AND FAMILIES,REDACTED PERSONAL DATA,-329.29,FOSTERING ALLOWANCES,PAYMENTS TO CARERS,REDACTED,REDACTED
05.04.2023,CHILDREN AND FAMILIES,REDACTED PERSONAL DATA,-329.29,FOSTERING ALLOWANCES,PAYMENTS TO CARERS,REDACTED,REDACTED
05.04.2023,CHILDREN AND FAMILIES,REDACTED PERSONAL DATA,-329.29,FOSTERING ALLOWANCES,PAYMENTS TO CARERS,REDACTED,REDACTED
05.04.2023,CHILDREN AND FAMILIES,REDACTED PERSONAL DATA,-329.29,FOSTERING ALLOWANCES,PAYMENTS TO CARERS,REDACTED,REDACTED
05.04.2023,CHILDREN AND FAMILIES,REDACTED PERSONAL DATA,-329.29,FOSTERING ALLOWANCES,PAYMENTS TO CARERS,REDACTED,REDACTED
05.04.2023,CHILDREN AND FAMILIES,REDACTED PERSONAL DATA,-329.29,FOSTERING ALLOWANCES,PAYMENTS TO CARERS,REDACTED,REDACTED
05.04.2023,CHILDREN AND FAMILIES,REDACTED PERSONAL DATA,-329.29,FOSTERING ALLOWANCES,PAYMENTS TO CARERS,REDACTED,REDACTED
05.04.2023,CHILDREN AND FAMILIES,REDACTED PERSONAL DATA,-327,FOSTERING ALLOWANCES,PAYMENTS TO CARERS,REDACTED,REDACTED
05.04.2023,CHILDREN AND FAMILIES,REDACTED PERSONAL DATA,-327,FOSTERING ALLOWANCES,PAYMENTS TO CARERS,REDACTED,REDACTED
05.04.2023,CHILDREN AND FAMILIES,REDACTED PERSONAL DATA,-327,FOSTERING ALLOWANCES,PAYMENTS TO CARERS,REDACTED,REDACTED
05.04.2023,CHILDREN AND FAMILIES,REDACTED PERSONAL DATA,-327,FOSTERING ALLOWANCES,PAYMENTS TO CARERS,REDACTED,REDACTED
05.04.2023,CHILDREN AND FAMILIES,REDACTED PERSONAL DATA,-327,FOSTERING ALLOWANCES,PAYMENTS TO CARERS,REDACTED,REDACTED
05.04.2023,CHILDREN AND FAMILIES,REDACTED PERSONAL DATA,-327,FOSTERING ALLOWANCES,PAYMENTS TO CARERS,REDACTED,REDACTED
05.04.2023,CHILDREN AND FAMILIES,REDACTED PERSONAL DATA,-327,FOSTERING ALLOWANCES,PAYMENTS TO CARERS,REDACTED,REDACTED
05.04.2023,CHILDREN AND FAMILIES,REDACTED PERSONAL DATA,-327,FOSTERING ALLOWANCES,PAYMENTS TO CARERS,REDACTED,REDACTED
05.04.2023,CHILDREN AND FAMILIES,REDACTED PERSONAL DATA,-327,FOSTERING ALLOWANCES,PAYMENTS TO CARERS,REDACTED,REDACTED
05.04.2023,CHILDREN AND FAMILIES,REDACTED PERSONAL DATA,-327,FOSTERING ALLOWANCES,PAYMENTS TO CARERS,REDACTED,REDACTED
05.04.2023,CHILDREN AND FAMILIES,REDACTED PERSONAL DATA,-327,FOSTERING ALLOWANCES,PAYMENTS TO CARERS,REDACTED,REDACTED
05.04.2023,CHILDREN AND FAMILIES,REDACTED PERSONAL DATA,-327,FOSTERING ALLOWANCES,PAYMENTS TO CARERS,REDACTED,REDACTED
05.04.2023,CHILDREN AND FAMILIES,REDACTED PERSONAL DATA,-327,FOSTERING ALLOWANCES,PAYMENTS TO CARERS,REDACTED,REDACTED
05.04.2023,CHILDREN AND FAMILIES,REDACTED PERSONAL DATA,-327,FOSTERING ALLOWANCES,PAYMENTS TO CARERS,REDACTED,REDACTED
05.04.2023,CHILDREN AND FAMILIES,REDACTED PERSONAL DATA,-327,FOSTERING ALLOWANCES,PAYMENTS TO CARERS,REDACTED,REDACTED
05.04.2023,CHILDREN AND FAMILIES,REDACTED PERSONAL DATA,-315.71,FOSTERING ALLOWANCES,PAYMENTS TO CARERS,REDACTED,REDACTED
05.04.2023,CHILDREN AND FAMILIES,REDACTED PERSONAL DATA,-315.57,FOSTERING ALLOWANCES,PAYMENTS TO CARERS,REDACTED,REDACTED
05.04.2023,CHILDREN AND FAMILIES,REDACTED PERSONAL DATA,-315.57,FOSTERING ALLOWANCES,PAYMENTS TO CARERS,REDACTED,REDACTED
05.04.2023,CHILDREN AND FAMILIES,REDACTED PERSONAL DATA,-289.72,FOSTERING ALLOWANCES,PAYMENTS TO CARERS,REDACTED,REDACTED
05.04.2023,CHILDREN AND FAMILIES,REDACTED PERSONAL DATA,-289.72,FOSTERING ALLOWANCES,PAYMENTS TO CARERS,REDACTED,REDACTED
05.04.2023,CHILDREN AND FAMILIES,REDACTED PERSONAL DATA,-289.72,FOSTERING ALLOWANCES,PAYMENTS TO CARERS,REDACTED,REDACTED
05.04.2023,CHILDREN AND FAMILIES,REDACTED PERSONAL DATA,-276.86,FOSTERING ALLOWANCES,PAYMENTS TO CARERS,REDACTED,REDACTED
05.04.2023,CHILDREN AND FAMILIES,REDACTED PERSONAL DATA,-276.86,FOSTERING ALLOWANCES,PAYMENTS TO CARERS,REDACTED,REDACTED
05.04.2023,CHILDREN AND FAMILIES,REDACTED PERSONAL DATA,-276.86,FOSTERING ALLOWANCES,PAYMENTS TO CARERS,REDACTED,REDACTED
05.04.2023,CHILDREN AND FAMILIES,REDACTED PERSONAL DATA,-276.86,FOSTERING ALLOWANCES,PAYMENTS TO CARERS,REDACTED,REDACTED
05.04.2023,CHILDREN AND FAMILIES,REDACTED PERSONAL DATA,-270.72,FOSTERING ALLOWANCES,PAYMENTS TO CARERS,REDACTED,REDACTED
05.04.2023,CHILDREN AND FAMILIES,REDACTED PERSONAL DATA,-266.86,FOSTERING ALLOWANCES,PAYMENTS TO CARERS,REDACTED,REDACTED
05.04.2023,CHILDREN AND FAMILIES,REDACTED PERSONAL DATA,270.72,FOSTERING ALLOWANCES,PAYMENTS TO CARERS,REDACTED,REDACTED
05.04.2023,CHILDREN AND FAMILIES,REDACTED PERSONAL DATA,276.86,FOSTERING ALLOWANCES,PAYMENTS TO CARERS,REDACTED,REDACTED
05.04.2023,CHILDREN AND FAMILIES,REDACTED PERSONAL DATA,276.86,FOSTERING ALLOWANCES,PAYMENTS TO CARERS,REDACTED,REDACTED
05.04.2023,CHILDREN AND FAMILIES,REDACTED PERSONAL DATA,289.72,FOSTERING ALLOWANCES,PAYMENTS TO CARERS,REDACTED,REDACTED
05.04.2023,CHILDREN AND FAMILIES,REDACTED PERSONAL DATA,289.72,FOSTERING ALLOWANCES,PAYMENTS TO CARERS,REDACTED,REDACTED
05.04.2023,CHILDREN AND FAMILIES,REDACTED PERSONAL DATA,300,FOSTERING ALLOWANCES,PAYMENTS TO CARERS,REDACTED,REDACTED
05.04.2023,CHILDREN AND FAMILIES,REDACTED PERSONAL DATA,315.57,FOSTERING ALLOWANCES,PAYMENTS TO CARERS,REDACTED,REDACTED
05.04.2023,CHILDREN AND FAMILIES,REDACTED PERSONAL DATA,315.71,FOSTERING ALLOWANCES,PAYMENTS TO CARERS,REDACTED,REDACTED
05.04.2023,CHILDREN AND FAMILIES,REDACTED PERSONAL DATA,327,FOSTERING ALLOWANCES,PAYMENTS TO CARERS,REDACTED,REDACTED
05.04.2023,CHILDREN AND FAMILIES,REDACTED PERSONAL DATA,327,FOSTERING ALLOWANCES,PAYMENTS TO CARERS,REDACTED,REDACTED
05.04.2023,CHILDREN AND FAMILIES,REDACTED PERSONAL DATA,327,FOSTERING ALLOWANCES,PAYMENTS TO CARERS,REDACTED,REDACTED
05.04.2023,CHILDREN AND FAMILIES,REDACTED PERSONAL DATA,327,FOSTERING ALLOWANCES,PAYMENTS TO CARERS,REDACTED,REDACTED
05.04.2023,CHILDREN AND FAMILIES,REDACTED PERSONAL DATA,327,FOSTERING ALLOWANCES,PAYMENTS TO CARERS,REDACTED,REDACTED
05.04.2023,CHILDREN AND FAMILIES,REDACTED PERSONAL DATA,327,FOSTERING ALLOWANCES,PAYMENTS TO CARERS,REDACTED,REDACTED
05.04.2023,CHILDREN AND FAMILIES,REDACTED PERSONAL DATA,327,FOSTERING ALLOWANCES,PAYMENTS TO CARERS,REDACTED,REDACTED
05.04.2023,CHILDREN AND FAMILIES,REDACTED PERSONAL DATA,327,FOSTERING ALLOWANCES,PAYMENTS TO CARERS,REDACTED,REDACTED
05.04.2023,CHILDREN AND FAMILIES,REDACTED PERSONAL DATA,327,FOSTERING ALLOWANCES,PAYMENTS TO CARERS,REDACTED,REDACTED
05.04.2023,CHILDREN AND FAMILIES,REDACTED PERSONAL DATA,327,FOSTERING ALLOWANCES,PAYMENTS TO CARERS,REDACTED,REDACTED
05.04.2023,CHILDREN AND FAMILIES,REDACTED PERSONAL DATA,327,FOSTERING ALLOWANCES,PAYMENTS TO CARERS,REDACTED,REDACTED
05.04.2023,CHILDREN AND FAMILIES,REDACTED PERSONAL DATA,327,FOSTERING ALLOWANCES,PAYMENTS TO CARERS,REDACTED,REDACTED
05.04.2023,CHILDREN AND FAMILIES,REDACTED PERSONAL DATA,327,FOSTERING ALLOWANCES,PAYMENTS TO CARERS,REDACTED,REDACTED
05.04.2023,CHILDREN AND FAMILIES,REDACTED PERSONAL DATA,329.29,FOSTERING ALLOWANCES,PAYMENTS TO CARERS,REDACTED,REDACTED
05.04.2023,CHILDREN AND FAMILIES,REDACTED PERSONAL DATA,329.29,FOSTERING ALLOWANCES,PAYMENTS TO CARERS,REDACTED,REDACTED
05.04.2023,CHILDREN AND FAMILIES,REDACTED PERSONAL DATA,329.29,FOSTERING ALLOWANCES,PAYMENTS TO CARERS,REDACTED,REDACTED
05.04.2023,CHILDREN AND FAMILIES,REDACTED PERSONAL DATA,329.29,FOSTERING ALLOWANCES,PAYMENTS TO CARERS,REDACTED,REDACTED
05.04.2023,CHILDREN AND FAMILIES,REDACTED PERSONAL DATA,329.29,FOSTERING ALLOWANCES,PAYMENTS TO CARERS,REDACTED,REDACTED
05.04.2023,CHILDREN AND FAMILIES,REDACTED PERSONAL DATA,329.29,FOSTERING ALLOWANCES,PAYMENTS TO CARERS,REDACTED,REDACTED
05.04.2023,CHILDREN AND FAMILIES,REDACTED PERSONAL DATA,329.29,FOSTERING ALLOWANCES,PAYMENTS TO CARERS,REDACTED,REDACTED
05.04.2023,CHILDREN AND FAMILIES,REDACTED PERSONAL DATA,329.29,FOSTERING ALLOWANCES,PAYMENTS TO CARERS,REDACTED,REDACTED
05.04.2023,CHILDREN AND FAMILIES,REDACTED PERSONAL DATA,329.29,FOSTERING ALLOWANCES,PAYMENTS TO CARERS,REDACTED,REDACTED
05.04.2023,CHILDREN AND FAMILIES,REDACTED PERSONAL DATA,346.43,FOSTERING ALLOWANCES,PAYMENTS TO CARERS,REDACTED,REDACTED
05.04.2023,CHILDREN AND FAMILIES,REDACTED PERSONAL DATA,360,FOSTERING ALLOWANCES,PAYMENTS TO CARERS,REDACTED,REDACTED
05.04.2023,CHILDREN AND FAMILIES,REDACTED PERSONAL DATA,360,FOSTERING ALLOWANCES,PAYMENTS TO CARERS,REDACTED,REDACTED
05.04.2023,CHILDREN AND FAMILIES,REDACTED PERSONAL DATA,360,FOSTERING ALLOWANCES,PAYMENTS TO CARERS,REDACTED,REDACTED
05.04.2023,CHILDREN AND FAMILIES,REDACTED PERSONAL DATA,360,FOSTERING ALLOWANCES,PAYMENTS TO CARERS,REDACTED,REDACTED
05.04.2023,CHILDREN AND FAMILIES,REDACTED PERSONAL DATA,360,FOSTERING ALLOWANCES,PAYMENTS TO CARERS,REDACTED,REDACTED
05.04.2023,CHILDREN AND FAMILIES,REDACTED PERSONAL DATA,376.42,FOSTERING ALLOWANCES,PAYMENTS TO CARERS,REDACTED,REDACTED
05.04.2023,CHILDREN AND FAMILIES,REDACTED PERSONAL DATA,553.72,FOSTERING ALLOWANCES,PAYMENTS TO CARERS,REDACTED,REDACTED
05.04.2023,CHILDREN AND FAMILIES,REDACTED PERSONAL DATA,616.72,FOSTERING ALLOWANCES,PAYMENTS TO CARERS,REDACTED,REDACTED
05.04.2023,CHILDREN AND FAMILIES,REDACTED PERSONAL DATA,657.57,FOSTERING ALLOWANCES,PAYMENTS TO CARERS,REDACTED,REDACTED
05.04.2023,CHILDREN AND FAMILIES,REDACTED PERSONAL DATA,658.58,FOSTERING ALLOWANCES,PAYMENTS TO CARERS,REDACTED,REDACTED
05.04.2023,CHILDREN AND FAMILIES,REDACTED PERSONAL DATA,660,FOSTERING ALLOWANCES,PAYMENTS TO CARERS,REDACTED,REDACTED
05.04.2023,CHILDREN AND FAMILIES,REDACTED PERSONAL DATA,675.57,FOSTERING ALLOWANCES,PAYMENTS TO CARERS,REDACTED,REDACTED
05.04.2023,CHILDREN AND FAMILIES,REDACTED PERSONAL DATA,687,FOSTERING ALLOWANCES,PAYMENTS TO CARERS,REDACTED,REDACTED
05.04.2023,CHILDREN AND FAMILIES,REDACTED PERSONAL DATA,687,FOSTERING ALLOWANCES,PAYMENTS TO CARERS,REDACTED,REDACTED
05.04.2023,CHILDREN AND FAMILIES,REDACTED PERSONAL DATA,733.98,FOSTERING ALLOWANCES,PAYMENTS TO CARERS,REDACTED,REDACTED
05.04.2023,CHILDREN AND FAMILIES,REDACTED PERSONAL DATA,745,FOSTERING ALLOWANCES,PAYMENTS TO CARERS,REDACTED,REDACTED
05.04.2023,CHILDREN AND FAMILIES,REDACTED PERSONAL DATA,750,FOSTERING ALLOWANCES,PAYMENTS TO CARERS,REDACTED,REDACTED
05.04.2023,CHILDREN AND FAMILIES,REDACTED PERSONAL DATA,776.86,FOSTERING ALLOWANCES,PAYMENTS TO CARERS,REDACTED,REDACTED
05.04.2023,CHILDREN AND FAMILIES,REDACTED PERSONAL DATA,776.86,FOSTERING ALLOWANCES,PAYMENTS TO CARERS,REDACTED,REDACTED
05.04.2023,CHILDREN AND FAMILIES,REDACTED PERSONAL DATA,776.86,FOSTERING ALLOWANCES,PAYMENTS TO CARERS,REDACTED,REDACTED
05.04.2023,CHILDREN AND FAMILIES,REDACTED PERSONAL DATA,806,FOSTERING ALLOWANCES,PAYMENTS TO CARERS,REDACTED,REDACTED
05.04.2023,CHILDREN AND FAMILIES,REDACTED PERSONAL DATA,808.85,FOSTERING ALLOWANCES,PAYMENTS TO CARERS,REDACTED,REDACTED
05.04.2023,CHILDREN AND FAMILIES,REDACTED PERSONAL DATA,808.85,FOSTERING ALLOWANCES,PAYMENTS TO CARERS,REDACTED,REDACTED
05.04.2023,CHILDREN AND FAMILIES,REDACTED PERSONAL DATA,808.85,FOSTERING ALLOWANCES,PAYMENTS TO CARERS,REDACTED,REDACTED
05.04.2023,CHILDREN AND FAMILIES,REDACTED PERSONAL DATA,808.85,FOSTERING ALLOWANCES,PAYMENTS TO CARERS,REDACTED,REDACTED
05.04.2023,CHILDREN AND FAMILIES,REDACTED PERSONAL DATA,808.85,FOSTERING ALLOWANCES,PAYMENTS TO CARERS,REDACTED,REDACTED
05.04.2023,CHILDREN AND FAMILIES,REDACTED PERSONAL DATA,828,FOSTERING ALLOWANCES,PAYMENTS TO CARERS,REDACTED,REDACTED
05.04.2023,CHILDREN AND FAMILIES,REDACTED PERSONAL DATA,828,FOSTERING ALLOWANCES,PAYMENTS TO CARERS,REDACTED,REDACTED
05.04.2023,CHILDREN AND FAMILIES,REDACTED PERSONAL DATA,828,FOSTERING ALLOWANCES,PAYMENTS TO CARERS,REDACTED,REDACTED
05.04.2023,CHILDREN AND FAMILIES,REDACTED PERSONAL DATA,828,FOSTERING ALLOWANCES,PAYMENTS TO CARERS,REDACTED,REDACTED
05.04.2023,CHILDREN AND FAMILIES,REDACTED PERSONAL DATA,831.14,FOSTERING ALLOWANCES,PAYMENTS TO CARERS,REDACTED,REDACTED
05.04.2023,CHILDREN AND FAMILIES,REDACTED PERSONAL DATA,831.14,FOSTERING ALLOWANCES,PAYMENTS TO CARERS,REDACTED,REDACTED
05.04.2023,CHILDREN AND FAMILIES,REDACTED PERSONAL DATA,831.14,FOSTERING ALLOWANCES,PAYMENTS TO CARERS,REDACTED,REDACTED
05.04.2023,CHILDREN AND FAMILIES,REDACTED PERSONAL DATA,831.14,FOSTERING ALLOWANCES,PAYMENTS TO CARERS,REDACTED,REDACTED
05.04.2023,CHILDREN AND FAMILIES,REDACTED PERSONAL DATA,864,FOSTERING ALLOWANCES,PAYMENTS TO CARERS,REDACTED,REDACTED
05.04.2023,CHILDREN AND FAMILIES,REDACTED PERSONAL DATA,864,FOSTERING ALLOWANCES,PAYMENTS TO CARERS,REDACTED,REDACTED
05.04.2023,CHILDREN AND FAMILIES,REDACTED PERSONAL DATA,864,FOSTERING ALLOWANCES,PAYMENTS TO CARERS,REDACTED,REDACTED
05.04.2023,CHILDREN AND FAMILIES,REDACTED PERSONAL DATA,939.99,FOSTERING ALLOWANCES,PAYMENTS TO CARERS,REDACTED,REDACTED
05.04.2023,CHILDREN AND FAMILIES,REDACTED PERSONAL DATA,939.99,FOSTERING ALLOWANCES,PAYMENTS TO CARERS,REDACTED,REDACTED
05.04.2023,CHILDREN AND FAMILIES,REDACTED PERSONAL DATA,939.99,FOSTERING ALLOWANCES,PAYMENTS TO CARERS,REDACTED,REDACTED
05.04.2023,CHILDREN AND FAMILIES,REDACTED PERSONAL DATA,940,FOSTERING ALLOWANCES,PAYMENTS TO CARERS,REDACTED,REDACTED
05.04.2023,CHILDREN AND FAMILIES,REDACTED PERSONAL DATA,946,FOSTERING ALLOWANCES,PAYMENTS TO CARERS,REDACTED,REDACTED
05.04.2023,CHILDREN AND FAMILIES,REDACTED PERSONAL DATA,946,FOSTERING ALLOWANCES,PAYMENTS TO CARERS,REDACTED,REDACTED
05.04.2023,CHILDREN AND FAMILIES,REDACTED PERSONAL DATA,946,FOSTERING ALLOWANCES,PAYMENTS TO CARERS,REDACTED,REDACTED
05.04.2023,CHILDREN AND FAMILIES,REDACTED PERSONAL DATA,949.72,FOSTERING ALLOWANCES,PAYMENTS TO CARERS,REDACTED,REDACTED
05.04.2023,CHILDREN AND FAMILIES,REDACTED PERSONAL DATA,949.72,FOSTERING ALLOWANCES,PAYMENTS TO CARERS,REDACTED,REDACTED
05.04.2023,CHILDREN AND FAMILIES,REDACTED PERSONAL DATA,949.72,FOSTERING ALLOWANCES,PAYMENTS TO CARERS,REDACTED,REDACTED
05.04.2023,CHILDREN AND FAMILIES,REDACTED PERSONAL DATA,956,FOSTERING ALLOWANCES,PAYMENTS TO CARERS,REDACTED,REDACTED
05.04.2023,CHILDREN AND FAMILIES,REDACTED PERSONAL DATA,956,FOSTERING ALLOWANCES,PAYMENTS TO CARERS,REDACTED,REDACTED
05.04.2023,CHILDREN AND FAMILIES,REDACTED PERSONAL DATA,960.29,FOSTERING ALLOWANCES,PAYMENTS TO CARERS,REDACTED,REDACTED
05.04.2023,CHILDREN AND FAMILIES,REDACTED PERSONAL DATA,978,FOSTERING ALLOWANCES,PAYMENTS TO CARERS,REDACTED,REDACTED
05.04.2023,CHILDREN AND FAMILIES,REDACTED PERSONAL DATA,978,FOSTERING ALLOWANCES,PAYMENTS TO CARERS,REDACTED,REDACTED
05.04.2023,CHILDREN AND FAMILIES,REDACTED PERSONAL DATA,978,FOSTERING ALLOWANCES,PAYMENTS TO CARERS,REDACTED,REDACTED
05.04.2023,CHILDREN AND FAMILIES,REDACTED PERSONAL DATA,978,FOSTERING ALLOWANCES,PAYMENTS TO CARERS,REDACTED,REDACTED
05.04.2023,CHILDREN AND FAMILIES,REDACTED PERSONAL DATA,978,FOSTERING ALLOWANCES,PAYMENTS TO CARERS,REDACTED,REDACTED
05.04.2023,CHILDREN AND FAMILIES,REDACTED PERSONAL DATA,978,FOSTERING ALLOWANCES,PAYMENTS TO CARERS,REDACTED,REDACTED
05.04.2023,CHILDREN AND FAMILIES,REDACTED PERSONAL DATA,978,FOSTERING ALLOWANCES,PAYMENTS TO CARERS,REDACTED,REDACTED
05.04.2023,CHILDREN AND FAMILIES,REDACTED PERSONAL DATA,978,FOSTERING ALLOWANCES,PAYMENTS TO CARERS,REDACTED,REDACTED
05.04.2023,CHILDREN AND FAMILIES,REDACTED PERSONAL DATA,978,FOSTERING ALLOWANCES,PAYMENTS TO CARERS,REDACTED,REDACTED
05.04.2023,CHILDREN AND FAMILIES,REDACTED PERSONAL DATA,978,FOSTERING ALLOWANCES,PAYMENTS TO CARERS,REDACTED,REDACTED
05.04.2023,CHILDREN AND FAMILIES,REDACTED PERSONAL DATA,978,FOSTERING ALLOWANCES,PAYMENTS TO CARERS,REDACTED,REDACTED
05.04.2023,CHILDREN AND FAMILIES,REDACTED PERSONAL DATA,978,FOSTERING ALLOWANCES,PAYMENTS TO CARERS,REDACTED,REDACTED
05.04.2023,CHILDREN AND FAMILIES,REDACTED PERSONAL DATA,978,FOSTERING ALLOWANCES,PAYMENTS TO CARERS,REDACTED,REDACTED
05.04.2023,CHILDREN AND FAMILIES,REDACTED PERSONAL DATA,978,FOSTERING ALLOWANCES,PAYMENTS TO CARERS,REDACTED,REDACTED
05.04.2023,CHILDREN AND FAMILIES,REDACTED PERSONAL DATA,980.7,FOSTERING ALLOWANCES,PAYMENTS TO CARERS,REDACTED,REDACTED
05.04.2023,CHILDREN AND FAMILIES,REDACTED PERSONAL DATA,981.71,FOSTERING ALLOWANCES,PAYMENTS TO CARERS,REDACTED,REDACTED
05.04.2023,CHILDREN AND FAMILIES,REDACTED PERSONAL DATA,981.71,FOSTERING ALLOWANCES,PAYMENTS TO CARERS,REDACTED,REDACTED
05.04.2023,CHILDREN AND FAMILIES,REDACTED PERSONAL DATA,981.71,FOSTERING ALLOWANCES,PAYMENTS TO CARERS,REDACTED,REDACTED
05.04.2023,CHILDREN AND FAMILIES,REDACTED PERSONAL DATA,981.71,FOSTERING ALLOWANCES,PAYMENTS TO CARERS,REDACTED,REDACTED
05.04.2023,CHILDREN AND FAMILIES,REDACTED PERSONAL DATA,981.71,FOSTERING ALLOWANCES,PAYMENTS TO CARERS,REDACTED,REDACTED
05.04.2023,CHILDREN AND FAMILIES,REDACTED PERSONAL DATA,981.71,FOSTERING ALLOWANCES,PAYMENTS TO CARERS,REDACTED,REDACTED
05.04.2023,CHILDREN AND FAMILIES,REDACTED PERSONAL DATA,981.71,FOSTERING ALLOWANCES,PAYMENTS TO CARERS,REDACTED,REDACTED
05.04.2023,CHILDREN AND FAMILIES,REDACTED PERSONAL DATA,981.71,FOSTERING ALLOWANCES,PAYMENTS TO CARERS,REDACTED,REDACTED
05.04.2023,CHILDREN AND FAMILIES,REDACTED PERSONAL DATA,981.71,FOSTERING ALLOWANCES,PAYMENTS TO CARERS,REDACTED,REDACTED
05.04.2023,CHILDREN AND FAMILIES,REDACTED PERSONAL DATA,994,FOSTERING ALLOWANCES,PAYMENTS TO CARERS,REDACTED,REDACTED
05.04.2023,CHILDREN AND FAMILIES,REDACTED PERSONAL DATA,994,FOSTERING ALLOWANCES,PAYMENTS TO CARERS,REDACTED,REDACTED
05.04.2023,CHILDREN AND FAMILIES,REDACTED PERSONAL DATA,994,FOSTERING ALLOWANCES,PAYMENTS TO CARERS,REDACTED,REDACTED
05.04.2023,CHILDREN AND FAMILIES,REDACTED PERSONAL DATA,994,FOSTERING ALLOWANCES,PAYMENTS TO CARERS,REDACTED,REDACTED
05.04.2023,CHILDREN AND FAMILIES,REDACTED PERSONAL DATA,994,FOSTERING ALLOWANCES,PAYMENTS TO CARERS,REDACTED,REDACTED
05.04.2023,CHILDREN AND FAMILIES,REDACTED PERSONAL DATA,994,FOSTERING ALLOWANCES,PAYMENTS TO CARERS,REDACTED,REDACTED
05.04.2023,CHILDREN AND FAMILIES,REDACTED PERSONAL DATA,994,FOSTERING ALLOWANCES,PAYMENTS TO CARERS,REDACTED,REDACTED
05.04.2023,CHILDREN AND FAMILIES,REDACTED PERSONAL DATA,994,FOSTERING ALLOWANCES,PAYMENTS TO CARERS,REDACTED,REDACTED
05.04.2023,CHILDREN AND FAMILIES,REDACTED PERSONAL DATA,994,FOSTERING ALLOWANCES,PAYMENTS TO CARERS,REDACTED,REDACTED
05.04.2023,CHILDREN AND FAMILIES,REDACTED PERSONAL DATA,994,FOSTERING ALLOWANCES,PAYMENTS TO CARERS,REDACTED,REDACTED
05.04.2023,CHILDREN AND FAMILIES,REDACTED PERSONAL DATA,994,FOSTERING ALLOWANCES,PAYMENTS TO CARERS,REDACTED,REDACTED
05.04.2023,CHILDREN AND FAMILIES,REDACTED PERSONAL DATA,994,FOSTERING ALLOWANCES,PAYMENTS TO CARERS,REDACTED,REDACTED
05.04.2023,CHILDREN AND FAMILIES,REDACTED PERSONAL DATA,994,FOSTERING ALLOWANCES,PAYMENTS TO CARERS,REDACTED,REDACTED
05.04.2023,CHILDREN AND FAMILIES,REDACTED PERSONAL DATA,994,FOSTERING ALLOWANCES,PAYMENTS TO CARERS,REDACTED,REDACTED
05.04.2023,CHILDREN AND FAMILIES,REDACTED PERSONAL DATA,994,FOSTERING ALLOWANCES,PAYMENTS TO CARERS,REDACTED,REDACTED
05.04.2023,CHILDREN AND FAMILIES,REDACTED PERSONAL DATA,998.28,FOSTERING ALLOWANCES,PAYMENTS TO CARERS,REDACTED,REDACTED
05.04.2023,CHILDREN AND FAMILIES,REDACTED PERSONAL DATA,998.28,FOSTERING ALLOWANCES,PAYMENTS TO CARERS,REDACTED,REDACTED
05.04.2023,CHILDREN AND FAMILIES,REDACTED PERSONAL DATA,"1,005.00",FOSTERING ALLOWANCES,PAYMENTS TO CARERS,REDACTED,REDACTED
05.04.2023,CHILDREN AND FAMILIES,REDACTED PERSONAL DATA,"1,009.72",FOSTERING ALLOWANCES,PAYMENTS TO CARERS,REDACTED,REDACTED
05.04.2023,CHILDREN AND FAMILIES,REDACTED PERSONAL DATA,"1,032.00",FOSTERING ALLOWANCES,PAYMENTS TO CARERS,REDACTED,REDACTED
05.04.2023,CHILDREN AND FAMILIES,REDACTED PERSONAL DATA,"1,054.00",FOSTERING ALLOWANCES,PAYMENTS TO CARERS,REDACTED,REDACTED
05.04.2023,CHILDREN AND FAMILIES,REDACTED PERSONAL DATA,"1,054.00",FOSTERING ALLOWANCES,PAYMENTS TO CARERS,REDACTED,REDACTED
05.04.2023,CHILDREN AND FAMILIES,REDACTED PERSONAL DATA,"1,054.00",FOSTERING ALLOWANCES,PAYMENTS TO CARERS,REDACTED,REDACTED
05.04.2023,CHILDREN AND FAMILIES,REDACTED PERSONAL DATA,"1,054.00",FOSTERING ALLOWANCES,PAYMENTS TO CARERS,REDACTED,REDACTED
05.04.2023,CHILDREN AND FAMILIES,REDACTED PERSONAL DATA,"1,065.71",FOSTERING ALLOWANCES,PAYMENTS TO CARERS,REDACTED,REDACTED
05.04.2023,CHILDREN AND FAMILIES,REDACTED PERSONAL DATA,"1,066.00",FOSTERING ALLOWANCES,PAYMENTS TO CARERS,REDACTED,REDACTED
05.04.2023,CHILDREN AND FAMILIES,REDACTED PERSONAL DATA,"1,070.16",FOSTERING ALLOWANCES,PAYMENTS TO CARERS,REDACTED,REDACTED
05.04.2023,CHILDREN AND FAMILIES,REDACTED PERSONAL DATA,"1,071.71",FOSTERING ALLOWANCES,PAYMENTS TO CARERS,REDACTED,REDACTED
05.04.2023,CHILDREN AND FAMILIES,REDACTED PERSONAL DATA,"1,104.00",FOSTERING ALLOWANCES,PAYMENTS TO CARERS,REDACTED,REDACTED
05.04.2023,CHILDREN AND FAMILIES,REDACTED PERSONAL DATA,"1,104.00",FOSTERING ALLOWANCES,PAYMENTS TO CARERS,REDACTED,REDACTED
05.04.2023,CHILDREN AND FAMILIES,REDACTED PERSONAL DATA,"1,104.00",FOSTERING ALLOWANCES,PAYMENTS TO CARERS,REDACTED,REDACTED
05.04.2023,CHILDREN AND FAMILIES,REDACTED PERSONAL DATA,"1,104.00",FOSTERING ALLOWANCES,PAYMENTS TO CARERS,REDACTED,REDACTED
05.04.2023,CHILDREN AND FAMILIES,REDACTED PERSONAL DATA,"1,104.00",FOSTERING ALLOWANCES,PAYMENTS TO CARERS,REDACTED,REDACTED
05.04.2023,CHILDREN AND FAMILIES,REDACTED PERSONAL DATA,"1,104.00",FOSTERING ALLOWANCES,PAYMENTS TO CARERS,REDACTED,REDACTED
05.04.2023,CHILDREN AND FAMILIES,REDACTED PERSONAL DATA,"1,104.00",FOSTERING ALLOWANCES,PAYMENTS TO CARERS,REDACTED,REDACTED
05.04.2023,CHILDREN AND FAMILIES,REDACTED PERSONAL DATA,"1,174.00",FOSTERING ALLOWANCES,PAYMENTS TO CARERS,REDACTED,REDACTED
05.04.2023,CHILDREN AND FAMILIES,REDACTED PERSONAL DATA,"1,178.00",FOSTERING ALLOWANCES,PAYMENTS TO CARERS,REDACTED,REDACTED
05.04.2023,CHILDREN AND FAMILIES,REDACTED PERSONAL DATA,"1,338.00",FOSTERING ALLOWANCES,PAYMENTS TO CARERS,REDACTED,REDACTED
05.04.2023,CHILDREN AND FAMILIES,REDACTED PERSONAL DATA,"1,398.57",FOSTERING ALLOWANCES,PAYMENTS TO CARERS,REDACTED,REDACTED
05.04.2023,CHILDREN AND FAMILIES,REDACTED PERSONAL DATA,"1,488.00",FOSTERING ALLOWANCES,PAYMENTS TO CARERS,REDACTED,REDACTED
05.04.2023,CHILDREN AND FAMILIES,REDACTED PERSONAL DATA,"1,632.00",FOSTERING ALLOWANCES,PAYMENTS TO CARERS,REDACTED,REDACTED
05.04.2023,CHILDREN AND FAMILIES,REDACTED PERSONAL DATA,"1,632.00",FOSTERING ALLOWANCES,PAYMENTS TO CARERS,REDACTED,REDACTED
05.04.2023,CHILDREN AND FAMILIES,REDACTED PERSONAL DATA,"1,632.00",FOSTERING ALLOWANCES,PAYMENTS TO CARERS,REDACTED,REDACTED
05.04.2023,CHILDREN AND FAMILIES,REDACTED PERSONAL DATA,"1,667.86",FOSTERING ALLOWANCES,PAYMENTS TO CARERS,REDACTED,REDACTED
05.04.2023,CHILDREN AND FAMILIES,REDACTED PERSONAL DATA,"1,694.00",FOSTERING ALLOWANCES,PAYMENTS TO CARERS,REDACTED,REDACTED
05.04.2023,CHILDREN AND FAMILIES,REDACTED PERSONAL DATA,"1,694.00",FOSTERING ALLOWANCES,PAYMENTS TO CARERS,REDACTED,REDACTED
05.04.2023,CHILDREN AND FAMILIES,REDACTED PERSONAL DATA,"1,694.00",FOSTERING ALLOWANCES,PAYMENTS TO CARERS,REDACTED,REDACTED
05.04.2023,CHILDREN AND FAMILIES,REDACTED PERSONAL DATA,"1,694.00",FOSTERING ALLOWANCES,PAYMENTS TO CARERS,REDACTED,REDACTED
05.04.2023,CHILDREN AND FAMILIES,REDACTED PERSONAL DATA,"1,700.00",FOSTERING ALLOWANCES,PAYMENTS TO CARERS,REDACTED,REDACTED
05.04.2023,CHILDREN AND FAMILIES,REDACTED PERSONAL DATA,"1,713.10",FOSTERING ALLOWANCES,PAYMENTS TO CARERS,REDACTED,REDACTED
05.04.2023,CHILDREN AND FAMILIES,REDACTED PERSONAL DATA,"1,802.00",FOSTERING ALLOWANCES,PAYMENTS TO CARERS,REDACTED,REDACTED
05.04.2023,CHILDREN AND FAMILIES,REDACTED PERSONAL DATA,"2,038.58",FOSTERING ALLOWANCES,PAYMENTS TO CARERS,REDACTED,REDACTED
05.04.2023,CHILDREN AND FAMILIES,REDACTED PERSONAL DATA,"2,701.42",FOSTERING ALLOWANCES,PAYMENTS TO CARERS,REDACTED,REDACTED
05.04.2023,CHILDREN AND FAMILIES,REDACTED PERSONAL DATA,"7,744.00",FOSTERING ALLOWANCES,PAYMENTS TO CARERS,REDACTED,REDACTED
05.04.2023,CHILDREN AND FAMILIES,REDACTED PERSONAL DATA,300,FRIENDS &FAMILY FOST,ADDITIONAL PAYMENTS TO AGENCIES/CARERS,REDACTED,REDACTED
05.04.2023,CHILDREN AND FAMILIES,REDACTED PERSONAL DATA,324,FRIENDS &FAMILY FOST,PAYMENTS TO CARERS,REDACTED,REDACTED
05.04.2023,CHILDREN AND FAMILIES,REDACTED PERSONAL DATA,324,FRIENDS &FAMILY FOST,PAYMENTS TO CARERS,REDACTED,REDACTED
05.04.2023,CHILDREN AND FAMILIES,REDACTED PERSONAL DATA,324,FRIENDS &FAMILY FOST,PAYMENTS TO CARERS,REDACTED,REDACTED
05.04.2023,CHILDREN AND FAMILIES,REDACTED PERSONAL DATA,362,FRIENDS &FAMILY FOST,PAYMENTS TO CARERS,REDACTED,REDACTED
05.04.2023,CHILDREN AND FAMILIES,REDACTED PERSONAL DATA,362,FRIENDS &FAMILY FOST,PAYMENTS TO CARERS,REDACTED,REDACTED
05.04.2023,CHILDREN AND FAMILIES,REDACTED PERSONAL DATA,362,FRIENDS &FAMILY FOST,PAYMENTS TO CARERS,REDACTED,REDACTED
05.04.2023,CHILDREN AND FAMILIES,REDACTED PERSONAL DATA,362,FRIENDS &FAMILY FOST,PAYMENTS TO CARERS,REDACTED,REDACTED
05.04.2023,CHILDREN AND FAMILIES,REDACTED PERSONAL DATA,412,FRIENDS &FAMILY FOST,PAYMENTS TO CARERS,REDACTED,REDACTED
05.04.2023,CHILDREN AND FAMILIES,REDACTED PERSONAL DATA,412,FRIENDS &FAMILY FOST,PAYMENTS TO CARERS,REDACTED,REDACTED
05.04.2023,CHILDREN AND FAMILIES,REDACTED PERSONAL DATA,412,FRIENDS &FAMILY FOST,PAYMENTS TO CARERS,REDACTED,REDACTED
05.04.2023,CHILDREN AND FAMILIES,REDACTED PERSONAL DATA,412,FRIENDS &FAMILY FOST,PAYMENTS TO CARERS,REDACTED,REDACTED
05.04.2023,CHILDREN AND FAMILIES,REDACTED PERSONAL DATA,514.72,FRIENDS &FAMILY FOST,PAYMENTS TO CARERS,REDACTED,REDACTED
05.04.2023,CHILDREN AND FAMILIES,REDACTED PERSONAL DATA,551.14,FRIENDS &FAMILY FOST,PAYMENTS TO CARERS,REDACTED,REDACTED
05.04.2023,CHILDREN AND FAMILIES,REDACTED PERSONAL DATA,551.14,FRIENDS &FAMILY FOST,PAYMENTS TO CARERS,REDACTED,REDACTED
05.04.2023,CHILDREN AND FAMILIES,REDACTED PERSONAL DATA,551.14,FRIENDS &FAMILY FOST,PAYMENTS TO CARERS,REDACTED,REDACTED
05.04.2023,CHILDREN AND FAMILIES,REDACTED PERSONAL DATA,551.14,FRIENDS &FAMILY FOST,PAYMENTS TO CARERS,REDACTED,REDACTED
05.04.2023,CHILDREN AND FAMILIES,REDACTED PERSONAL DATA,630.43,FRIENDS &FAMILY FOST,PAYMENTS TO CARERS,REDACTED,REDACTED
05.04.2023,CHILDREN AND FAMILIES,REDACTED PERSONAL DATA,630.43,FRIENDS &FAMILY FOST,PAYMENTS TO CARERS,REDACTED,REDACTED
05.04.2023,CHILDREN AND FAMILIES,REDACTED PERSONAL DATA,630.43,FRIENDS &FAMILY FOST,PAYMENTS TO CARERS,REDACTED,REDACTED
05.04.2023,CHILDREN AND FAMILIES,REDACTED PERSONAL DATA,630.43,FRIENDS &FAMILY FOST,PAYMENTS TO CARERS,REDACTED,REDACTED
05.04.2023,CHILDREN AND FAMILIES,REDACTED PERSONAL DATA,630.43,FRIENDS &FAMILY FOST,PAYMENTS TO CARERS,REDACTED,REDACTED
05.04.2023,CHILDREN AND FAMILIES,REDACTED PERSONAL DATA,630.43,FRIENDS &FAMILY FOST,PAYMENTS TO CARERS,REDACTED,REDACTED
05.04.2023,CHILDREN AND FAMILIES,REDACTED PERSONAL DATA,630.43,FRIENDS &FAMILY FOST,PAYMENTS TO CARERS,REDACTED,REDACTED
05.04.2023,CHILDREN AND FAMILIES,REDACTED PERSONAL DATA,630.43,FRIENDS &FAMILY FOST,PAYMENTS TO CARERS,REDACTED,REDACTED
05.04.2023,CHILDREN AND FAMILIES,REDACTED PERSONAL DATA,630.43,FRIENDS &FAMILY FOST,PAYMENTS TO CARERS,REDACTED,REDACTED
05.04.2023,CHILDREN AND FAMILIES,REDACTED PERSONAL DATA,630.43,FRIENDS &FAMILY FOST,PAYMENTS TO CARERS,REDACTED,REDACTED
05.04.2023,CHILDREN AND FAMILIES,REDACTED PERSONAL DATA,630.43,FRIENDS &FAMILY FOST,PAYMENTS TO CARERS,REDACTED,REDACTED
05.04.2023,CHILDREN AND FAMILIES,REDACTED PERSONAL DATA,630.43,FRIENDS &FAMILY FOST,PAYMENTS TO CARERS,REDACTED,REDACTED
05.04.2023,CHILDREN AND FAMILIES,REDACTED PERSONAL DATA,630.43,FRIENDS &FAMILY FOST,PAYMENTS TO CARERS,REDACTED,REDACTED
05.04.2023,CHILDREN AND FAMILIES,REDACTED PERSONAL DATA,630.43,FRIENDS &FAMILY FOST,PAYMENTS TO CARERS,REDACTED,REDACTED
05.04.2023,CHILDREN AND FAMILIES,REDACTED PERSONAL DATA,630.43,FRIENDS &FAMILY FOST,PAYMENTS TO CARERS,REDACTED,REDACTED
05.04.2023,CHILDREN AND FAMILIES,REDACTED PERSONAL DATA,719.57,FRIENDS &FAMILY FOST,PAYMENTS TO CARERS,REDACTED,REDACTED
05.04.2023,CHILDREN AND FAMILIES,REDACTED PERSONAL DATA,719.57,FRIENDS &FAMILY FOST,PAYMENTS TO CARERS,REDACTED,REDACTED
05.04.2023,CHILDREN AND FAMILIES,REDACTED PERSONAL DATA,719.57,FRIENDS &FAMILY FOST,PAYMENTS TO CARERS,REDACTED,REDACTED
05.04.2023,CHILDREN AND FAMILIES,REDACTED PERSONAL DATA,824,FRIENDS &FAMILY FOST,PAYMENTS TO CARERS,REDACTED,REDACTED
05.04.2023,CHILDREN AND FAMILIES,REDACTED PERSONAL DATA,831.14,FRIENDS &FAMILY FOST,PAYMENTS TO CARERS,REDACTED,REDACTED
05.04.2023,CHILDREN AND FAMILIES,REDACTED PERSONAL DATA,831.14,FRIENDS &FAMILY FOST,PAYMENTS TO CARERS,REDACTED,REDACTED
05.04.2023,CHILDREN AND FAMILIES,REDACTED PERSONAL DATA,831.14,FRIENDS &FAMILY FOST,PAYMENTS TO CARERS,REDACTED,REDACTED
05.04.2023,CHILDREN AND FAMILIES,REDACTED PERSONAL DATA,831.14,FRIENDS &FAMILY FOST,PAYMENTS TO CARERS,REDACTED,REDACTED
05.04.2023,CHILDREN AND FAMILIES,REDACTED PERSONAL DATA,831.14,FRIENDS &FAMILY FOST,PAYMENTS TO CARERS,REDACTED,REDACTED
05.04.2023,CHILDREN AND FAMILIES,REDACTED PERSONAL DATA,831.14,FRIENDS &FAMILY FOST,PAYMENTS TO CARERS,REDACTED,REDACTED
05.04.2023,CHILDREN AND FAMILIES,REDACTED PERSONAL DATA,850,FRIENDS &FAMILY FOST,PAYMENTS TO CARERS,REDACTED,REDACTED
05.04.2023,CHILDREN AND FAMILIES,REDACTED PERSONAL DATA,850,FRIENDS &FAMILY FOST,PAYMENTS TO CARERS,REDACTED,REDACTED
05.04.2023,CHILDREN AND FAMILIES,REDACTED PERSONAL DATA,946,FRIENDS &FAMILY FOST,PAYMENTS TO CARERS,REDACTED,REDACTED
05.04.2023,CHILDREN AND FAMILIES,REDACTED PERSONAL DATA,946,FRIENDS &FAMILY FOST,PAYMENTS TO CARERS,REDACTED,REDACTED
05.04.2023,CHILDREN AND FAMILIES,REDACTED PERSONAL DATA,949.72,FRIENDS &FAMILY FOST,PAYMENTS TO CARERS,REDACTED,REDACTED
05.04.2023,CHILDREN AND FAMILIES,REDACTED PERSONAL DATA,949.72,FRIENDS &FAMILY FOST,PAYMENTS TO CARERS,REDACTED,REDACTED
05.04.2023,CHILDREN AND FAMILIES,REDACTED PERSONAL DATA,949.72,FRIENDS &FAMILY FOST,PAYMENTS TO CARERS,REDACTED,REDACTED
05.04.2023,CHILDREN AND FAMILIES,REDACTED PERSONAL DATA,949.72,FRIENDS &FAMILY FOST,PAYMENTS TO CARERS,REDACTED,REDACTED
05.04.2023,CHILDREN AND FAMILIES,REDACTED PERSONAL DATA,949.72,FRIENDS &FAMILY FOST,PAYMENTS TO CARERS,REDACTED,REDACTED
05.04.2023,CHILDREN AND FAMILIES,REDACTED PERSONAL DATA,949.72,FRIENDS &FAMILY FOST,PAYMENTS TO CARERS,REDACTED,REDACTED
05.04.2023,CHILDREN AND FAMILIES,REDACTED PERSONAL DATA,960.29,FRIENDS &FAMILY FOST,PAYMENTS TO CARERS,REDACTED,REDACTED
05.04.2023,CHILDREN AND FAMILIES,REDACTED PERSONAL DATA,960.29,FRIENDS &FAMILY FOST,PAYMENTS TO CARERS,REDACTED,REDACTED
05.04.2023,CHILDREN AND FAMILIES,REDACTED PERSONAL DATA,960.29,FRIENDS &FAMILY FOST,PAYMENTS TO CARERS,REDACTED,REDACTED
05.04.2023,CHILDREN AND FAMILIES,REDACTED PERSONAL DATA,960.29,FRIENDS &FAMILY FOST,PAYMENTS TO CARERS,REDACTED,REDACTED
05.04.2023,CHILDREN AND FAMILIES,REDACTED PERSONAL DATA,960.29,FRIENDS &FAMILY FOST,PAYMENTS TO CARERS,REDACTED,REDACTED
05.04.2023,CHILDREN AND FAMILIES,REDACTED PERSONAL DATA,960.29,FRIENDS &FAMILY FOST,PAYMENTS TO CARERS,REDACTED,REDACTED
05.04.2023,CHILDREN AND FAMILIES,REDACTED PERSONAL DATA,960.29,FRIENDS &FAMILY FOST,PAYMENTS TO CARERS,REDACTED,REDACTED
05.04.2023,CHILDREN AND FAMILIES,REDACTED PERSONAL DATA,"1,035.43",FRIENDS &FAMILY FOST,PAYMENTS TO CARERS,REDACTED,REDACTED
05.04.2023,CHILDREN AND FAMILIES,REDACTED PERSONAL DATA,"1,071.71",FRIENDS &FAMILY FOST,PAYMENTS TO CARERS,REDACTED,REDACTED
05.04.2023,CHILDREN AND FAMILIES,REDACTED PERSONAL DATA,"1,071.71",FRIENDS &FAMILY FOST,PAYMENTS TO CARERS,REDACTED,REDACTED
05.04.2023,CHILDREN AND FAMILIES,REDACTED PERSONAL DATA,"1,000.00",LEAVING CARE GRANT,OTHER PAYMENTS FOR CLIENTS,REDACTED,REDACTED
05.04.2023,CHILDREN AND FAMILIES,KENT COUNTY COUNCIL - LASER,"1,073.81",MGMT & PARENTING,ELECTRICITY,5902573739,1000012926
05.04.2023,CHILDREN AND FAMILIES,REDACTED PERSONAL DATA,421.74,SEMI-IND CARELEAVERS,OTHER PAYMENTS FOR CLIENTS,REDACTED,REDACTED
05.04.2023,CHILDREN AND FAMILIES,REDACTED PERSONAL DATA,754.35,SEMI-IND CARELEAVERS,OTHER PAYMENTS FOR CLIENTS,REDACTED,REDACTED
05.04.2023,CHILDREN AND FAMILIES,REDACTED PERSONAL DATA,"1,098.00",SEMI-IND CARELEAVERS,OTHER PAYMENTS FOR CLIENTS,REDACTED,REDACTED
05.04.2023,CHILDREN AND FAMILIES,BISHOP & SEWELL LLP SOLICITORS,591.8,SPECIAL GUARDIANSHIP,OTHER PAYMENTS FOR CLIENTS,5902574426,1000081122
05.04.2023,CHILDREN AND FAMILIES,REDACTED PERSONAL DATA,252.11,SPECIAL GUARDIANSHIP,PAYMENTS TO CARERS,REDACTED,REDACTED
05.04.2023,CHILDREN AND FAMILIES,REDACTED PERSONAL DATA,252.9,SPECIAL GUARDIANSHIP,PAYMENTS TO CARERS,REDACTED,REDACTED
05.04.2023,CHILDREN AND FAMILIES,REDACTED PERSONAL DATA,252.9,SPECIAL GUARDIANSHIP,PAYMENTS TO CARERS,REDACTED,REDACTED
05.04.2023,CHILDREN AND FAMILIES,REDACTED PERSONAL DATA,252.9,SPECIAL GUARDIANSHIP,PAYMENTS TO CARERS,REDACTED,REDACTED
05.04.2023,CHILDREN AND FAMILIES,REDACTED PERSONAL DATA,252.9,SPECIAL GUARDIANSHIP,PAYMENTS TO CARERS,REDACTED,REDACTED
05.04.2023,CHILDREN AND FAMILIES,REDACTED PERSONAL DATA,252.9,SPECIAL GUARDIANSHIP,PAYMENTS TO CARERS,REDACTED,REDACTED
05.04.2023,CHILDREN AND FAMILIES,REDACTED PERSONAL DATA,252.9,SPECIAL GUARDIANSHIP,PAYMENTS TO CARERS,REDACTED,REDACTED
05.04.2023,CHILDREN AND FAMILIES,REDACTED PERSONAL DATA,252.9,SPECIAL GUARDIANSHIP,PAYMENTS TO CARERS,REDACTED,REDACTED
05.04.2023,CHILDREN AND FAMILIES,REDACTED PERSONAL DATA,252.9,SPECIAL GUARDIANSHIP,PAYMENTS TO CARERS,REDACTED,REDACTED
05.04.2023,CHILDREN AND FAMILIES,REDACTED PERSONAL DATA,252.9,SPECIAL GUARDIANSHIP,PAYMENTS TO CARERS,REDACTED,REDACTED
05.04.2023,CHILDREN AND FAMILIES,REDACTED PERSONAL DATA,252.9,SPECIAL GUARDIANSHIP,PAYMENTS TO CARERS,REDACTED,REDACTED
05.04.2023,CHILDREN AND FAMILIES,REDACTED PERSONAL DATA,252.9,SPECIAL GUARDIANSHIP,PAYMENTS TO CARERS,REDACTED,REDACTED
05.04.2023,CHILDREN AND FAMILIES,REDACTED PERSONAL DATA,252.9,SPECIAL GUARDIANSHIP,PAYMENTS TO CARERS,REDACTED,REDACTED
05.04.2023,CHILDREN AND FAMILIES,REDACTED PERSONAL DATA,252.9,SPECIAL GUARDIANSHIP,PAYMENTS TO CARERS,REDACTED,REDACTED
05.04.2023,CHILDREN AND FAMILIES,REDACTED PERSONAL DATA,252.91,SPECIAL GUARDIANSHIP,PAYMENTS TO CARERS,REDACTED,REDACTED
05.04.2023,CHILDREN AND FAMILIES,REDACTED PERSONAL DATA,252.92,SPECIAL GUARDIANSHIP,PAYMENTS TO CARERS,REDACTED,REDACTED
05.04.2023,CHILDREN AND FAMILIES,REDACTED PERSONAL DATA,254.27,SPECIAL GUARDIANSHIP,PAYMENTS TO CARERS,REDACTED,REDACTED
05.04.2023,CHILDREN AND FAMILIES,REDACTED PERSONAL DATA,254.27,SPECIAL GUARDIANSHIP,PAYMENTS TO CARERS,REDACTED,REDACTED
05.04.2023,CHILDREN AND FAMILIES,REDACTED PERSONAL DATA,255.32,SPECIAL GUARDIANSHIP,PAYMENTS TO CARERS,REDACTED,REDACTED
05.04.2023,CHILDREN AND FAMILIES,REDACTED PERSONAL DATA,263.6,SPECIAL GUARDIANSHIP,PAYMENTS TO CARERS,REDACTED,REDACTED
05.04.2023,CHILDREN AND FAMILIES,REDACTED PERSONAL DATA,265.55,SPECIAL GUARDIANSHIP,PAYMENTS TO CARERS,REDACTED,REDACTED
05.04.2023,CHILDREN AND FAMILIES,REDACTED PERSONAL DATA,268.35,SPECIAL GUARDIANSHIP,PAYMENTS TO CARERS,REDACTED,REDACTED
05.04.2023,CHILDREN AND FAMILIES,REDACTED PERSONAL DATA,268.35,SPECIAL GUARDIANSHIP,PAYMENTS TO CARERS,REDACTED,REDACTED
05.04.2023,CHILDREN AND FAMILIES,REDACTED PERSONAL DATA,268.35,SPECIAL GUARDIANSHIP,PAYMENTS TO CARERS,REDACTED,REDACTED
05.04.2023,CHILDREN AND FAMILIES,REDACTED PERSONAL DATA,268.35,SPECIAL GUARDIANSHIP,PAYMENTS TO CARERS,REDACTED,REDACTED
05.04.2023,CHILDREN AND FAMILIES,REDACTED PERSONAL DATA,270,SPECIAL GUARDIANSHIP,PAYMENTS TO CARERS,REDACTED,REDACTED
05.04.2023,CHILDREN AND FAMILIES,REDACTED PERSONAL DATA,300,SPECIAL GUARDIANSHIP,PAYMENTS TO CARERS,REDACTED,REDACTED
05.04.2023,CHILDREN AND FAMILIES,REDACTED PERSONAL DATA,338,SPECIAL GUARDIANSHIP,PAYMENTS TO CARERS,REDACTED,REDACTED
05.04.2023,CHILDREN AND FAMILIES,REDACTED PERSONAL DATA,338,SPECIAL GUARDIANSHIP,PAYMENTS TO CARERS,REDACTED,REDACTED
05.04.2023,CHILDREN AND FAMILIES,REDACTED PERSONAL DATA,341.22,SPECIAL GUARDIANSHIP,PAYMENTS TO CARERS,REDACTED,REDACTED
05.04.2023,CHILDREN AND FAMILIES,REDACTED PERSONAL DATA,363.06,SPECIAL GUARDIANSHIP,PAYMENTS TO CARERS,REDACTED,REDACTED
05.04.2023,CHILDREN AND FAMILIES,REDACTED PERSONAL DATA,383.55,SPECIAL GUARDIANSHIP,PAYMENTS TO CARERS,REDACTED,REDACTED
05.04.2023,CHILDREN AND FAMILIES,REDACTED PERSONAL DATA,400.42,SPECIAL GUARDIANSHIP,PAYMENTS TO CARERS,REDACTED,REDACTED
05.04.2023,CHILDREN AND FAMILIES,REDACTED PERSONAL DATA,436.27,SPECIAL GUARDIANSHIP,PAYMENTS TO CARERS,REDACTED,REDACTED
05.04.2023,CHILDREN AND FAMILIES,REDACTED PERSONAL DATA,453.14,SPECIAL GUARDIANSHIP,PAYMENTS TO CARERS,REDACTED,REDACTED
05.04.2023,CHILDREN AND FAMILIES,REDACTED PERSONAL DATA,472.71,SPECIAL GUARDIANSHIP,PAYMENTS TO CARERS,REDACTED,REDACTED
05.04.2023,CHILDREN AND FAMILIES,REDACTED PERSONAL DATA,472.71,SPECIAL GUARDIANSHIP,PAYMENTS TO CARERS,REDACTED,REDACTED
05.04.2023,CHILDREN AND FAMILIES,REDACTED PERSONAL DATA,525,SPECIAL GUARDIANSHIP,PAYMENTS TO CARERS,REDACTED,REDACTED
05.04.2023,CHILDREN AND FAMILIES,REDACTED PERSONAL DATA,257.04,STAYPUT- FOST CARERS,PAYMENTS TO CARERS,REDACTED,REDACTED
05.04.2023,CHILDREN AND FAMILIES,REDACTED PERSONAL DATA,300,STAYPUT- FOST CARERS,PAYMENTS TO CARERS,REDACTED,REDACTED
05.04.2023,CHILDREN AND FAMILIES,REDACTED PERSONAL DATA,300,STAYPUT- FOST CARERS,PAYMENTS TO CARERS,REDACTED,REDACTED
05.04.2023,CHILDREN AND FAMILIES,REDACTED PERSONAL DATA,388.06,STAYPUT- FOST CARERS,PAYMENTS TO CARERS,REDACTED,REDACTED
05.04.2023,CHILDREN AND FAMILIES,REDACTED PERSONAL DATA,600,STAYPUT- FOST CARERS,PAYMENTS TO CARERS,REDACTED,REDACTED
05.04.2023,CHILDREN AND FAMILIES,REDACTED PERSONAL DATA,600,STAYPUT- FOST CARERS,PAYMENTS TO CARERS,REDACTED,REDACTED
05.04.2023,CHILDREN AND FAMILIES,REDACTED PERSONAL DATA,600,STAYPUT- FOST CARERS,PAYMENTS TO CARERS,REDACTED,REDACTED
05.04.2023,CHILDREN AND FAMILIES,REDACTED PERSONAL DATA,600,STAYPUT- FOST CARERS,PAYMENTS TO CARERS,REDACTED,REDACTED
05.04.2023,CHILDREN AND FAMILIES,REDACTED PERSONAL DATA,600,STAYPUT- FOST CARERS,PAYMENTS TO CARERS,REDACTED,REDACTED
05.04.2023,CHILDREN AND FAMILIES,REDACTED PERSONAL DATA,600,STAYPUT- FOST CARERS,PAYMENTS TO CARERS,REDACTED,REDACTED
05.04.2023,CHILDREN AND FAMILIES,REDACTED PERSONAL DATA,600,STAYPUT- FOST CARERS,PAYMENTS TO CARERS,REDACTED,REDACTED
05.04.2023,CHILDREN AND FAMILIES,REDACTED PERSONAL DATA,600,STAYPUT- FOST CARERS,PAYMENTS TO CARERS,REDACTED,REDACTED
05.04.2023,CHILDREN AND FAMILIES,REDACTED PERSONAL DATA,600,STAYPUT- FOST CARERS,PAYMENTS TO CARERS,REDACTED,REDACTED
05.04.2023,CHILDREN AND FAMILIES,REDACTED PERSONAL DATA,600,STAYPUT- FOST CARERS,PAYMENTS TO CARERS,REDACTED,REDACTED
05.04.2023,CHILDREN AND FAMILIES,REDACTED PERSONAL DATA,600,STAYPUT- FOST CARERS,PAYMENTS TO CARERS,REDACTED,REDACTED
05.04.2023,CHILDREN AND FAMILIES,REDACTED PERSONAL DATA,600,STAYPUT- FOST CARERS,PAYMENTS TO CARERS,REDACTED,REDACTED
05.04.2023,CHILDREN AND FAMILIES,REDACTED PERSONAL DATA,600,STAYPUT- FOST CARERS,PAYMENTS TO CARERS,REDACTED,REDACTED
05.04.2023,CHILDREN AND FAMILIES,REDACTED PERSONAL DATA,600,STAYPUT- FOST CARERS,PAYMENTS TO CARERS,REDACTED,REDACTED
05.04.2023,CHILDREN AND FAMILIES,REDACTED PERSONAL DATA,600,STAYPUT- FOST CARERS,PAYMENTS TO CARERS,REDACTED,REDACTED
05.04.2023,CHILDREN AND FAMILIES,REDACTED PERSONAL DATA,600,STAYPUT- FOST CARERS,PAYMENTS TO CARERS,REDACTED,REDACTED
05.04.2023,CHILDREN AND FAMILIES,REDACTED PERSONAL DATA,600,STAYPUT- FOST CARERS,PAYMENTS TO CARERS,REDACTED,REDACTED
05.04.2023,CHILDREN AND FAMILIES,REDACTED PERSONAL DATA,600,STAYPUT- FOST CARERS,PAYMENTS TO CARERS,REDACTED,REDACTED
05.04.2023,CHILDREN AND FAMILIES,REDACTED PERSONAL DATA,600,STAYPUT- FOST CARERS,PAYMENTS TO CARERS,REDACTED,REDACTED
05.04.2023,CHILDREN AND FAMILIES,REDACTED PERSONAL DATA,600,STAYPUT- FOST CARERS,PAYMENTS TO CARERS,REDACTED,REDACTED
05.04.2023,CHILDREN AND FAMILIES,REDACTED PERSONAL DATA,600,STAYPUT- FOST CARERS,PAYMENTS TO CARERS,REDACTED,REDACTED
05.04.2023,CHILDREN AND FAMILIES,REDACTED PERSONAL DATA,600,STAYPUT- FOST CARERS,PAYMENTS TO CARERS,REDACTED,REDACTED
05.04.2023,CHILDREN AND FAMILIES,REDACTED PERSONAL DATA,600,STAYPUT- FOST CARERS,PAYMENTS TO CARERS,REDACTED,REDACTED
05.04.2023,CHILDREN AND FAMILIES,REDACTED PERSONAL DATA,600,STAYPUT- FOST CARERS,PAYMENTS TO CARERS,REDACTED,REDACTED
05.04.2023,CHILDREN AND FAMILIES,REDACTED PERSONAL DATA,600,STAYPUT- FOST CARERS,PAYMENTS TO CARERS,REDACTED,REDACTED
05.04.2023,CHILDREN AND FAMILIES,REDACTED PERSONAL DATA,600,STAYPUT- FOST CARERS,PAYMENTS TO CARERS,REDACTED,REDACTED
05.04.2023,CHILDREN AND FAMILIES,REDACTED PERSONAL DATA,600,STAYPUT- FOST CARERS,PAYMENTS TO CARERS,REDACTED,REDACTED
05.04.2023,CHILDREN AND FAMILIES,REDACTED PERSONAL DATA,600,STAYPUT- FOST CARERS,PAYMENTS TO CARERS,REDACTED,REDACTED
05.04.2023,CHILDREN AND FAMILIES,REDACTED PERSONAL DATA,600,STAYPUT- FOST CARERS,PAYMENTS TO CARERS,REDACTED,REDACTED
05.04.2023,CHILDREN AND FAMILIES,REDACTED PERSONAL DATA,600,STAYPUT- FOST CARERS,PAYMENTS TO CARERS,REDACTED,REDACTED
05.04.2023,CHILDREN AND FAMILIES,REDACTED PERSONAL DATA,600,STAYPUT- FOST CARERS,PAYMENTS TO CARERS,REDACTED,REDACTED
05.04.2023,CHILDREN AND FAMILIES,REDACTED PERSONAL DATA,600,STAYPUT- FOST CARERS,PAYMENTS TO CARERS,REDACTED,REDACTED
05.04.2023,CHILDREN AND FAMILIES,REDACTED PERSONAL DATA,600,STAYPUT- FOST CARERS,PAYMENTS TO CARERS,REDACTED,REDACTED
05.04.2023,CHILDREN AND FAMILIES,REDACTED PERSONAL DATA,600,STAYPUT- FOST CARERS,PAYMENTS TO CARERS,REDACTED,REDACTED
05.04.2023,CHILDREN AND FAMILIES,REDACTED PERSONAL DATA,600,STAYPUT- FOST CARERS,PAYMENTS TO CARERS,REDACTED,REDACTED
05.04.2023,CHILDREN AND FAMILIES,REDACTED PERSONAL DATA,600,STAYPUT- FOST CARERS,PAYMENTS TO CARERS,REDACTED,REDACTED
05.04.2023,CHILDREN AND FAMILIES,REDACTED PERSONAL DATA,600,STAYPUT- FOST CARERS,PAYMENTS TO CARERS,REDACTED,REDACTED
05.04.2023,CHILDREN AND FAMILIES,REDACTED PERSONAL DATA,600,STAYPUT- FOST CARERS,PAYMENTS TO CARERS,REDACTED,REDACTED
05.04.2023,CHILDREN AND FAMILIES,REDACTED PERSONAL DATA,600,STAYPUT- FOST CARERS,PAYMENTS TO CARERS,REDACTED,REDACTED
05.04.2023,CHILDREN AND FAMILIES,REDACTED PERSONAL DATA,600,STAYPUT- FOST CARERS,PAYMENTS TO CARERS,REDACTED,REDACTED
05.04.2023,CHILDREN AND FAMILIES,REDACTED PERSONAL DATA,600,STAYPUT- FOST CARERS,PAYMENTS TO CARERS,REDACTED,REDACTED
05.04.2023,CHILDREN AND FAMILIES,REDACTED PERSONAL DATA,600,STAYPUT- FOST CARERS,PAYMENTS TO CARERS,REDACTED,REDACTED
05.04.2023,CHILDREN AND FAMILIES,REDACTED PERSONAL DATA,600,STAYPUT- FOST CARERS,PAYMENTS TO CARERS,REDACTED,REDACTED
05.04.2023,CHILDREN AND FAMILIES,REDACTED PERSONAL DATA,600,STAYPUT- FOST CARERS,PAYMENTS TO CARERS,REDACTED,REDACTED
05.04.2023,CHILDREN AND FAMILIES,REDACTED PERSONAL DATA,600,STAYPUT- FOST CARERS,PAYMENTS TO CARERS,REDACTED,REDACTED
05.04.2023,CHILDREN AND FAMILIES,REDACTED PERSONAL DATA,600,STAYPUT- FOST CARERS,PAYMENTS TO CARERS,REDACTED,REDACTED
05.04.2023,CHILDREN AND FAMILIES,REDACTED PERSONAL DATA,656,STAYPUT- FOST CARERS,PAYMENTS TO CARERS,REDACTED,REDACTED
05.04.2023,CHILDREN AND FAMILIES,REDACTED PERSONAL DATA,656,STAYPUT- FOST CARERS,PAYMENTS TO CARERS,REDACTED,REDACTED
05.04.2023,CHILDREN AND FAMILIES,REDACTED PERSONAL DATA,800,STAYPUT- FOST CARERS,PAYMENTS TO CARERS,REDACTED,REDACTED
05.04.2023,CHILDREN AND FAMILIES,REDACTED PERSONAL DATA,800,STAYPUT- FOST CARERS,PAYMENTS TO CARERS,REDACTED,REDACTED
05.04.2023,CHILDREN AND FAMILIES,REDACTED PERSONAL DATA,800,STAYPUT- FOST CARERS,PAYMENTS TO CARERS,REDACTED,REDACTED
05.04.2023,CHILDREN AND FAMILIES,REDACTED PERSONAL DATA,800,STAYPUT- FOST CARERS,PAYMENTS TO CARERS,REDACTED,REDACTED
05.04.2023,CHILDREN AND FAMILIES,REDACTED PERSONAL DATA,800,STAYPUT- FOST CARERS,PAYMENTS TO CARERS,REDACTED,REDACTED
05.04.2023,CHILDREN AND FAMILIES,REDACTED PERSONAL DATA,800,STAYPUT- FOST CARERS,PAYMENTS TO CARERS,REDACTED,REDACTED
05.04.2023,CHILDREN AND FAMILIES,REDACTED PERSONAL DATA,832,STAYPUT- FOST CARERS,PAYMENTS TO CARERS,REDACTED,REDACTED
05.04.2023,CHILDREN AND FAMILIES,REDACTED PERSONAL DATA,900,STAYPUT- FOST CARERS,PAYMENTS TO CARERS,REDACTED,REDACTED
05.04.2023,CHILDREN AND FAMILIES,REDACTED PERSONAL DATA,900,STAYPUT- FOST CARERS,PAYMENTS TO CARERS,REDACTED,REDACTED
05.04.2023,CHILDREN AND FAMILIES,REDACTED PERSONAL DATA,900,STAYPUT- FOST CARERS,PAYMENTS TO CARERS,REDACTED,REDACTED
05.04.2023,CHILDREN AND FAMILIES,CONTACT PROFESSIONALS,"5,550.00",TEAM C,OTHER PAYMENTS FOR CLIENTS,2103647527,1000057263
05.04.2023,CLIMATE CHANGE,WHATEVER DESIGN LTD,"1,152.00",CLIMATE CHANGE,MARKETING & PUBLICITY SERVICES,5902574567,1000036500
05.04.2023,COMMUNITIES,COMMUNITY SOUTHWARK,"38,750.00",HEALTHWATCH,GRANTS,5902574541,1000018147
05.04.2023,COMMUNITIES,SOUTHWARK CITIZENS ADVICE,"20,000.00",LEGAL GRANTS,EXTERNAL AGENCIES AND BODIES,5902574524,1874379
05.04.2023,COMMUNITIES,SOUTHWARK CITIZENS ADVICE,"159,000.00",LEGAL GRANTS,EXTERNAL AGENCIES AND BODIES,5902574524,1874379
05.04.2023,COMMUNITIES,SMALL STEPS CONSULTANTS LTD,895,PREVENT,PROFESSIONAL FEES,5902574552,1000082116
05.04.2023,COMMUNITIES,SMALL STEPS CONSULTANTS LTD,"2,085.00",PREVENT,PROFESSIONAL FEES,5902574552,1000082116
05.04.2023,COMMUNITIES,SMALL STEPS CONSULTANTS LTD,"2,685.00",PREVENT,PROFESSIONAL FEES,5902574552,1000082116
05.04.2023,COMMUNITIES,REDACTED PERSONAL DATA,350,UKRAINIAN PROGRAMME,GRANTS,REDACTED,REDACTED
05.04.2023,COMMUNITIES,REDACTED PERSONAL DATA,350,UKRAINIAN PROGRAMME,GRANTS,REDACTED,REDACTED
05.04.2023,COMMUNITIES,REDACTED PERSONAL DATA,350,UKRAINIAN PROGRAMME,GRANTS,REDACTED,REDACTED
05.04.2023,COMMUNITIES,REDACTED PERSONAL DATA,350,UKRAINIAN PROGRAMME,GRANTS,REDACTED,REDACTED
05.04.2023,COMMUNITIES,REDACTED PERSONAL DATA,350,UKRAINIAN PROGRAMME,GRANTS,REDACTED,REDACTED
05.04.2023,COMMUNITIES,REDACTED PERSONAL DATA,800,UKRAINIAN PROGRAMME,GRANTS,REDACTED,REDACTED
05.04.2023,COMMUNITIES,REDACTED PERSONAL DATA,800,UKRAINIAN PROGRAMME,GRANTS,REDACTED,REDACTED
05.04.2023,COMMUNITIES,REDACTED PERSONAL DATA,800,UKRAINIAN PROGRAMME,GRANTS,REDACTED,REDACTED
05.04.2023,COMMUNITIES,REDACTED PERSONAL DATA,"1,050.00",UKRAINIAN PROGRAMME,GRANTS,REDACTED,REDACTED
05.04.2023,CUSTOMER AND EXCHEQUER,GUYS & ST THOMAS NHS FOUNDATION TRUST,755,CORONER'S,OTHER CONTRACTORS,5902574525,1765536
05.04.2023,CUSTOMER AND EXCHEQUER,GUYS & ST THOMAS NHS FOUNDATION TRUST,"7,676.00",CORONER'S,OTHER CONTRACTORS,5902574525,1765536
05.04.2023,CUSTOMER AND EXCHEQUER,GUYS & ST THOMAS NHS FOUNDATION TRUST,"7,702.00",CORONER'S,OTHER CONTRACTORS,5902574522,1765536
05.04.2023,CUSTOMER AND EXCHEQUER,GUYS & ST THOMAS NHS FOUNDATION TRUST,"7,990.00",CORONER'S,OTHER CONTRACTORS,5902574521,1765536
05.04.2023,CUSTOMER AND EXCHEQUER,GUYS & ST THOMAS NHS FOUNDATION TRUST,"9,460.00",CORONER'S,OTHER CONTRACTORS,5902574519,1765536
05.04.2023,CUSTOMER AND EXCHEQUER,GUYS & ST THOMAS NHS FOUNDATION TRUST,"10,765.00",CORONER'S,OTHER CONTRACTORS,5902574514,1765536
05.04.2023,CUSTOMER AND EXCHEQUER,GUYS & ST THOMAS NHS FOUNDATION TRUST,"11,407.00",CORONER'S,OTHER CONTRACTORS,5902574518,1765536
05.04.2023,CUSTOMER AND EXCHEQUER,DR J R SALISBURY,580.8,CORONER'S,PROFESSIONAL FEES,5902574526,1041127
05.04.2023,CUSTOMER AND EXCHEQUER,UBIQUS UK LTD,387.84,CORONER'S,PROFESSIONAL FEES,5902574568,1000058055
05.04.2023,CUSTOMER AND EXCHEQUER,FORENSIC PATHOLOGY SERVICES,561.9,CORONER'S,PROFESSIONAL FEES,5902574546,1000086871
05.04.2023,CUSTOMER EXPERIENCE,KATE ROUND,"1,000.00",COMPLAINTS,PROFESSIONAL FEES,5902574431,1000064570
05.04.2023,DIGITAL AND TECHNOLOGY,WEB LABS LTD,750,DIGITAL DELIVERY,CONSULTANTS SERVICES,5902573661,1000039819
05.04.2023,DIGITAL AND TECHNOLOGY,WEB LABS LTD,"1,375.00",DIGITAL DELIVERY,CONSULTANTS SERVICES,5902573661,1000039819
05.04.2023,DIGITAL AND TECHNOLOGY,WEB LABS LTD,"1,375.00",DIGITAL DELIVERY,CONSULTANTS SERVICES,5902573661,1000039819
05.04.2023,DIGITAL AND TECHNOLOGY,WEB LABS LTD,"3,300.00",DIGITAL DELIVERY,CONSULTANTS SERVICES,5902573661,1000039819
05.04.2023,DIGITAL AND TECHNOLOGY,WEB LABS LTD,"5,775.00",DIGITAL DELIVERY,CONSULTANTS SERVICES,5902573661,1000039819
05.04.2023,DIGITAL AND TECHNOLOGY,KEYSTREAM GROUP LIMITED,"6,600.00",IT MANAGEMENT,AGENCY STAFF,5902573847,1000089467
05.04.2023,DSG,TWINKL LTD,474.5,AST,TRAINING,5902574562,1000089516
05.04.2023,DSG,ALBION PRIMARY SCHOOL,"6,271.25",COVID-19 SCHOOLS GRANTS,SCHOOLS CAPITATION,2103647616,5001000000
05.04.2023,DSG,ALFRED SALTER PRIMARY SCHOOL,"4,458.75",COVID-19 SCHOOLS GRANTS,SCHOOLS CAPITATION,2103647644,5001000005
05.04.2023,DSG,BELLENDEN PRIMARY SCHOOL,"3,008.75",COVID-19 SCHOOLS GRANTS,SCHOOLS CAPITATION,2103647617,5001000007
05.04.2023,DSG,BEORMUND PRIMARY SCHOOL,"2,102.50",COVID-19 SCHOOLS GRANTS,SCHOOLS CAPITATION,2103647676,5001000008
05.04.2023,DSG,BESSEMER GRANGE PRIMARY SCHOOL,"3,588.75",COVID-19 SCHOOLS GRANTS,SCHOOLS CAPITATION,2103647646,5001000009
05.04.2023,DSG,BETHLEM & MAUDSLEY HOSPITAL SCHOOL,"6,900.00",COVID-19 SCHOOLS GRANTS,SCHOOLS CAPITATION,2103647680,5001000010
05.04.2023,DSG,BOUCHER C OF E PRIMARY SCHOOL,"2,646.25",COVID-19 SCHOOLS GRANTS,SCHOOLS CAPITATION,2103647648,5001000011
05.04.2023,DSG,BRUNSWICK PARK PRIMARY SCHOOL,"7,451.25",COVID-19 SCHOOLS GRANTS,SCHOOLS CAPITATION,2103647647,5001000013
05.04.2023,DSG,CAMELOT PRIMARY SCHOOL,"6,452.50",COVID-19 SCHOOLS GRANTS,SCHOOLS CAPITATION,2103647618,5001000014
05.04.2023,DSG,CHARLOTTE  SHARMAN PRIMARY SCHOOL,"2,936.25",COVID-19 SCHOOLS GRANTS,SCHOOLS CAPITATION,2103647672,5001000016
05.04.2023,DSG,ST JOSEPHS RC JUNIOR  SCHOOL,"3,516.25",COVID-19 SCHOOLS GRANTS,SCHOOLS CAPITATION,2103647669,5001000017
05.04.2023,DSG,ST JOSEPHS CATHOLIC INFANTS SCHOOL,"1,885.00",COVID-19 SCHOOLS GRANTS,SCHOOLS CAPITATION,2103647670,5001000018
05.04.2023,DSG,ST JUDES CHURCH OF ENGLAND PRIMARY,"1,595.00",COVID-19 SCHOOLS GRANTS,SCHOOLS CAPITATION,2103647659,5001000019
05.04.2023,DSG,CHERRY GARDEN SCHOOL,"5,800.00",COVID-19 SCHOOLS GRANTS,SCHOOLS CAPITATION,2103647678,5001000020
05.04.2023,DSG,COBOURG PRIMARY SCHOOL,"3,117.50",COVID-19 SCHOOLS GRANTS,SCHOOLS CAPITATION,2103647619,5001000021
05.04.2023,DSG,COMBER GROVE PRIMARY SCHOOL,"3,081.25",COVID-19 SCHOOLS GRANTS,SCHOOLS CAPITATION,2103647620,5001000022
05.04.2023,DSG,CRAMPTON PRIMARY SCHOOL,"2,356.25",COVID-19 SCHOOLS GRANTS,SCHOOLS CAPITATION,2103647621,5001000023
05.04.2023,DSG,CRAWFORD PRIMARY SCHOOL,"6,380.00",COVID-19 SCHOOLS GRANTS,SCHOOLS CAPITATION,2103647622,5001000024
05.04.2023,DSG,DOG KENNEL HILL PRIMARY SCHOOL,"3,516.25",COVID-19 SCHOOLS GRANTS,SCHOOLS CAPITATION,2103647623,5001000025
05.04.2023,DSG,DULWICH VILLAGE CE INFANTS SCHOOL,500,COVID-19 SCHOOLS GRANTS,SCHOOLS CAPITATION,2103647649,5001000027
05.04.2023,DSG,GOODRICH PRIMARY SCHOOL,"4,060.00",COVID-19 SCHOOLS GRANTS,SCHOOLS CAPITATION,2103647624,5001000028
05.04.2023,DSG,GRANGE PRIMARY SCHOOL,"6,162.50",COVID-19 SCHOOLS GRANTS,SCHOOLS CAPITATION,2103647625,5001000029
05.04.2023,DSG,ENGLISH MARTYRS RC PRIMARY SCHOOL,"4,531.25",COVID-19 SCHOOLS GRANTS,SCHOOLS CAPITATION,2103647650,5001000030
05.04.2023,DSG,EVELINA HOSPITAL SCHOOL,"13,248.00",COVID-19 SCHOOLS GRANTS,SCHOOLS CAPITATION,2103647679,5001000031
05.04.2023,DSG,PHOENIX PRIMARY SCHOOL,"8,047.50",COVID-19 SCHOOLS GRANTS,SCHOOLS CAPITATION,2103647642,5001000032
05.04.2023,DSG,FRIARS PRIMARY (FOUNDATION) SCHOOL,"2,573.75",COVID-19 SCHOOLS GRANTS,SCHOOLS CAPITATION,2103647671,5001000033
05.04.2023,DSG,HEBER PRIMARY SCHOOL,"2,138.75",COVID-19 SCHOOLS GRANTS,SCHOOLS CAPITATION,2103647626,5001000035
05.04.2023,DSG,HOLLYDALE PRIMARY SCHOOL,"2,646.25",COVID-19 SCHOOLS GRANTS,SCHOOLS CAPITATION,2103647627,5001000036
05.04.2023,DSG,ILDERTON PRIMARY SCHOOL,"3,987.50",COVID-19 SCHOOLS GRANTS,SCHOOLS CAPITATION,2103647628,5001000037
05.04.2023,DSG,IVYDALE PRIMARY SCHOOL,"3,008.75",COVID-19 SCHOOLS GRANTS,SCHOOLS CAPITATION,2103647629,5001000038
05.04.2023,DSG,JOHN RUSKIN PRIMARY SCHOOL,"8,794.50",COVID-19 SCHOOLS GRANTS,SCHOOLS CAPITATION,2103647630,5001000040
05.04.2023,DSG,KEYWORTH PRIMARY SCHOOL,"6,017.50",COVID-19 SCHOOLS GRANTS,SCHOOLS CAPITATION,2103647631,5001000041
05.04.2023,DSG,DULWICH WOOD PRIMARY SCHOOL,"3,770.00",COVID-19 SCHOOLS GRANTS,SCHOOLS CAPITATION,2103647632,5001000042
05.04.2023,DSG,HAYMERLE SCHOOL,"4,712.50",COVID-19 SCHOOLS GRANTS,SCHOOLS CAPITATION,2103647675,5001000045
05.04.2023,DSG,HIGHSHORE SCHOOL,"12,834.00",COVID-19 SCHOOLS GRANTS,SCHOOLS CAPITATION,2103647674,5001000046
05.04.2023,DSG,MICHAEL FARADAY PRIMARY SCHOOL,"4,893.75",COVID-19 SCHOOLS GRANTS,SCHOOLS CAPITATION,2103647633,5001000048
05.04.2023,DSG,OLIVER GOLDSMITH PRIMARY SCHOOL,"6,198.75",COVID-19 SCHOOLS GRANTS,SCHOOLS CAPITATION,2103647645,5001000051
05.04.2023,DSG,PETER HILLS CE SCHOOL,"2,066.25",COVID-19 SCHOOLS GRANTS,SCHOOLS CAPITATION,2103647661,5001000053
05.04.2023,DSG,PILGRIM'S WAY PRIMARY SCHOOL,"3,407.50",COVID-19 SCHOOLS GRANTS,SCHOOLS CAPITATION,2103647643,5001000054
05.04.2023,DSG,RIVERSIDE PRIMARY SCHOOL,"4,350.00",COVID-19 SCHOOLS GRANTS,SCHOOLS CAPITATION,2103647634,5001000056
05.04.2023,DSG,ROBERT BROWNING PRIMARY SCHOOL,"3,153.75",COVID-19 SCHOOLS GRANTS,SCHOOLS CAPITATION,2103647635,5001000057
05.04.2023,DSG,ROTHERHITHE PRIMARY SCHOOL,"5,763.75",COVID-19 SCHOOLS GRANTS,SCHOOLS CAPITATION,2103647636,5001000058
05.04.2023,DSG,RYE OAK PRIMARY SCHOOL,"5,830.50",COVID-19 SCHOOLS GRANTS,SCHOOLS CAPITATION,2103647665,5001000059
05.04.2023,DSG,SNOWSFIELDS PRIMARY SCHOOL,"3,760.00",COVID-19 SCHOOLS GRANTS,SCHOOLS CAPITATION,2103647637,5001000061
05.04.2023,DSG,SOUTHWARK PARK PRIMARY SCHOOL,"6,633.75",COVID-19 SCHOOLS GRANTS,SCHOOLS CAPITATION,2103647638,5001000062
05.04.2023,DSG,ST ANTHONYS RC SCHOOL,"2,936.25",COVID-19 SCHOOLS GRANTS,SCHOOLS CAPITATION,2103647668,5001000064
05.04.2023,DSG,ST FRANCESCA CABRINI PRIMARY SCHOOL,"2,863.75",COVID-19 SCHOOLS GRANTS,SCHOOLS CAPITATION,2103647667,5001000065
05.04.2023,DSG,ST FRANCIS'S RC PRIMARY SCHOOL,"4,132.50",COVID-19 SCHOOLS GRANTS,SCHOOLS CAPITATION,2103647652,5001000067
05.04.2023,DSG,ST GEORGES RC SCHOOL,"1,812.50",COVID-19 SCHOOLS GRANTS,SCHOOLS CAPITATION,2103647654,5001000068
05.04.2023,DSG,ST GEORGES CE SCHOOL,"4,132.50",COVID-19 SCHOOLS GRANTS,SCHOOLS CAPITATION,2103647653,5001000069
05.04.2023,DSG,ST JAMES CE PRIMARY SCHOOL,"9,570.00",COVID-19 SCHOOLS GRANTS,SCHOOLS CAPITATION,2103647655,5001000070
05.04.2023,DSG,ST JAMES THE GREAT RC SCHOOL,"3,117.50",COVID-19 SCHOOLS GRANTS,SCHOOLS CAPITATION,2103647651,5001000071
05.04.2023,DSG,ST JOHNS & ST CLEMENTS CE SCHOOL,"3,370.00",COVID-19 SCHOOLS GRANTS,SCHOOLS CAPITATION,2103647656,5001000073
05.04.2023,DSG,THE ST THOMAS THE APOSTLE COLLEGE,"23,805.00",COVID-19 SCHOOLS GRANTS,SCHOOLS CAPITATION,2103647673,5001000074
05.04.2023,DSG,ST JOHNS RC PRIMARY SCHOOL,"2,827.50",COVID-19 SCHOOLS GRANTS,SCHOOLS CAPITATION,2103647664,5001000075
05.04.2023,DSG,ST JOSEPHS CATHOLIC SCHOOL,"2,465.00",COVID-19 SCHOOLS GRANTS,SCHOOLS CAPITATION,2103647658,5001000076
05.04.2023,DSG,ST JOSEPHS CATHOLIC PRIMARY SCHOOL,"2,211.25",COVID-19 SCHOOLS GRANTS,SCHOOLS CAPITATION,2103647657,5001000078
05.04.2023,DSG,ST MARY MAGDALENE CE SCHOOL,"1,667.50",COVID-19 SCHOOLS GRANTS,SCHOOLS CAPITATION,2103647660,5001000080
05.04.2023,DSG,ST PETERS CE SCHOOL,"3,262.50",COVID-19 SCHOOLS GRANTS,SCHOOLS CAPITATION,2103647662,5001000083
05.04.2023,DSG,ST SAVIOURS & ST OLAVES SCHOOL,"18,354.00",COVID-19 SCHOOLS GRANTS,SCHOOLS CAPITATION,2103647666,5001000084
05.04.2023,DSG,CATHEDRAL SCHOOL OF ST SAVIOUR & MARY,"1,558.75",COVID-19 SCHOOLS GRANTS,SCHOOLS CAPITATION,2103647663,5001000088
05.04.2023,DSG,TOWER BRIDGE PRIMARY SCHOOL,"3,878.75",COVID-19 SCHOOLS GRANTS,SCHOOLS CAPITATION,2103647639,5001000095
05.04.2023,DSG,TOWNSEND PRIMARY SCHOOL,"2,465.00",COVID-19 SCHOOLS GRANTS,SCHOOLS CAPITATION,2103647640,5001000096
05.04.2023,DSG,TUKE SCHOOL,"9,798.00",COVID-19 SCHOOLS GRANTS,SCHOOLS CAPITATION,2103647677,5001000097
05.04.2023,DSG,VICTORY SCHOOL,"2,320.00",COVID-19 SCHOOLS GRANTS,SCHOOLS CAPITATION,2103647641,5001000098
05.04.2023,DSG,SOUTHWARK INCLUSIVE LEARNING SERVICE,"5,658.00",COVID-19 SCHOOLS GRANTS,SCHOOLS CAPITATION,2103647681,5001000105
05.04.2023,DSG,DOG KENNEL HILL PRIMARY SCHOOL,"131,495.00",DOG KENNEL HILL PRIMARY SCHOOL,SCHOOLS CAPITATION,2103647684,5001000025
05.04.2023,DSG,THE CENTRE FOR BETTER HEALTH LTD,"1,400.00",HEARING AND VISUAL IMPAIRMENT TEAM,TRAINING,5902574560,1000078273
05.04.2023,DSG,ROTHERHITHE PRIMARY SCHOOL,"161,701.00",ROTHERHITHE PRIMARY SCHOOL,SCHOOLS CAPITATION,2103647685,5001000058
05.04.2023,DSG,SOUTHEND-ON-SEA CITY COUNCIL,"2,363.85",SPECIALIST POST-16,STATEMENTED FEES,2103645955,1000036516
05.04.2023,EDUCATION,MYOSOTIS TRAINING LTD,900,ALC  DIRECT DELIVERY,PROFESSIONAL FEES,5902574492,1000063334
05.04.2023,ENVIRONMENT AND LEISURE,THE CHARTER SCHOOL EDUCATIONAL TRUST,"1,372.25",CAPITAL PS (LEISURE),CAPITAL GRANTS,5902574564,1000064975
05.04.2023,ENVIRONMENT AND LEISURE,SOUTH LONDON GALLERY,"1,600.00",CAPITAL PS (LEISURE),CONSTRUCTION FEES  - EXTERNAL,5902574458,11011694
05.04.2023,ENVIRONMENT AND LEISURE,SOUTH LONDON GALLERY,"8,000.00",CAPITAL PS (LEISURE),CONSTRUCTION FEES  - EXTERNAL,5902574458,11011694
05.04.2023,ENVIRONMENT AND LEISURE,TENNANT UK CLEANING SOLUTIONS LTD,278.64,MANAGEMENT TEAM,EQUIPMENT PURCHASE & REPAIR,5902574554,1065589
05.04.2023,ENVIRONMENT AND LEISURE,SMI INT GROUP LTD,450,MANAGEMENT TEAM,MATERIALS,5902573483,1000076606
05.04.2023,ENVIRONMENT AND LEISURE,KENT COUNTY COUNCIL - LASER,260.44,SANDGATE STREET,GAS,5902574325,1000012926
05.04.2023,ENVIRONMENT AND LEISURE,KENT COUNTY COUNCIL - LASER,262.91,SANDGATE STREET,GAS,5902574329,1000012926
05.04.2023,ENVIRONMENT DIRECTORATE,KENT COUNTY COUNCIL - LASER,"1,736.04",BUSINESS CORE,GAS,5902573533,1000012926
05.04.2023,ENVIRONMENT DIRECTORATE,ATG ACCESS LTD,"8,266.15",GLOBE WALK BOLLARDS,SOUTHWARK DIRECT CHARGES,5902574544,1000070530
05.04.2023,ENVIRONMENT DIRECTORATE,PURPOSE POWDER COATINGS LTD,567,GRANGE DOORS,MATERIALS,5902574503,1000059450
05.04.2023,ENVIRONMENT DIRECTORATE,MARWOOD ELECTRICAL COMPANY LTD,453.4,PUBLIC LIGHTING,MATERIALS,5902574551,1001874
05.04.2023,ENVIRONMENT DIRECTORATE,MARWOOD ELECTRICAL COMPANY LTD,"1,527.80",PUBLIC LIGHTING,MATERIALS,5902574551,1001874
05.04.2023,ENVIRONMENT DIRECTORATE,PUDSEY DIAMOND ENGINEERING LTD,"1,357.20",PUBLIC LIGHTING,MATERIALS,5902574545,1000070665
05.04.2023,ENVIRONMENT DIRECTORATE,PUDSEY DIAMOND ENGINEERING LTD,"1,582.00",PUBLIC LIGHTING,MATERIALS,5902574545,1000070665
05.04.2023,ENVIRONMENT DIRECTORATE,ALL PRINT SUPPLIES LTD,521.5,SIGN SHOP,MATERIALS,5902574504,1927973
05.04.2023,ENVIRONMENT DIRECTORATE,ALL PRINT SUPPLIES LTD,933.24,SIGN SHOP,MATERIALS,5902574504,1927973
05.04.2023,ENVIRONMENT DIRECTORATE,ALL PRINT SUPPLIES LTD,"1,111.50",SIGN SHOP,MATERIALS,5902574504,1927973
05.04.2023,ENVIRONMENT DIRECTORATE,ALL PRINT SUPPLIES LTD,"1,464.00",SIGN SHOP,MATERIALS,5902574504,1927973
05.04.2023,HOUSING HRA,GEOFFREY OSBORNE LIMITED,"153,572.92",CAPITAL PS (HRA),CONSTRUCTION MAIN CONTRACT -CERTIFICATED,2103646763,3000000753
05.04.2023,HOUSING HRA,STANNAH LIFT SERVICES LTD,"6,384.00",CAPITAL PS (HRA),UTILITIES INSTALLATION,5902574480,1063595
05.04.2023,HOUSING HRA,GILBERT-ASH LIMITED,"51,427.16",CAPITAL PS (REGEN),CONSTRUCTION,2103647686,3000002111
05.04.2023,HUMAN RESOURCES,LAILA EL-METOUI,600,LGBTQ+,FREELANCE SPECIALISTS,5902574432,1000089560
05.04.2023,LAW AND GOVERNANCE,AUDITEL RENTAL & SERVICE LTD,"3,395.00",CONSTITUTIONAL TEAM,OP LEASE/HIRE CHARGES:PLANT/EQUIP/FURNIT,5902574506,1000026622
05.04.2023,LAW AND GOVERNANCE,CONNEXIONS CUISINE LTD T/A MASONS CATERING,841.7,CONSTITUTIONAL TEAM,REFRESHMENTS FOR MEETINGS,5902574508,11317153
05.04.2023,LEISURE DIRECTORATE,BROXAP LTD,"5,642.00",CREMATORIUM,BUILDING R&M,2103646764,3000000841
05.04.2023,LEISURE DIRECTORATE,KENT COUNTY COUNCIL - LASER,"3,349.09",CREMATORIUM,ELECTRICITY,5902574496,1000012926
05.04.2023,LEISURE DIRECTORATE,WESTMINSTER WASTE,780,CREMATORIUM,OTHER CONTRACTORS,5902574493,1000080933
05.04.2023,LEISURE DIRECTORATE,KENT COUNTY COUNCIL - LASER,"5,347.97",JOHN HARVARD LIBRARY,ELECTRICITY,5902574423,1000012926
05.04.2023,RESIDENT SERVICES,APPLEGARTH HOUSE COOPERATIVE LTD,"19,994.50",APPLEGARTH HOUSE CO-OP,M&M ALLOWANCE CO-OPS,5902574542,1296074
05.04.2023,RESIDENT SERVICES,KENT COUNTY COUNCIL - LASER,"-4,149.65",PECKHAM,ELECTRICITY,2103645538,1000012926
05.04.2023,RESIDENT SERVICES,KENT COUNTY COUNCIL - LASER,"-1,732.11",PECKHAM,ELECTRICITY,2103645535,1000012926
05.04.2023,RESIDENT SERVICES,KENT COUNTY COUNCIL - LASER,"-1,541.13",PECKHAM,ELECTRICITY,2103645536,1000012926
05.04.2023,RESIDENT SERVICES,KENT COUNTY COUNCIL - LASER,"-1,330.80",PECKHAM,ELECTRICITY,2103645537,1000012926
05.04.2023,RESIDENT SERVICES,KENT COUNTY COUNCIL - LASER,"-1,282.26",PECKHAM,ELECTRICITY,2103645542,1000012926
05.04.2023,RESIDENT SERVICES,KENT COUNTY COUNCIL - LASER,"-1,279.25",PECKHAM,ELECTRICITY,2103645540,1000012926
05.04.2023,RESIDENT SERVICES,KENT COUNTY COUNCIL - LASER,"-1,239.83",PECKHAM,ELECTRICITY,2103645541,1000012926
05.04.2023,RESIDENT SERVICES,KENT COUNTY COUNCIL - LASER,"-1,239.81",PECKHAM,ELECTRICITY,2103645550,1000012926
05.04.2023,RESIDENT SERVICES,KENT COUNTY COUNCIL - LASER,"-1,136.22",PECKHAM,ELECTRICITY,2103645549,1000012926
05.04.2023,RESIDENT SERVICES,KENT COUNTY COUNCIL - LASER,-997.58,PECKHAM,ELECTRICITY,2103645546,1000012926
05.04.2023,RESIDENT SERVICES,KENT COUNTY COUNCIL - LASER,-991.89,PECKHAM,ELECTRICITY,2103645545,1000012926
05.04.2023,RESIDENT SERVICES,KENT COUNTY COUNCIL - LASER,-976.35,PECKHAM,ELECTRICITY,2103645539,1000012926
05.04.2023,RESIDENT SERVICES,KENT COUNTY COUNCIL - LASER,-809.38,PECKHAM,ELECTRICITY,2103645544,1000012926
05.04.2023,RESIDENT SERVICES,KENT COUNTY COUNCIL - LASER,-753.32,PECKHAM,ELECTRICITY,2103645548,1000012926
05.04.2023,RESIDENT SERVICES,KENT COUNTY COUNCIL - LASER,-432.01,PECKHAM,ELECTRICITY,2103645543,1000012926
05.04.2023,RESIDENT SERVICES,KENT COUNTY COUNCIL - LASER,-412.41,PECKHAM,ELECTRICITY,2103645547,1000012926
05.04.2023,RESIDENT SERVICES,KENT COUNTY COUNCIL - LASER,388.49,PECKHAM,ELECTRICITY,2103645530,1000012926
05.04.2023,RESIDENT SERVICES,KENT COUNTY COUNCIL - LASER,409.12,PECKHAM,ELECTRICITY,2103645525,1000012926
05.04.2023,RESIDENT SERVICES,KENT COUNTY COUNCIL - LASER,706.26,PECKHAM,ELECTRICITY,2103645531,1000012926
05.04.2023,RESIDENT SERVICES,KENT COUNTY COUNCIL - LASER,764.32,PECKHAM,ELECTRICITY,2103645526,1000012926
05.04.2023,RESIDENT SERVICES,KENT COUNTY COUNCIL - LASER,927.1,PECKHAM,ELECTRICITY,2103645522,1000012926
05.04.2023,RESIDENT SERVICES,KENT COUNTY COUNCIL - LASER,935.53,PECKHAM,ELECTRICITY,2103645527,1000012926
05.04.2023,RESIDENT SERVICES,KENT COUNTY COUNCIL - LASER,939.72,PECKHAM,ELECTRICITY,2103645529,1000012926
05.04.2023,RESIDENT SERVICES,KENT COUNTY COUNCIL - LASER,"1,065.24",PECKHAM,ELECTRICITY,2103645532,1000012926
05.04.2023,RESIDENT SERVICES,KENT COUNTY COUNCIL - LASER,"1,152.67",PECKHAM,ELECTRICITY,2103645528,1000012926
05.04.2023,RESIDENT SERVICES,KENT COUNTY COUNCIL - LASER,"1,174.75",PECKHAM,ELECTRICITY,2103645523,1000012926
05.04.2023,RESIDENT SERVICES,KENT COUNTY COUNCIL - LASER,"1,180.93",PECKHAM,ELECTRICITY,2103645533,1000012926
05.04.2023,RESIDENT SERVICES,KENT COUNTY COUNCIL - LASER,"1,214.31",PECKHAM,ELECTRICITY,2103645524,1000012926
05.04.2023,RESIDENT SERVICES,KENT COUNTY COUNCIL - LASER,"1,271.85",PECKHAM,ELECTRICITY,2103645520,1000012926
05.04.2023,RESIDENT SERVICES,KENT COUNTY COUNCIL - LASER,"2,132.26",PECKHAM,ELECTRICITY,2103645534,1000012926
05.04.2023,RESIDENT SERVICES,KENT COUNTY COUNCIL - LASER,"3,936.01",PECKHAM,ELECTRICITY,2103645521,1000012926
05.04.2023,RESIDENT SERVICES,KINDLY PROPERTIES LTD,"2,196.00",TA PLACEMENTS,EXTERNAL AGENCIES AND BODIES,5902574479,1000060734
05.04.2023,RESIDENT SERVICES,KINDLY PROPERTIES LTD,"3,600.00",TA PLACEMENTS,EXTERNAL AGENCIES AND BODIES,5902574478,1000060734
05.04.2023,RESIDENT SERVICES,KINDLY PROPERTIES LTD,"3,942.00",TA PLACEMENTS,EXTERNAL AGENCIES AND BODIES,5902574416,1000060734
05.04.2023,RESIDENT SERVICES,KINDLY PROPERTIES LTD,"4,464.00",TA PLACEMENTS,EXTERNAL AGENCIES AND BODIES,5902574467,1000060734
05.04.2023,RESIDENT SERVICES,KINDLY PROPERTIES LTD,"4,860.00",TA PLACEMENTS,EXTERNAL AGENCIES AND BODIES,5902574421,1000060734
05.04.2023,RESIDENT SERVICES,KINDLY PROPERTIES LTD,"7,680.00",TA PLACEMENTS,EXTERNAL AGENCIES AND BODIES,5902574435,1000060734
05.04.2023,RESIDENT SERVICES,KINDLY PROPERTIES LTD,"7,740.00",TA PLACEMENTS,EXTERNAL AGENCIES AND BODIES,5902574436,1000060734
05.04.2023,RESIDENT SERVICES HGF,FRESHVIEW ESTATES LTD,"2,381.94",HOMELESS PROJECTS,GRANTS,5902574413,1000081189
05.04.2023,RESIDENT SERVICES HGF,REDACTED PERSONAL DATA,"4,000.00",HOMELESS PROJECTS,GRANTS,REDACTED,REDACTED
05.04.2023,RESIDENT SERVICES HGF,PUBLIC INTEREST LAW CENTRE,"41,483.14",HOMELESS PROJECTS,LEGAL FEES & COURT COSTS,5902574475,1000089545
05.04.2023,RESIDENT SERVICES HGF,LIVING ACCOMMODATION LTD,"1,885.00",NIGHTLY TA (NSC),EXTERNAL AGENCIES AND BODIES,5902574534,1000063985
05.04.2023,RESIDENT SERVICES HGF,STAR LEISURE,500,TRAVELLERS STAFFING,PROFESSIONAL FEES,5902573788,1000080966
05.04.2023,SOUTHWARK BUILDING SERVICES,N & C BUILDING MATERIALS,506.44,STORES/LOGISTICS,CREDITORS -GR/IR CLEARING ACCOUNT,5902574409,1005586
05.04.2023,SOUTHWARK BUILDING SERVICES,N & C BUILDING MATERIALS,"5,461.06",STORES/LOGISTICS,CREDITORS -GR/IR CLEARING ACCOUNT,5902574411,1005586
05.04.2023,SOUTHWARK BUILDING SERVICES,N & C BUILDING MATERIALS,"6,950.44",STORES/LOGISTICS,CREDITORS -GR/IR CLEARING ACCOUNT,5902574411,1005586
05.04.2023,SOUTHWARK BUILDING SERVICES,LONDON TOOLS LIMITED,321.6,STORES/LOGISTICS,CREDITORS -GR/IR CLEARING ACCOUNT,5902574084,1000003017
05.04.2023,SOUTHWARK BUILDING SERVICES,LONDON TOOLS LIMITED,367.5,STORES/LOGISTICS,CREDITORS -GR/IR CLEARING ACCOUNT,5902574098,1000003017
05.04.2023,SOUTHWARK BUILDING SERVICES,LONDON TOOLS LIMITED,739.5,STORES/LOGISTICS,CREDITORS -GR/IR CLEARING ACCOUNT,5902574085,1000003017
05.04.2023,SOUTHWARK BUILDING SERVICES,LONDON TOOLS LIMITED,796,STORES/LOGISTICS,CREDITORS -GR/IR CLEARING ACCOUNT,5902574098,1000003017
05.04.2023,SOUTHWARK BUILDING SERVICES,LONDON TOOLS LIMITED,875,STORES/LOGISTICS,CREDITORS -GR/IR CLEARING ACCOUNT,5902574085,1000003017
05.04.2023,SOUTHWARK BUILDING SERVICES,LONDON TOOLS LIMITED,"1,450.00",STORES/LOGISTICS,CREDITORS -GR/IR CLEARING ACCOUNT,5902574089,1000003017
05.04.2023,SOUTHWARK BUILDING SERVICES,LONDON TOOLS LIMITED,"2,100.00",STORES/LOGISTICS,CREDITORS -GR/IR CLEARING ACCOUNT,5902574107,1000003017
05.04.2023,SOUTHWARK BUILDING SERVICES,LONDON TOOLS LIMITED,"3,152.50",STORES/LOGISTICS,CREDITORS -GR/IR CLEARING ACCOUNT,5902574098,1000003017
06.04.2023,ADULT SOCIAL CARE,REDACTED PERSONAL DATA,279.85,APPOINTEESHIPS,OTHER PAYMENTS FOR CLIENTS,REDACTED,REDACTED
06.04.2023,ADULT SOCIAL CARE,OXFORD COMPUTER CONSULTANTS,"3,300.00",DIR OF ASC,COMMS & COMPUTING CONTRACT CHARGES,5902573514,1000089260
06.04.2023,ADULT SOCIAL CARE,JUDGE AND PRIESTLEY SOLICITORS,"3,052.38",DIR OF ASC,PAYMENTS FOR LEGAL SERVICES,5902574839,1472217
06.04.2023,ADULT SOCIAL CARE,CHILDREN'S COMPLEX  CARE LTD,366.24,SPECIALIST CARE,SECTION 17 PAYMENTS TO AGENCIES/CARERS,2103647722,1000069262
06.04.2023,ADULT SOCIAL CARE,CHILDREN'S COMPLEX  CARE LTD,366.24,SPECIALIST CARE,SECTION 17 PAYMENTS TO AGENCIES/CARERS,2103647723,1000069262
06.04.2023,ADULT SOCIAL CARE,CHILDREN'S COMPLEX  CARE LTD,"1,098.72",SPECIALIST CARE,SECTION 17 PAYMENTS TO AGENCIES/CARERS,2103647724,1000069262
06.04.2023,ADULT SOCIAL CARE,CHILDREN'S COMPLEX  CARE LTD,"2,366.92",SPECIALIST CARE,SECTION 17 PAYMENTS TO AGENCIES/CARERS,2103647726,1000069262
06.04.2023,ADULT SOCIAL CARE,CHILDREN'S COMPLEX  CARE LTD,"4,803.84",SPECIALIST CARE,SECTION 17 PAYMENTS TO AGENCIES/CARERS,2103647725,1000069262
06.04.2023,ADULT SOCIAL CARE,TUNSTALL HEALTHCARE (UK) LTD,"1,092.00",TELECARE EQUIPMENT,EQUIPMENT PURCHASE & REPAIR,5902574835,1012297
06.04.2023,ADULT SOCIAL CARE,TUNSTALL HEALTHCARE (UK) LTD,"1,700.40",TELECARE EQUIPMENT,EQUIPMENT PURCHASE & REPAIR,5902574831,1012297
06.04.2023,ADULT SOCIAL CARE,TUNSTALL HEALTHCARE (UK) LTD,"2,340.00",TELECARE EQUIPMENT,EQUIPMENT PURCHASE & REPAIR,5902574829,1012297
06.04.2023,ASSET MANAGEMENT,ARMINA LTD,"1,071.20",DISREPAIR,BUILDING R&M,2103647696,3000002121
06.04.2023,ASSET MANAGEMENT,ARMINA LTD,"1,474.70",DISREPAIR,BUILDING R&M,2103647694,3000002121
06.04.2023,ASSET MANAGEMENT,ARMINA LTD,"2,338.04",DISREPAIR,BUILDING R&M,2103647692,3000002121
06.04.2023,ASSET MANAGEMENT,ARMINA LTD,"2,752.87",DISREPAIR,BUILDING R&M,2103647697,3000002121
06.04.2023,ASSET MANAGEMENT,GAS ADVISORY SERVICES LIMITED,344,ENG CONTRACTS (NORTH),HEATING -DISTRICT SERVICE (CONTRACT SUM),5902574763,1000064649
06.04.2023,ASSET MANAGEMENT,GAS ADVISORY SERVICES LIMITED,708,ENG CONTRACTS (NORTH),HEATING -DISTRICT SERVICE (CONTRACT SUM),5902574761,1000064649
06.04.2023,ASSET MANAGEMENT,GAS ADVISORY SERVICES LIMITED,"2,596.50",ENG CONTRACTS (NORTH),HEATING -DISTRICT SERVICE (CONTRACT SUM),5902574758,1000064649
06.04.2023,ASSET MANAGEMENT,BRYHILL TECHNICAL SERVICES,"6,181.94",MAJOR REPAIRS,BUILDING R&M,2103647705,3000001722
06.04.2023,ASSET MANAGEMENT,GLASDON UK LIMITED,448.18,REPAIRS OPERATIONS,MATERIALS,5902574780,1024073
06.04.2023,CENTRAL FUNCTIONS,INNER PIECES LTD,650,GAINS/LOSSES I & E,PROFESSIONAL FEES,5902574581,1000087101
06.04.2023,CENTRAL FUNCTIONS,INNER PIECES LTD,900,GAINS/LOSSES I & E,PROFESSIONAL FEES,5902574580,1000087101
06.04.2023,CHIEF EXECUTIVE,MACE LTD,"10,334.69",CAPITAL PS (REGEN),CONSTRUCTION FEES,5902573485,1000067959
06.04.2023,CHIEF EXECUTIVE,DECONSTRUCT (UK) LTD,"72,751.41",CAPITAL PS (REGEN),CONSTRUCTION SITE COSTS,2103647699,3000002260
06.04.2023,CHIEF EXECUTIVE,DECONSTRUCT (UK) LTD,"92,333.37",CAPITAL PS (REGEN),CONSTRUCTION SITE COSTS,2103647698,3000002260
06.04.2023,CHILDREN AND FAMILIES,SOUTH LONDON & MAUDSLEY HOSPITAL,"1,500.00",ADOPT LONDON SOUTH,CAB FARES,5902573059,1000013096
06.04.2023,CHILDREN AND FAMILIES,SOUTH LONDON & MAUDSLEY HOSPITAL,"2,250.00",ADOPT LONDON SOUTH,PROFESSIONAL FEES,5902573060,1000013096
06.04.2023,CHILDREN AND FAMILIES,FAMILY FUTURES CIC,"2,080.00",ADOPTION SUPP FUND 2,EXTERNAL AGENCIES AND BODIES,5902573504,1000027893
06.04.2023,CHILDREN AND FAMILIES,PLAY THERAPY SERVICES LTD,350,ADOPTION SUPP FUND 2,EXTERNAL AGENCIES AND BODIES,5902573105,1000085546
06.04.2023,CHILDREN AND FAMILIES,PLAY THERAPY SERVICES LTD,450,ADOPTION SUPP FUND 2,EXTERNAL AGENCIES AND BODIES,5902573074,1000085546
06.04.2023,CHILDREN AND FAMILIES,DARIT PUCHKOV PLAY THERAPY,450,ADOPTION SUPP FUND 2,EXTERNAL AGENCIES AND BODIES,5902573349,1000087958
06.04.2023,CHILDREN AND FAMILIES,DARIT PUCHKOV PLAY THERAPY,700,ADOPTION SUPP FUND 2,EXTERNAL AGENCIES AND BODIES,5902573344,1000087958
06.04.2023,CHILDREN AND FAMILIES,ALEX VOLOVISKY LTD,500,ADOPTION SUPP FUND 2,EXTERNAL AGENCIES AND BODIES,5902573508,1000088469
06.04.2023,CHILDREN AND FAMILIES,NURTURING CONNECTIONS LTD,400,ADOPTION SUPP FUND 2,EXTERNAL AGENCIES AND BODIES,5902574779,1000088647
06.04.2023,CHILDREN AND FAMILIES,REDACTED PERSONAL DATA,300,CARELEAVER UNIV SUPP,CLIENT TRANSPORT,REDACTED,REDACTED
06.04.2023,CHILDREN AND FAMILIES,REDACTED PERSONAL DATA,"1,650.00",CARELEAVER UNIV SUPP,OTHER PAYMENTS FOR CLIENTS,REDACTED,REDACTED
06.04.2023,CHILDREN AND FAMILIES,AEGIS 24/7 LTD,"23,978.60",CHILDREN�S RESID,RESIDENTIAL CARE,2103647727,1000089533
06.04.2023,CHILDREN AND FAMILIES,BLERINA TAHIRAJ-PRITCHARD,531.25,FAMILY GROUP CONF�S,PROFESSIONAL FEES,5902574803,1000083304
06.04.2023,CHILDREN AND FAMILIES,BLERINA TAHIRAJ-PRITCHARD,"1,191.67",FAMILY GROUP CONF�S,PROFESSIONAL FEES,5902574804,1000083304
06.04.2023,CHILDREN AND FAMILIES,BLERINA TAHIRAJ-PRITCHARD,"1,272.92",FAMILY GROUP CONF�S,PROFESSIONAL FEES,5902574802,1000083304
06.04.2023,CHILDREN AND FAMILIES,REDACTED PERSONAL DATA,300,FOSTERING ALLOWANCES,ADDITIONAL PAYMENTS TO AGENCIES/CARERS,REDACTED,REDACTED
06.04.2023,CHILDREN AND FAMILIES,REDACTED PERSONAL DATA,"4,060.00",FOSTERING ALLOWANCES,ADDITIONAL PAYMENTS TO AGENCIES/CARERS,REDACTED,REDACTED
06.04.2023,CHILDREN AND FAMILIES,REDACTED PERSONAL DATA,-327,FOSTERING ALLOWANCES,PAYMENTS TO CARERS,REDACTED,REDACTED
06.04.2023,CHILDREN AND FAMILIES,REDACTED PERSONAL DATA,327,FOSTERING ALLOWANCES,PAYMENTS TO CARERS,REDACTED,REDACTED
06.04.2023,CHILDREN AND FAMILIES,NATIONAL FOSTERING AGENCY LTD,480,FRIENDS & FAMILY FOSTERING,EXTERNAL AGENCIES AND BODIES,2103647846,1000038868
06.04.2023,CHILDREN AND FAMILIES,FIVE RIVERS CHILD CARE LTD,491.43,FRIENDS & FAMILY FOSTERING,PAYMENTS TO CARERS,2103647847,1000018792
06.04.2023,CHILDREN AND FAMILIES,REDACTED PERSONAL DATA,-910.72,FRIENDS &FAMILY FOST,PAYMENTS TO CARERS,REDACTED,REDACTED
06.04.2023,CHILDREN AND FAMILIES,REDACTED PERSONAL DATA,-910.72,FRIENDS &FAMILY FOST,PAYMENTS TO CARERS,REDACTED,REDACTED
06.04.2023,CHILDREN AND FAMILIES,REDACTED PERSONAL DATA,"1,013.57",FRIENDS &FAMILY FOST,PAYMENTS TO CARERS,REDACTED,REDACTED
06.04.2023,CHILDREN AND FAMILIES,REDACTED PERSONAL DATA,"1,013.57",FRIENDS &FAMILY FOST,PAYMENTS TO CARERS,REDACTED,REDACTED
